Workbook

Sheet Overview
C2: Construction & renovation finance demonstration
C4: Selected case | E4: ='Assumptions'!$G$4 -> Base | H4: EUR. Entirely fictional.
C6: Cedarworks Projects — fictional
C7: 31 August 2026. January–August actuals; September–December forecast.
C9: August result | E9: Actual | F9: Original budget | G9: Variance
C10: Revenue | E10: ='P&L'!L8 -> 469,596 | F10: ='Budget'!L8 -> 462,968 | G10: =E10-F10 -> 6,627
C11: Gross profit | E11: ='P&L'!L15 -> 125,096 | F11: ='Budget'!L15 -> 118,468 | G11: =E11-F11 -> 6,627
C12: EBITDA | E12: ='P&L'!L21 -> 72,596 | F12: ='Budget'!L21 -> 67,793 | G12: =E12-F12 -> 4,802
C13: Net profit | E13: ='P&L'!L28 -> 53,587 | F13: ='Budget'!L28 -> 49,745 | G13: =E13-F13 -> 3,842
C14: Gross margin | E14: ='P&L'!L16 -> 26.6% | F14: ='Budget'!L16 -> 25.6% | G14: =(E14-F14)*100 -> 1.1 pp
C17: Closing cash at 31 August | E17: ='Balance sheet'!L8 -> €298,008
C18: Lowest scheduled end-of-day cash | E18: ='13 week cash'!F23 -> €95,946
C19: Reserve shortfall at daily low | E19: =MIN(0,E18-'Assumptions'!$E$148) -> (€29,054)
C20: August contract assets | E20: ='Balance sheet'!L10 -> €330,495
C21: August retention receivables | E21: ='Balance sheet'!L11 -> €105,009
C24: Full-year revenue | E24: =SUM('P&L'!E8:P8) -> €4,538,000
C25: Full-year EBITDA | E25: =SUM('P&L'!E21:P21) -> €634,500
C26: December closing cash | E26: ='Balance sheet'!P8 -> €454,942
C30: CFO action register
C32: Priority | D32: Financial issue | E32: Exposure EUR | F32: Action | G32: Owner | H32: Due | I32: Status
C33: High | D33: Lowest scheduled cash | E33: ='13 week cash'!F23 -> 95,946 | F33: Align milestone receipts and commitments before new work starts. | G33: CFO | H33: 2026-09-04 | I33: Open
C34: High | D34: Earned work not yet billed | E34: ='Balance sheet'!L10 -> 330,495 | F34: Certify completed work and secure progress invoices by project. | G34: Commercial lead | H34: 2026-09-07 | I34: In progress
C35: High | D35: Unapproved variation requests | E35: =SUM('Project register'!G8:G13) -> 133,000 | F35: Secure written approvals; exclude speculative claims from revenue. | G35: Project director | H35: 2026-09-08 | I35: Open
C36: Medium | D36: Retention receivables | E36: ='Balance sheet'!L11 -> 105,009 | F36: Record release conditions and completion evidence. | G36: Project managers | H36: 2026-09-11 | I36: Open
C40: Monthly cash and operating reserve
C42: Month | D42: Closing cash | E42: Reserve
C43: Jan 26 | D43: ='Balance sheet'!E8 -> 797,859 | E43: ='Assumptions'!$E$148 -> 125,000
C44: Feb 26 | D44: ='Balance sheet'!F8 -> 698,786 | E44: ='Assumptions'!$E$148 -> 125,000
C45: Mar 26 | D45: ='Balance sheet'!G8 -> 607,265 | E45: ='Assumptions'!$E$148 -> 125,000
C46: Apr 26 | D46: ='Balance sheet'!H8 -> 523,605 | E46: ='Assumptions'!$E$148 -> 125,000
C47: May 26 | D47: ='Balance sheet'!I8 -> 457,077 | E47: ='Assumptions'!$E$148 -> 125,000
C48: Jun 26 | D48: ='Balance sheet'!J8 -> 389,455 | E48: ='Assumptions'!$E$148 -> 125,000
C49: Jul 26 | D49: ='Balance sheet'!K8 -> 331,533 | E49: ='Assumptions'!$E$148 -> 125,000
C50: Aug 26 | D50: ='Balance sheet'!L8 -> 298,008 | E50: ='Assumptions'!$E$148 -> 125,000
C51: Sept 26 | D51: ='Balance sheet'!M8 -> 345,334 | E51: ='Assumptions'!$E$148 -> 125,000
C52: Oct 26 | D52: ='Balance sheet'!N8 -> 359,619 | E52: ='Assumptions'!$E$148 -> 125,000
C53: Nov 26 | D53: ='Balance sheet'!O8 -> 425,600 | E53: ='Assumptions'!$E$148 -> 125,000
C54: Dec 26 | D54: ='Balance sheet'!P8 -> 454,942 | E54: ='Assumptions'!$E$148 -> 125,000

Sheet Assumptions
C2: Assumptions
C4: Selected case | E4: 1 | G4: =CHOOSE(E4,"Base","Downside") -> Base | H4: EUR. Entirely fictional.
C5: 1 = Base; 2 = Downside
E6: Actual | F6: Actual | G6: Actual | H6: Actual | I6: Actual | J6: Actual | K6: Actual | L6: Actual | M6: Forecast | N6: Forecast | O6: Forecast | P6: Forecast
E7: 2026-01-01 | F7: 2026-02-01 | G7: 2026-03-01 | H7: 2026-04-01 | I7: 2026-05-01 | J7: 2026-06-01 | K7: 2026-07-01 | L7: 2026-08-01 | M7: 2026-09-01 | N7: 2026-10-01 | O7: 2026-11-01 | P7: 2026-12-01
C8: Management and administration payroll — active | E8: ='Actual inputs'!E8 -> €33,000 | F8: ='Actual inputs'!F8 -> €33,500 | G8: ='Actual inputs'!G8 -> €34,000 | H8: ='Actual inputs'!H8 -> €34,500 | I8: ='Actual inputs'!I8 -> €35,000 | J8: ='Actual inputs'!J8 -> €35,500 | K8: ='Actual inputs'!K8 -> €36,000 | L8: ='Actual inputs'!L8 -> €36,500 | M8: =IF($E$4=1,IF(ISNUMBER(M9),M9,NA()),IF($E$4=2,IF(ISNUMBER(M10),M10,NA()),NA())) -> €37,500 | N8: =IF($E$4=1,IF(ISNUMBER(N9),N9,NA()),IF($E$4=2,IF(ISNUMBER(N10),N10,NA()),NA())) -> €38,000 | O8: =IF($E$4=1,IF(ISNUMBER(O9),O9,NA()),IF($E$4=2,IF(ISNUMBER(O10),O10,NA()),NA())) -> €39,000 | P8: =IF($E$4=1,IF(ISNUMBER(P9),P9,NA()),IF($E$4=2,IF(ISNUMBER(P10),P10,NA()),NA())) -> €39,000
C9: Base | M9: 37,500 | N9: 38,000 | O9: 39,000 | P9: 39,000
C10: Downside | M10: 39,000 | N10: 40,000 | O10: 41,000 | P10: 41,000
C11: Business development — active | E11: ='Actual inputs'!E9 -> €6,500 | F11: ='Actual inputs'!F9 -> €6,500 | G11: ='Actual inputs'!G9 -> €6,500 | H11: ='Actual inputs'!H9 -> €6,500 | I11: ='Actual inputs'!I9 -> €6,500 | J11: ='Actual inputs'!J9 -> €6,500 | K11: ='Actual inputs'!K9 -> €6,500 | L11: ='Actual inputs'!L9 -> €6,500 | M11: =IF($E$4=1,IF(ISNUMBER(M12),M12,NA()),IF($E$4=2,IF(ISNUMBER(M13),M13,NA()),NA())) -> €7,000 | N11: =IF($E$4=1,IF(ISNUMBER(N12),N12,NA()),IF($E$4=2,IF(ISNUMBER(N13),N13,NA()),NA())) -> €7,000 | O11: =IF($E$4=1,IF(ISNUMBER(O12),O12,NA()),IF($E$4=2,IF(ISNUMBER(O13),O13,NA()),NA())) -> €7,000 | P11: =IF($E$4=1,IF(ISNUMBER(P12),P12,NA()),IF($E$4=2,IF(ISNUMBER(P13),P13,NA()),NA())) -> €7,000
C12: Base | M12: 7,000 | N12: 7,000 | O12: 7,000 | P12: 7,000
C13: Downside | M13: 6,500 | N13: 6,500 | O13: 6,500 | P13: 6,500
C14: Office, insurance and general costs — active | E14: ='Actual inputs'!E10 -> €9,500 | F14: ='Actual inputs'!F10 -> €9,500 | G14: ='Actual inputs'!G10 -> €9,500 | H14: ='Actual inputs'!H10 -> €9,500 | I14: ='Actual inputs'!I10 -> €9,500 | J14: ='Actual inputs'!J10 -> €9,500 | K14: ='Actual inputs'!K10 -> €9,500 | L14: ='Actual inputs'!L10 -> €9,500 | M14: =IF($E$4=1,IF(ISNUMBER(M15),M15,NA()),IF($E$4=2,IF(ISNUMBER(M16),M16,NA()),NA())) -> €10,000 | N14: =IF($E$4=1,IF(ISNUMBER(N15),N15,NA()),IF($E$4=2,IF(ISNUMBER(N16),N16,NA()),NA())) -> €10,000 | O14: =IF($E$4=1,IF(ISNUMBER(O15),O15,NA()),IF($E$4=2,IF(ISNUMBER(O16),O16,NA()),NA())) -> €10,000 | P14: =IF($E$4=1,IF(ISNUMBER(P15),P15,NA()),IF($E$4=2,IF(ISNUMBER(P16),P16,NA()),NA())) -> €10,000
C15: Base | M15: 10,000 | N15: 10,000 | O15: 10,000 | P15: 10,000
C16: Downside | M16: 10,000 | N16: 10,000 | O16: 10,000 | P16: 10,000
C17: Direct systems and software — active | E17: ='Actual inputs'!E11 -> €4,500 | F17: ='Actual inputs'!F11 -> €4,500 | G17: ='Actual inputs'!G11 -> €4,500 | H17: ='Actual inputs'!H11 -> €4,500 | I17: ='Actual inputs'!I11 -> €4,500 | J17: ='Actual inputs'!J11 -> €4,500 | K17: ='Actual inputs'!K11 -> €4,500 | L17: ='Actual inputs'!L11 -> €4,500 | M17: =IF($E$4=1,IF(ISNUMBER(M18),M18,NA()),IF($E$4=2,IF(ISNUMBER(M19),M19,NA()),NA())) -> €5,000 | N17: =IF($E$4=1,IF(ISNUMBER(N18),N18,NA()),IF($E$4=2,IF(ISNUMBER(N19),N19,NA()),NA())) -> €5,000 | O17: =IF($E$4=1,IF(ISNUMBER(O18),O18,NA()),IF($E$4=2,IF(ISNUMBER(O19),O19,NA()),NA())) -> €5,000 | P17: =IF($E$4=1,IF(ISNUMBER(P18),P18,NA()),IF($E$4=2,IF(ISNUMBER(P19),P19,NA()),NA())) -> €5,000
C18: Base | M18: 5,000 | N18: 5,000 | O18: 5,000 | P18: 5,000
C19: Downside | M19: 5,000 | N19: 5,000 | O19: 5,000 | P19: 5,000
C20: Target closing trade receivable days — active | E20: ='Actual inputs'!E12 -> 40.0 | F20: ='Actual inputs'!F12 -> 40.0 | G20: ='Actual inputs'!G12 -> 40.0 | H20: ='Actual inputs'!H12 -> 40.0 | I20: ='Actual inputs'!I12 -> 40.0 | J20: ='Actual inputs'!J12 -> 40.0 | K20: ='Actual inputs'!K12 -> 40.0 | L20: ='Actual inputs'!L12 -> 40.0 | M20: =IF($E$4=1,IF(ISNUMBER(M21),M21,NA()),IF($E$4=2,IF(ISNUMBER(M22),M22,NA()),NA())) -> 38.0 | N20: =IF($E$4=1,IF(ISNUMBER(N21),N21,NA()),IF($E$4=2,IF(ISNUMBER(N22),N22,NA()),NA())) -> 36.0 | O20: =IF($E$4=1,IF(ISNUMBER(O21),O21,NA()),IF($E$4=2,IF(ISNUMBER(O22),O22,NA()),NA())) -> 35.0 | P20: =IF($E$4=1,IF(ISNUMBER(P21),P21,NA()),IF($E$4=2,IF(ISNUMBER(P22),P22,NA()),NA())) -> 35.0
C21: Base | M21: 38.0 | N21: 36.0 | O21: 35.0 | P21: 35.0
C22: Downside | M22: 55.0 | N22: 58.0 | O22: 60.0 | P22: 60.0
C23: New supplier payable days — active | E23: ='Actual inputs'!E13 -> 30.0 | F23: ='Actual inputs'!F13 -> 30.0 | G23: ='Actual inputs'!G13 -> 30.0 | H23: ='Actual inputs'!H13 -> 30.0 | I23: ='Actual inputs'!I13 -> 30.0 | J23: ='Actual inputs'!J13 -> 30.0 | K23: ='Actual inputs'!K13 -> 30.0 | L23: ='Actual inputs'!L13 -> 30.0 | M23: =IF($E$4=1,IF(ISNUMBER(M24),M24,NA()),IF($E$4=2,IF(ISNUMBER(M25),M25,NA()),NA())) -> 30.0 | N23: =IF($E$4=1,IF(ISNUMBER(N24),N24,NA()),IF($E$4=2,IF(ISNUMBER(N25),N25,NA()),NA())) -> 30.0 | O23: =IF($E$4=1,IF(ISNUMBER(O24),O24,NA()),IF($E$4=2,IF(ISNUMBER(O25),O25,NA()),NA())) -> 30.0 | P23: =IF($E$4=1,IF(ISNUMBER(P24),P24,NA()),IF($E$4=2,IF(ISNUMBER(P25),P25,NA()),NA())) -> 30.0
C24: Base | M24: 30.0 | N24: 30.0 | O24: 30.0 | P24: 30.0
C25: Downside | M25: 30.0 | N25: 30.0 | O25: 30.0 | P25: 30.0
C26: Cash capital expenditure — active | E26: ='Actual inputs'!E14 -> €6,000 | F26: ='Actual inputs'!F14 -> €4,000 | G26: ='Actual inputs'!G14 -> €8,000 | H26: ='Actual inputs'!H14 -> €6,000 | I26: ='Actual inputs'!I14 -> €9,000 | J26: ='Actual inputs'!J14 -> €5,000 | K26: ='Actual inputs'!K14 -> €8,000 | L26: ='Actual inputs'!L14 -> €6,000 | M26: =IF($E$4=1,IF(ISNUMBER(M27),M27,NA()),IF($E$4=2,IF(ISNUMBER(M28),M28,NA()),NA())) -> €42,000 | N26: =IF($E$4=1,IF(ISNUMBER(N27),N27,NA()),IF($E$4=2,IF(ISNUMBER(N28),N28,NA()),NA())) -> €9,000 | O26: =IF($E$4=1,IF(ISNUMBER(O27),O27,NA()),IF($E$4=2,IF(ISNUMBER(O28),O28,NA()),NA())) -> €12,000 | P26: =IF($E$4=1,IF(ISNUMBER(P27),P27,NA()),IF($E$4=2,IF(ISNUMBER(P28),P28,NA()),NA())) -> €8,000
C27: Base | M27: 42,000 | N27: 9,000 | O27: 12,000 | P27: 8,000
C28: Downside | M28: 42,000 | N28: 6,000 | O28: 8,000 | P28: 6,000
C29: Illustrative tax payment — active | E29: ='Actual inputs'!E15 -> 0 | F29: ='Actual inputs'!F15 -> 0 | G29: ='Actual inputs'!G15 -> €9,000 | H29: ='Actual inputs'!H15 -> 0 | I29: ='Actual inputs'!I15 -> 0 | J29: ='Actual inputs'!J15 -> €12,000 | K29: ='Actual inputs'!K15 -> 0 | L29: ='Actual inputs'!L15 -> 0 | M29: =IF($E$4=1,IF(ISNUMBER(M30),M30,NA()),IF($E$4=2,IF(ISNUMBER(M31),M31,NA()),NA())) -> €18,000 | N29: =IF($E$4=1,IF(ISNUMBER(N30),N30,NA()),IF($E$4=2,IF(ISNUMBER(N31),N31,NA()),NA())) -> 0 | O29: =IF($E$4=1,IF(ISNUMBER(O30),O30,NA()),IF($E$4=2,IF(ISNUMBER(O31),O31,NA()),NA())) -> 0 | P29: =IF($E$4=1,IF(ISNUMBER(P30),P30,NA()),IF($E$4=2,IF(ISNUMBER(P31),P31,NA()),NA())) -> €16,000
C30: Base | M30: 18,000 | N30: 0 | O30: 0 | P30: 16,000
C31: Downside | M31: 18,000 | N31: 0 | O31: 0 | P31: 9,000
C32: Opening invoice collection delay (days) — active | E32: ='Actual inputs'!E16 -> 0.0 | F32: ='Actual inputs'!F16 -> 0.0 | G32: ='Actual inputs'!G16 -> 0.0 | H32: ='Actual inputs'!H16 -> 0.0 | I32: ='Actual inputs'!I16 -> 0.0 | J32: ='Actual inputs'!J16 -> 0.0 | K32: ='Actual inputs'!K16 -> 0.0 | L32: ='Actual inputs'!L16 -> 0.0 | M32: =IF($E$4=1,IF(ISNUMBER(M33),M33,NA()),IF($E$4=2,IF(ISNUMBER(M34),M34,NA()),NA())) -> 0.0 | N32: =IF($E$4=1,IF(ISNUMBER(N33),N33,NA()),IF($E$4=2,IF(ISNUMBER(N34),N34,NA()),NA())) -> 0.0 | O32: =IF($E$4=1,IF(ISNUMBER(O33),O33,NA()),IF($E$4=2,IF(ISNUMBER(O34),O34,NA()),NA())) -> 0.0 | P32: =IF($E$4=1,IF(ISNUMBER(P33),P33,NA()),IF($E$4=2,IF(ISNUMBER(P34),P34,NA()),NA())) -> 0.0
C33: Base | M33: 0.0 | N33: 0.0 | O33: 0.0 | P33: 0.0
C34: Downside | M34: 14.0 | N34: 14.0 | O34: 14.0 | P34: 14.0
C35: CW-01 Cost incurred — active | E35: ='Actual inputs'!E17 -> €25,000 | F35: ='Actual inputs'!F17 -> €25,000 | G35: ='Actual inputs'!G17 -> €25,000 | H35: ='Actual inputs'!H17 -> €25,000 | I35: ='Actual inputs'!I17 -> €25,000 | J35: ='Actual inputs'!J17 -> €25,000 | K35: ='Actual inputs'!K17 -> €25,000 | L35: ='Actual inputs'!L17 -> €25,000 | M35: =IF($E$4=1,IF(ISNUMBER(M36),M36,NA()),IF($E$4=2,IF(ISNUMBER(M37),M37,NA()),NA())) -> €25,000 | N35: =IF($E$4=1,IF(ISNUMBER(N36),N36,NA()),IF($E$4=2,IF(ISNUMBER(N37),N37,NA()),NA())) -> €25,000 | O35: =IF($E$4=1,IF(ISNUMBER(O36),O36,NA()),IF($E$4=2,IF(ISNUMBER(O37),O37,NA()),NA())) -> €25,000 | P35: =IF($E$4=1,IF(ISNUMBER(P36),P36,NA()),IF($E$4=2,IF(ISNUMBER(P37),P37,NA()),NA())) -> €25,000
C36: Base | M36: 25,000 | N36: 25,000 | O36: 25,000 | P36: 25,000
C37: Downside | M37: 28,250 | N37: 28,250 | O37: 28,250 | P37: 28,250
C38: CW-01 Estimated total cost — active | E38: ='Actual inputs'!E18 -> €300,000 | F38: ='Actual inputs'!F18 -> €300,000 | G38: ='Actual inputs'!G18 -> €300,000 | H38: ='Actual inputs'!H18 -> €300,000 | I38: ='Actual inputs'!I18 -> €300,000 | J38: ='Actual inputs'!J18 -> €300,000 | K38: ='Actual inputs'!K18 -> €300,000 | L38: ='Actual inputs'!L18 -> €300,000 | M38: =IF($E$4=1,IF(ISNUMBER(M39),M39,NA()),IF($E$4=2,IF(ISNUMBER(M40),M40,NA()),NA())) -> €300,000 | N38: =IF($E$4=1,IF(ISNUMBER(N39),N39,NA()),IF($E$4=2,IF(ISNUMBER(N40),N40,NA()),NA())) -> €300,000 | O38: =IF($E$4=1,IF(ISNUMBER(O39),O39,NA()),IF($E$4=2,IF(ISNUMBER(O40),O40,NA()),NA())) -> €300,000 | P38: =IF($E$4=1,IF(ISNUMBER(P39),P39,NA()),IF($E$4=2,IF(ISNUMBER(P40),P40,NA()),NA())) -> €300,000
C39: Base | M39: 300,000 | N39: 300,000 | O39: 300,000 | P39: 300,000
C40: Downside | M40: 313,000 | N40: 313,000 | O40: 313,000 | P40: 313,000
C41: CW-01 Approved cumulative variations — active | E41: ='Actual inputs'!E19 -> 0 | F41: ='Actual inputs'!F19 -> 0 | G41: ='Actual inputs'!G19 -> 0 | H41: ='Actual inputs'!H19 -> 0 | I41: ='Actual inputs'!I19 -> 0 | J41: ='Actual inputs'!J19 -> €5,600 | K41: ='Actual inputs'!K19 -> €5,600 | L41: ='Actual inputs'!L19 -> €5,600 | M41: =IF($E$4=1,IF(ISNUMBER(M42),M42,NA()),IF($E$4=2,IF(ISNUMBER(M43),M43,NA()),NA())) -> €14,000 | N41: =IF($E$4=1,IF(ISNUMBER(N42),N42,NA()),IF($E$4=2,IF(ISNUMBER(N43),N43,NA()),NA())) -> €14,000 | O41: =IF($E$4=1,IF(ISNUMBER(O42),O42,NA()),IF($E$4=2,IF(ISNUMBER(O43),O43,NA()),NA())) -> €14,000 | P41: =IF($E$4=1,IF(ISNUMBER(P42),P42,NA()),IF($E$4=2,IF(ISNUMBER(P43),P43,NA()),NA())) -> €14,000
C42: Base | M42: 14,000 | N42: 14,000 | O42: 14,000 | P42: 14,000
C43: Downside | M43: 5,600 | N43: 5,600 | O43: 8,400 | P43: 8,400
C44: CW-01 Gross progress billing — active | E44: ='Actual inputs'!E20 -> €30,450 | F44: ='Actual inputs'!F20 -> €30,450 | G44: ='Actual inputs'!G20 -> €30,450 | H44: ='Actual inputs'!H20 -> €30,450 | I44: ='Actual inputs'!I20 -> €30,450 | J44: ='Actual inputs'!J20 -> €30,856 | K44: ='Actual inputs'!K20 -> €30,856 | L44: ='Actual inputs'!L20 -> €30,856 | M44: =IF($E$4=1,IF(ISNUMBER(M45),M45,NA()),IF($E$4=2,IF(ISNUMBER(M46),M46,NA()),NA())) -> €37,975 | N44: =IF($E$4=1,IF(ISNUMBER(N45),N45,NA()),IF($E$4=2,IF(ISNUMBER(N46),N46,NA()),NA())) -> €37,975 | O44: =IF($E$4=1,IF(ISNUMBER(O45),O45,NA()),IF($E$4=2,IF(ISNUMBER(O46),O46,NA()),NA())) -> €37,975 | P44: =IF($E$4=1,IF(ISNUMBER(P45),P45,NA()),IF($E$4=2,IF(ISNUMBER(P46),P46,NA()),NA())) -> €75,257
C45: Base | M45: 37,975 | N45: 37,975 | O45: 37,975 | P45: 75,257
C46: Downside | M46: 31,140 | N46: 31,140 | O46: 31,140 | P46: 66,226
C47: CW-01 Retention released into receivables — active | E47: ='Actual inputs'!E21 -> 0 | F47: ='Actual inputs'!F21 -> 0 | G47: ='Actual inputs'!G21 -> 0 | H47: ='Actual inputs'!H21 -> 0 | I47: ='Actual inputs'!I21 -> 0 | J47: ='Actual inputs'!J21 -> 0 | K47: ='Actual inputs'!K21 -> 0 | L47: ='Actual inputs'!L21 -> 0 | M47: =IF($E$4=1,IF(ISNUMBER(M48),M48,NA()),IF($E$4=2,IF(ISNUMBER(M49),M49,NA()),NA())) -> 0 | N47: =IF($E$4=1,IF(ISNUMBER(N48),N48,NA()),IF($E$4=2,IF(ISNUMBER(N49),N49,NA()),NA())) -> 0 | O47: =IF($E$4=1,IF(ISNUMBER(O48),O48,NA()),IF($E$4=2,IF(ISNUMBER(O49),O49,NA()),NA())) -> 0 | P47: =IF($E$4=1,IF(ISNUMBER(P48),P48,NA()),IF($E$4=2,IF(ISNUMBER(P49),P49,NA()),NA())) -> 0
C48: Base | M48: 0 | N48: 0 | O48: 0 | P48: 0
C49: Downside | M49: 0 | N49: 0 | O49: 0 | P49: 0
C50: CW-01 Committed share of remaining cost — active | E50: ='Actual inputs'!E22 -> 72.0% | F50: ='Actual inputs'!F22 -> 72.0% | G50: ='Actual inputs'!G22 -> 72.0% | H50: ='Actual inputs'!H22 -> 72.0% | I50: ='Actual inputs'!I22 -> 72.0% | J50: ='Actual inputs'!J22 -> 72.0% | K50: ='Actual inputs'!K22 -> 72.0% | L50: ='Actual inputs'!L22 -> 72.0% | M50: =IF($E$4=1,IF(ISNUMBER(M51),M51,NA()),IF($E$4=2,IF(ISNUMBER(M52),M52,NA()),NA())) -> 78.0% | N50: =IF($E$4=1,IF(ISNUMBER(N51),N51,NA()),IF($E$4=2,IF(ISNUMBER(N52),N52,NA()),NA())) -> 78.0% | O50: =IF($E$4=1,IF(ISNUMBER(O51),O51,NA()),IF($E$4=2,IF(ISNUMBER(O52),O52,NA()),NA())) -> 78.0% | P50: =IF($E$4=1,IF(ISNUMBER(P51),P51,NA()),IF($E$4=2,IF(ISNUMBER(P52),P52,NA()),NA())) -> 78.0%
C51: Base | M51: 78.0% | N51: 78.0% | O51: 78.0% | P51: 78.0%
C52: Downside | M52: 88.0% | N52: 88.0% | O52: 88.0% | P52: 88.0%
C53: CW-02 Cost incurred — active | E53: ='Actual inputs'!E23 -> 0 | F53: ='Actual inputs'!F23 -> 0 | G53: ='Actual inputs'!G23 -> €45,000 | H53: ='Actual inputs'!H23 -> €55,000 | I53: ='Actual inputs'!I23 -> €60,000 | J53: ='Actual inputs'!J23 -> €65,000 | K53: ='Actual inputs'!K23 -> €70,000 | L53: ='Actual inputs'!L23 -> €65,000 | M53: =IF($E$4=1,IF(ISNUMBER(M54),M54,NA()),IF($E$4=2,IF(ISNUMBER(M55),M55,NA()),NA())) -> €60,000 | N53: =IF($E$4=1,IF(ISNUMBER(N54),N54,NA()),IF($E$4=2,IF(ISNUMBER(N55),N55,NA()),NA())) -> €60,000 | O53: =IF($E$4=1,IF(ISNUMBER(O54),O54,NA()),IF($E$4=2,IF(ISNUMBER(O55),O55,NA()),NA())) -> €50,000 | P53: =IF($E$4=1,IF(ISNUMBER(P54),P54,NA()),IF($E$4=2,IF(ISNUMBER(P55),P55,NA()),NA())) -> €50,000
C54: Base | M54: 60,000 | N54: 60,000 | O54: 50,000 | P54: 50,000
C55: Downside | M55: 67,800 | N55: 67,800 | O55: 56,500 | P55: 56,500
C56: CW-02 Estimated total cost — active | E56: ='Actual inputs'!E24 -> €580,000 | F56: ='Actual inputs'!F24 -> €580,000 | G56: ='Actual inputs'!G24 -> €580,000 | H56: ='Actual inputs'!H24 -> €580,000 | I56: ='Actual inputs'!I24 -> €580,000 | J56: ='Actual inputs'!J24 -> €580,000 | K56: ='Actual inputs'!K24 -> €580,000 | L56: ='Actual inputs'!L24 -> €580,000 | M56: =IF($E$4=1,IF(ISNUMBER(M57),M57,NA()),IF($E$4=2,IF(ISNUMBER(M58),M58,NA()),NA())) -> €580,000 | N56: =IF($E$4=1,IF(ISNUMBER(N57),N57,NA()),IF($E$4=2,IF(ISNUMBER(N58),N58,NA()),NA())) -> €580,000 | O56: =IF($E$4=1,IF(ISNUMBER(O57),O57,NA()),IF($E$4=2,IF(ISNUMBER(O58),O58,NA()),NA())) -> €580,000 | P56: =IF($E$4=1,IF(ISNUMBER(P57),P57,NA()),IF($E$4=2,IF(ISNUMBER(P58),P58,NA()),NA())) -> €580,000
C57: Base | M57: 580,000 | N57: 580,000 | O57: 580,000 | P57: 580,000
C58: Downside | M58: 608,600 | N58: 608,600 | O58: 608,600 | P58: 608,600
C59: CW-02 Approved cumulative variations — active | E59: ='Actual inputs'!E25 -> 0 | F59: ='Actual inputs'!F25 -> 0 | G59: ='Actual inputs'!G25 -> 0 | H59: ='Actual inputs'!H25 -> 0 | I59: ='Actual inputs'!I25 -> 0 | J59: ='Actual inputs'!J25 -> €12,000 | K59: ='Actual inputs'!K25 -> €12,000 | L59: ='Actual inputs'!L25 -> €12,000 | M59: =IF($E$4=1,IF(ISNUMBER(M60),M60,NA()),IF($E$4=2,IF(ISNUMBER(M61),M61,NA()),NA())) -> €30,000 | N59: =IF($E$4=1,IF(ISNUMBER(N60),N60,NA()),IF($E$4=2,IF(ISNUMBER(N61),N61,NA()),NA())) -> €30,000 | O59: =IF($E$4=1,IF(ISNUMBER(O60),O60,NA()),IF($E$4=2,IF(ISNUMBER(O61),O61,NA()),NA())) -> €30,000 | P59: =IF($E$4=1,IF(ISNUMBER(P60),P60,NA()),IF($E$4=2,IF(ISNUMBER(P61),P61,NA()),NA())) -> €30,000
C60: Base | M60: 30,000 | N60: 30,000 | O60: 30,000 | P60: 30,000
C61: Downside | M61: 12,000 | N61: 12,000 | O61: 18,000 | P61: 18,000
C62: CW-02 Gross progress billing — active | E62: ='Actual inputs'!E26 -> 0 | F62: ='Actual inputs'!F26 -> 0 | G62: ='Actual inputs'!G26 -> €57,375 | H62: ='Actual inputs'!H26 -> €70,125 | I62: ='Actual inputs'!I26 -> €76,500 | J62: ='Actual inputs'!J26 -> €84,045 | K62: ='Actual inputs'!K26 -> €90,510 | L62: ='Actual inputs'!L26 -> €84,045 | M62: =IF($E$4=1,IF(ISNUMBER(M63),M63,NA()),IF($E$4=2,IF(ISNUMBER(M64),M64,NA()),NA())) -> €95,586 | N62: =IF($E$4=1,IF(ISNUMBER(N63),N63,NA()),IF($E$4=2,IF(ISNUMBER(N64),N64,NA()),NA())) -> €95,586 | O62: =IF($E$4=1,IF(ISNUMBER(O63),O63,NA()),IF($E$4=2,IF(ISNUMBER(O64),O64,NA()),NA())) -> €79,655 | P62: =IF($E$4=1,IF(ISNUMBER(P63),P63,NA()),IF($E$4=2,IF(ISNUMBER(P64),P64,NA()),NA())) -> €146,572
C63: Base | M63: 95,586 | N63: 95,586 | O63: 79,655 | P63: 146,572
C64: Downside | M64: 78,381 | N64: 78,381 | O64: 65,317 | P64: 128,984
C65: CW-02 Retention released into receivables — active | E65: ='Actual inputs'!E27 -> 0 | F65: ='Actual inputs'!F27 -> 0 | G65: ='Actual inputs'!G27 -> 0 | H65: ='Actual inputs'!H27 -> 0 | I65: ='Actual inputs'!I27 -> 0 | J65: ='Actual inputs'!J27 -> 0 | K65: ='Actual inputs'!K27 -> 0 | L65: ='Actual inputs'!L27 -> 0 | M65: =IF($E$4=1,IF(ISNUMBER(M66),M66,NA()),IF($E$4=2,IF(ISNUMBER(M67),M67,NA()),NA())) -> 0 | N65: =IF($E$4=1,IF(ISNUMBER(N66),N66,NA()),IF($E$4=2,IF(ISNUMBER(N67),N67,NA()),NA())) -> 0 | O65: =IF($E$4=1,IF(ISNUMBER(O66),O66,NA()),IF($E$4=2,IF(ISNUMBER(O67),O67,NA()),NA())) -> 0 | P65: =IF($E$4=1,IF(ISNUMBER(P66),P66,NA()),IF($E$4=2,IF(ISNUMBER(P67),P67,NA()),NA())) -> 0
C66: Base | M66: 0 | N66: 0 | O66: 0 | P66: 0
C67: Downside | M67: 0 | N67: 0 | O67: 0 | P67: 0
C68: CW-02 Committed share of remaining cost — active | E68: ='Actual inputs'!E28 -> 72.0% | F68: ='Actual inputs'!F28 -> 72.0% | G68: ='Actual inputs'!G28 -> 72.0% | H68: ='Actual inputs'!H28 -> 72.0% | I68: ='Actual inputs'!I28 -> 72.0% | J68: ='Actual inputs'!J28 -> 72.0% | K68: ='Actual inputs'!K28 -> 72.0% | L68: ='Actual inputs'!L28 -> 72.0% | M68: =IF($E$4=1,IF(ISNUMBER(M69),M69,NA()),IF($E$4=2,IF(ISNUMBER(M70),M70,NA()),NA())) -> 78.0% | N68: =IF($E$4=1,IF(ISNUMBER(N69),N69,NA()),IF($E$4=2,IF(ISNUMBER(N70),N70,NA()),NA())) -> 78.0% | O68: =IF($E$4=1,IF(ISNUMBER(O69),O69,NA()),IF($E$4=2,IF(ISNUMBER(O70),O70,NA()),NA())) -> 78.0% | P68: =IF($E$4=1,IF(ISNUMBER(P69),P69,NA()),IF($E$4=2,IF(ISNUMBER(P70),P70,NA()),NA())) -> 78.0%
C69: Base | M69: 78.0% | N69: 78.0% | O69: 78.0% | P69: 78.0%
C70: Downside | M70: 88.0% | N70: 88.0% | O70: 88.0% | P70: 88.0%
C71: CW-03 Cost incurred — active | E71: ='Actual inputs'!E29 -> €70,000 | F71: ='Actual inputs'!F29 -> €80,000 | G71: ='Actual inputs'!G29 -> €85,000 | H71: ='Actual inputs'!H29 -> €90,000 | I71: ='Actual inputs'!I29 -> €90,000 | J71: ='Actual inputs'!J29 -> €90,000 | K71: ='Actual inputs'!K29 -> €85,000 | L71: ='Actual inputs'!L29 -> €80,000 | M71: =IF($E$4=1,IF(ISNUMBER(M72),M72,NA()),IF($E$4=2,IF(ISNUMBER(M73),M73,NA()),NA())) -> €70,000 | N71: =IF($E$4=1,IF(ISNUMBER(N72),N72,NA()),IF($E$4=2,IF(ISNUMBER(N73),N73,NA()),NA())) -> €65,000 | O71: =IF($E$4=1,IF(ISNUMBER(O72),O72,NA()),IF($E$4=2,IF(ISNUMBER(O73),O73,NA()),NA())) -> €55,000 | P71: =IF($E$4=1,IF(ISNUMBER(P72),P72,NA()),IF($E$4=2,IF(ISNUMBER(P73),P73,NA()),NA())) -> €40,000
C72: Base | M72: 70,000 | N72: 65,000 | O72: 55,000 | P72: 40,000
C73: Downside | M73: 85,400 | N73: 79,300 | O73: 67,100 | P73: 48,800
C74: CW-03 Estimated total cost — active | E74: ='Actual inputs'!E30 -> €900,000 | F74: ='Actual inputs'!F30 -> €900,000 | G74: ='Actual inputs'!G30 -> €900,000 | H74: ='Actual inputs'!H30 -> €900,000 | I74: ='Actual inputs'!I30 -> €900,000 | J74: ='Actual inputs'!J30 -> €900,000 | K74: ='Actual inputs'!K30 -> €900,000 | L74: ='Actual inputs'!L30 -> €900,000 | M74: =IF($E$4=1,IF(ISNUMBER(M75),M75,NA()),IF($E$4=2,IF(ISNUMBER(M76),M76,NA()),NA())) -> €900,000 | N74: =IF($E$4=1,IF(ISNUMBER(N75),N75,NA()),IF($E$4=2,IF(ISNUMBER(N76),N76,NA()),NA())) -> €900,000 | O74: =IF($E$4=1,IF(ISNUMBER(O75),O75,NA()),IF($E$4=2,IF(ISNUMBER(O76),O76,NA()),NA())) -> €900,000 | P74: =IF($E$4=1,IF(ISNUMBER(P75),P75,NA()),IF($E$4=2,IF(ISNUMBER(P76),P76,NA()),NA())) -> €900,000
C75: Base | M75: 900,000 | N75: 900,000 | O75: 900,000 | P75: 900,000
C76: Downside | M76: 950,600 | N76: 950,600 | O76: 950,600 | P76: 950,600
C77: CW-03 Approved cumulative variations — active | E77: ='Actual inputs'!E31 -> 0 | F77: ='Actual inputs'!F31 -> 0 | G77: ='Actual inputs'!G31 -> 0 | H77: ='Actual inputs'!H31 -> 0 | I77: ='Actual inputs'!I31 -> 0 | J77: ='Actual inputs'!J31 -> €19,200 | K77: ='Actual inputs'!K31 -> €19,200 | L77: ='Actual inputs'!L31 -> €19,200 | M77: =IF($E$4=1,IF(ISNUMBER(M78),M78,NA()),IF($E$4=2,IF(ISNUMBER(M79),M79,NA()),NA())) -> €48,000 | N77: =IF($E$4=1,IF(ISNUMBER(N78),N78,NA()),IF($E$4=2,IF(ISNUMBER(N79),N79,NA()),NA())) -> €48,000 | O77: =IF($E$4=1,IF(ISNUMBER(O78),O78,NA()),IF($E$4=2,IF(ISNUMBER(O79),O79,NA()),NA())) -> €48,000 | P77: =IF($E$4=1,IF(ISNUMBER(P78),P78,NA()),IF($E$4=2,IF(ISNUMBER(P79),P79,NA()),NA())) -> €48,000
C78: Base | M78: 48,000 | N78: 48,000 | O78: 48,000 | P78: 48,000
C79: Downside | M79: 19,200 | N79: 19,200 | O79: 28,800 | P79: 28,800
C80: CW-03 Gross progress billing — active | E80: ='Actual inputs'!E32 -> €79,847 | F80: ='Actual inputs'!F32 -> €91,253 | G80: ='Actual inputs'!G32 -> €96,957 | H80: ='Actual inputs'!H32 -> €102,660 | I80: ='Actual inputs'!I32 -> €102,660 | J80: ='Actual inputs'!J32 -> €104,330 | K80: ='Actual inputs'!K32 -> €98,534 | L80: ='Actual inputs'!L32 -> €92,738 | M80: =IF($E$4=1,IF(ISNUMBER(M81),M81,NA()),IF($E$4=2,IF(ISNUMBER(M82),M82,NA()),NA())) -> €100,287 | N80: =IF($E$4=1,IF(ISNUMBER(N81),N81,NA()),IF($E$4=2,IF(ISNUMBER(N82),N82,NA()),NA())) -> €93,123 | O80: =IF($E$4=1,IF(ISNUMBER(O81),O81,NA()),IF($E$4=2,IF(ISNUMBER(O82),O82,NA()),NA())) -> €78,797 | P80: =IF($E$4=1,IF(ISNUMBER(P81),P81,NA()),IF($E$4=2,IF(ISNUMBER(P82),P82,NA()),NA())) -> €186,814
C81: Base | M81: 100,287 | N81: 93,123 | O81: 78,797 | P81: 186,814
C82: Downside | M82: 82,235 | N82: 76,361 | O82: 64,613 | P82: 164,396
C83: CW-03 Retention released into receivables — active | E83: ='Actual inputs'!E33 -> 0 | F83: ='Actual inputs'!F33 -> 0 | G83: ='Actual inputs'!G33 -> 0 | H83: ='Actual inputs'!H33 -> 0 | I83: ='Actual inputs'!I33 -> 0 | J83: ='Actual inputs'!J33 -> 0 | K83: ='Actual inputs'!K33 -> 0 | L83: ='Actual inputs'!L33 -> 0 | M83: =IF($E$4=1,IF(ISNUMBER(M84),M84,NA()),IF($E$4=2,IF(ISNUMBER(M85),M85,NA()),NA())) -> 0 | N83: =IF($E$4=1,IF(ISNUMBER(N84),N84,NA()),IF($E$4=2,IF(ISNUMBER(N85),N85,NA()),NA())) -> 0 | O83: =IF($E$4=1,IF(ISNUMBER(O84),O84,NA()),IF($E$4=2,IF(ISNUMBER(O85),O85,NA()),NA())) -> 0 | P83: =IF($E$4=1,IF(ISNUMBER(P84),P84,NA()),IF($E$4=2,IF(ISNUMBER(P85),P85,NA()),NA())) -> 0
C84: Base | M84: 0 | N84: 0 | O84: 0 | P84: 0
C85: Downside | M85: 0 | N85: 0 | O85: 0 | P85: 0
C86: CW-03 Committed share of remaining cost — active | E86: ='Actual inputs'!E34 -> 72.0% | F86: ='Actual inputs'!F34 -> 72.0% | G86: ='Actual inputs'!G34 -> 72.0% | H86: ='Actual inputs'!H34 -> 72.0% | I86: ='Actual inputs'!I34 -> 72.0% | J86: ='Actual inputs'!J34 -> 72.0% | K86: ='Actual inputs'!K34 -> 72.0% | L86: ='Actual inputs'!L34 -> 72.0% | M86: =IF($E$4=1,IF(ISNUMBER(M87),M87,NA()),IF($E$4=2,IF(ISNUMBER(M88),M88,NA()),NA())) -> 78.0% | N86: =IF($E$4=1,IF(ISNUMBER(N87),N87,NA()),IF($E$4=2,IF(ISNUMBER(N88),N88,NA()),NA())) -> 78.0% | O86: =IF($E$4=1,IF(ISNUMBER(O87),O87,NA()),IF($E$4=2,IF(ISNUMBER(O88),O88,NA()),NA())) -> 78.0% | P86: =IF($E$4=1,IF(ISNUMBER(P87),P87,NA()),IF($E$4=2,IF(ISNUMBER(P88),P88,NA()),NA())) -> 78.0%
C87: Base | M87: 78.0% | N87: 78.0% | O87: 78.0% | P87: 78.0%
C88: Downside | M88: 88.0% | N88: 88.0% | O88: 88.0% | P88: 88.0%
C89: CW-04 Cost incurred — active | E89: ='Actual inputs'!E35 -> 0 | F89: ='Actual inputs'!F35 -> 0 | G89: ='Actual inputs'!G35 -> 0 | H89: ='Actual inputs'!H35 -> 0 | I89: ='Actual inputs'!I35 -> €35,000 | J89: ='Actual inputs'!J35 -> €45,000 | K89: ='Actual inputs'!K35 -> €50,000 | L89: ='Actual inputs'!L35 -> €55,000 | M89: =IF($E$4=1,IF(ISNUMBER(M90),M90,NA()),IF($E$4=2,IF(ISNUMBER(M91),M91,NA()),NA())) -> €60,000 | N89: =IF($E$4=1,IF(ISNUMBER(N90),N90,NA()),IF($E$4=2,IF(ISNUMBER(N91),N91,NA()),NA())) -> €60,000 | O89: =IF($E$4=1,IF(ISNUMBER(O90),O90,NA()),IF($E$4=2,IF(ISNUMBER(O91),O91,NA()),NA())) -> €60,000 | P89: =IF($E$4=1,IF(ISNUMBER(P90),P90,NA()),IF($E$4=2,IF(ISNUMBER(P91),P91,NA()),NA())) -> €55,000
C90: Base | M90: 60,000 | N90: 60,000 | O90: 60,000 | P90: 55,000
C91: Downside | M91: 67,800 | N91: 67,800 | O91: 67,800 | P91: 62,150
C92: CW-04 Estimated total cost — active | E92: ='Actual inputs'!E36 -> €420,000 | F92: ='Actual inputs'!F36 -> €420,000 | G92: ='Actual inputs'!G36 -> €420,000 | H92: ='Actual inputs'!H36 -> €420,000 | I92: ='Actual inputs'!I36 -> €420,000 | J92: ='Actual inputs'!J36 -> €420,000 | K92: ='Actual inputs'!K36 -> €420,000 | L92: ='Actual inputs'!L36 -> €420,000 | M92: =IF($E$4=1,IF(ISNUMBER(M93),M93,NA()),IF($E$4=2,IF(ISNUMBER(M94),M94,NA()),NA())) -> €420,000 | N92: =IF($E$4=1,IF(ISNUMBER(N93),N93,NA()),IF($E$4=2,IF(ISNUMBER(N94),N94,NA()),NA())) -> €420,000 | O92: =IF($E$4=1,IF(ISNUMBER(O93),O93,NA()),IF($E$4=2,IF(ISNUMBER(O94),O94,NA()),NA())) -> €420,000 | P92: =IF($E$4=1,IF(ISNUMBER(P93),P93,NA()),IF($E$4=2,IF(ISNUMBER(P94),P94,NA()),NA())) -> €420,000
C93: Base | M93: 420,000 | N93: 420,000 | O93: 420,000 | P93: 420,000
C94: Downside | M94: 450,550 | N94: 450,550 | O94: 450,550 | P94: 450,550
C95: CW-04 Approved cumulative variations — active | E95: ='Actual inputs'!E37 -> 0 | F95: ='Actual inputs'!F37 -> 0 | G95: ='Actual inputs'!G37 -> 0 | H95: ='Actual inputs'!H37 -> 0 | I95: ='Actual inputs'!I37 -> 0 | J95: ='Actual inputs'!J37 -> €7,200 | K95: ='Actual inputs'!K37 -> €7,200 | L95: ='Actual inputs'!L37 -> €7,200 | M95: =IF($E$4=1,IF(ISNUMBER(M96),M96,NA()),IF($E$4=2,IF(ISNUMBER(M97),M97,NA()),NA())) -> €18,000 | N95: =IF($E$4=1,IF(ISNUMBER(N96),N96,NA()),IF($E$4=2,IF(ISNUMBER(N97),N97,NA()),NA())) -> €18,000 | O95: =IF($E$4=1,IF(ISNUMBER(O96),O96,NA()),IF($E$4=2,IF(ISNUMBER(O97),O97,NA()),NA())) -> €18,000 | P95: =IF($E$4=1,IF(ISNUMBER(P96),P96,NA()),IF($E$4=2,IF(ISNUMBER(P97),P97,NA()),NA())) -> €18,000
C96: Base | M96: 18,000 | N96: 18,000 | O96: 18,000 | P96: 18,000
C97: Downside | M97: 7,200 | N97: 7,200 | O97: 10,800 | P97: 10,800
C98: CW-04 Gross progress billing — active | E98: ='Actual inputs'!E38 -> 0 | F98: ='Actual inputs'!F38 -> 0 | G98: ='Actual inputs'!G38 -> 0 | H98: ='Actual inputs'!H38 -> 0 | I98: ='Actual inputs'!I38 -> €40,600 | J98: ='Actual inputs'!J38 -> €52,871 | K98: ='Actual inputs'!K38 -> €58,746 | L98: ='Actual inputs'!L38 -> €64,620 | M98: =IF($E$4=1,IF(ISNUMBER(M99),M99,NA()),IF($E$4=2,IF(ISNUMBER(M100),M100,NA()),NA())) -> €86,700 | N98: =IF($E$4=1,IF(ISNUMBER(N99),N99,NA()),IF($E$4=2,IF(ISNUMBER(N100),N100,NA()),NA())) -> €86,700 | O98: =IF($E$4=1,IF(ISNUMBER(O99),O99,NA()),IF($E$4=2,IF(ISNUMBER(O100),O100,NA()),NA())) -> €86,700 | P98: =IF($E$4=1,IF(ISNUMBER(P99),P99,NA()),IF($E$4=2,IF(ISNUMBER(P100),P100,NA()),NA())) -> €101,063
C99: Base | M99: 86,700 | N99: 86,700 | O99: 86,700 | P99: 101,063
C100: Downside | M100: 71,094 | N100: 71,094 | O100: 71,094 | P100: 88,935
C101: CW-04 Retention released into receivables — active | E101: ='Actual inputs'!E39 -> 0 | F101: ='Actual inputs'!F39 -> 0 | G101: ='Actual inputs'!G39 -> 0 | H101: ='Actual inputs'!H39 -> 0 | I101: ='Actual inputs'!I39 -> 0 | J101: ='Actual inputs'!J39 -> 0 | K101: ='Actual inputs'!K39 -> 0 | L101: ='Actual inputs'!L39 -> 0 | M101: =IF($E$4=1,IF(ISNUMBER(M102),M102,NA()),IF($E$4=2,IF(ISNUMBER(M103),M103,NA()),NA())) -> 0 | N101: =IF($E$4=1,IF(ISNUMBER(N102),N102,NA()),IF($E$4=2,IF(ISNUMBER(N103),N103,NA()),NA())) -> 0 | O101: =IF($E$4=1,IF(ISNUMBER(O102),O102,NA()),IF($E$4=2,IF(ISNUMBER(O103),O103,NA()),NA())) -> 0 | P101: =IF($E$4=1,IF(ISNUMBER(P102),P102,NA()),IF($E$4=2,IF(ISNUMBER(P103),P103,NA()),NA())) -> 0
C102: Base | M102: 0 | N102: 0 | O102: 0 | P102: 0
C103: Downside | M103: 0 | N103: 0 | O103: 0 | P103: 0
C104: CW-04 Committed share of remaining cost — active | E104: ='Actual inputs'!E40 -> 72.0% | F104: ='Actual inputs'!F40 -> 72.0% | G104: ='Actual inputs'!G40 -> 72.0% | H104: ='Actual inputs'!H40 -> 72.0% | I104: ='Actual inputs'!I40 -> 72.0% | J104: ='Actual inputs'!J40 -> 72.0% | K104: ='Actual inputs'!K40 -> 72.0% | L104: ='Actual inputs'!L40 -> 72.0% | M104: =IF($E$4=1,IF(ISNUMBER(M105),M105,NA()),IF($E$4=2,IF(ISNUMBER(M106),M106,NA()),NA())) -> 78.0% | N104: =IF($E$4=1,IF(ISNUMBER(N105),N105,NA()),IF($E$4=2,IF(ISNUMBER(N106),N106,NA()),NA())) -> 78.0% | O104: =IF($E$4=1,IF(ISNUMBER(O105),O105,NA()),IF($E$4=2,IF(ISNUMBER(O106),O106,NA()),NA())) -> 78.0% | P104: =IF($E$4=1,IF(ISNUMBER(P105),P105,NA()),IF($E$4=2,IF(ISNUMBER(P106),P106,NA()),NA())) -> 78.0%
C105: Base | M105: 78.0% | N105: 78.0% | O105: 78.0% | P105: 78.0%
C106: Downside | M106: 88.0% | N106: 88.0% | O106: 88.0% | P106: 88.0%
C107: CW-05 Cost incurred — active | E107: ='Actual inputs'!E41 -> 0 | F107: ='Actual inputs'!F41 -> 0 | G107: ='Actual inputs'!G41 -> 0 | H107: ='Actual inputs'!H41 -> 0 | I107: ='Actual inputs'!I41 -> 0 | J107: ='Actual inputs'!J41 -> 0 | K107: ='Actual inputs'!K41 -> €40,000 | L107: ='Actual inputs'!L41 -> €55,000 | M107: =IF($E$4=1,IF(ISNUMBER(M108),M108,NA()),IF($E$4=2,IF(ISNUMBER(M109),M109,NA()),NA())) -> €70,000 | N107: =IF($E$4=1,IF(ISNUMBER(N108),N108,NA()),IF($E$4=2,IF(ISNUMBER(N109),N109,NA()),NA())) -> €80,000 | O107: =IF($E$4=1,IF(ISNUMBER(O108),O108,NA()),IF($E$4=2,IF(ISNUMBER(O109),O109,NA()),NA())) -> €100,000 | P107: =IF($E$4=1,IF(ISNUMBER(P108),P108,NA()),IF($E$4=2,IF(ISNUMBER(P109),P109,NA()),NA())) -> €115,000
C108: Base | M108: 70,000 | N108: 80,000 | O108: 100,000 | P108: 115,000
C109: Downside | M109: 79,100 | N109: 90,400 | O109: 113,000 | P109: 129,950
C110: CW-05 Estimated total cost — active | E110: ='Actual inputs'!E42 -> €460,000 | F110: ='Actual inputs'!F42 -> €460,000 | G110: ='Actual inputs'!G42 -> €460,000 | H110: ='Actual inputs'!H42 -> €460,000 | I110: ='Actual inputs'!I42 -> €460,000 | J110: ='Actual inputs'!J42 -> €460,000 | K110: ='Actual inputs'!K42 -> €460,000 | L110: ='Actual inputs'!L42 -> €460,000 | M110: =IF($E$4=1,IF(ISNUMBER(M111),M111,NA()),IF($E$4=2,IF(ISNUMBER(M112),M112,NA()),NA())) -> €460,000 | N110: =IF($E$4=1,IF(ISNUMBER(N111),N111,NA()),IF($E$4=2,IF(ISNUMBER(N112),N112,NA()),NA())) -> €460,000 | O110: =IF($E$4=1,IF(ISNUMBER(O111),O111,NA()),IF($E$4=2,IF(ISNUMBER(O112),O112,NA()),NA())) -> €460,000 | P110: =IF($E$4=1,IF(ISNUMBER(P111),P111,NA()),IF($E$4=2,IF(ISNUMBER(P112),P112,NA()),NA())) -> €460,000
C111: Base | M111: 460,000 | N111: 460,000 | O111: 460,000 | P111: 460,000
C112: Downside | M112: 507,450 | N112: 507,450 | O112: 507,450 | P112: 507,450
C113: CW-05 Approved cumulative variations — active | E113: ='Actual inputs'!E43 -> 0 | F113: ='Actual inputs'!F43 -> 0 | G113: ='Actual inputs'!G43 -> 0 | H113: ='Actual inputs'!H43 -> 0 | I113: ='Actual inputs'!I43 -> 0 | J113: ='Actual inputs'!J43 -> €8,800 | K113: ='Actual inputs'!K43 -> €8,800 | L113: ='Actual inputs'!L43 -> €8,800 | M113: =IF($E$4=1,IF(ISNUMBER(M114),M114,NA()),IF($E$4=2,IF(ISNUMBER(M115),M115,NA()),NA())) -> €22,000 | N113: =IF($E$4=1,IF(ISNUMBER(N114),N114,NA()),IF($E$4=2,IF(ISNUMBER(N115),N115,NA()),NA())) -> €22,000 | O113: =IF($E$4=1,IF(ISNUMBER(O114),O114,NA()),IF($E$4=2,IF(ISNUMBER(O115),O115,NA()),NA())) -> €22,000 | P113: =IF($E$4=1,IF(ISNUMBER(P114),P114,NA()),IF($E$4=2,IF(ISNUMBER(P115),P115,NA()),NA())) -> €22,000
C114: Base | M114: 22,000 | N114: 22,000 | O114: 22,000 | P114: 22,000
C115: Downside | M115: 8,800 | N115: 8,800 | O115: 13,200 | P115: 13,200
C116: CW-05 Gross progress billing — active | E116: ='Actual inputs'!E44 -> 0 | F116: ='Actual inputs'!F44 -> 0 | G116: ='Actual inputs'!G44 -> 0 | H116: ='Actual inputs'!H44 -> 0 | I116: ='Actual inputs'!I44 -> 0 | J116: ='Actual inputs'!J44 -> 0 | K116: ='Actual inputs'!K44 -> €47,570 | L116: ='Actual inputs'!L44 -> €65,409 | M116: =IF($E$4=1,IF(ISNUMBER(M117),M117,NA()),IF($E$4=2,IF(ISNUMBER(M118),M118,NA()),NA())) -> €102,580 | N116: =IF($E$4=1,IF(ISNUMBER(N117),N117,NA()),IF($E$4=2,IF(ISNUMBER(N118),N118,NA()),NA())) -> €117,235 | O116: =IF($E$4=1,IF(ISNUMBER(O117),O117,NA()),IF($E$4=2,IF(ISNUMBER(O118),O118,NA()),NA())) -> €146,543 | P116: =IF($E$4=1,IF(ISNUMBER(P117),P117,NA()),IF($E$4=2,IF(ISNUMBER(P118),P118,NA()),NA())) -> €162,662
C117: Base | M117: 102,580 | N117: 117,235 | O117: 146,543 | P117: 162,662
C118: Downside | M118: 84,116 | N118: 96,133 | O118: 120,166 | P118: 143,143
C119: CW-05 Retention released into receivables — active | E119: ='Actual inputs'!E45 -> 0 | F119: ='Actual inputs'!F45 -> 0 | G119: ='Actual inputs'!G45 -> 0 | H119: ='Actual inputs'!H45 -> 0 | I119: ='Actual inputs'!I45 -> 0 | J119: ='Actual inputs'!J45 -> 0 | K119: ='Actual inputs'!K45 -> 0 | L119: ='Actual inputs'!L45 -> 0 | M119: =IF($E$4=1,IF(ISNUMBER(M120),M120,NA()),IF($E$4=2,IF(ISNUMBER(M121),M121,NA()),NA())) -> 0 | N119: =IF($E$4=1,IF(ISNUMBER(N120),N120,NA()),IF($E$4=2,IF(ISNUMBER(N121),N121,NA()),NA())) -> 0 | O119: =IF($E$4=1,IF(ISNUMBER(O120),O120,NA()),IF($E$4=2,IF(ISNUMBER(O121),O121,NA()),NA())) -> 0 | P119: =IF($E$4=1,IF(ISNUMBER(P120),P120,NA()),IF($E$4=2,IF(ISNUMBER(P121),P121,NA()),NA())) -> 0
C120: Base | M120: 0 | N120: 0 | O120: 0 | P120: 0
C121: Downside | M121: 0 | N121: 0 | O121: 0 | P121: 0
C122: CW-05 Committed share of remaining cost — active | E122: ='Actual inputs'!E46 -> 72.0% | F122: ='Actual inputs'!F46 -> 72.0% | G122: ='Actual inputs'!G46 -> 72.0% | H122: ='Actual inputs'!H46 -> 72.0% | I122: ='Actual inputs'!I46 -> 72.0% | J122: ='Actual inputs'!J46 -> 72.0% | K122: ='Actual inputs'!K46 -> 72.0% | L122: ='Actual inputs'!L46 -> 72.0% | M122: =IF($E$4=1,IF(ISNUMBER(M123),M123,NA()),IF($E$4=2,IF(ISNUMBER(M124),M124,NA()),NA())) -> 78.0% | N122: =IF($E$4=1,IF(ISNUMBER(N123),N123,NA()),IF($E$4=2,IF(ISNUMBER(N124),N124,NA()),NA())) -> 78.0% | O122: =IF($E$4=1,IF(ISNUMBER(O123),O123,NA()),IF($E$4=2,IF(ISNUMBER(O124),O124,NA()),NA())) -> 78.0% | P122: =IF($E$4=1,IF(ISNUMBER(P123),P123,NA()),IF($E$4=2,IF(ISNUMBER(P124),P124,NA()),NA())) -> 78.0%
C123: Base | M123: 78.0% | N123: 78.0% | O123: 78.0% | P123: 78.0%
C124: Downside | M124: 88.0% | N124: 88.0% | O124: 88.0% | P124: 88.0%
C125: CW-06 Cost incurred — active | E125: ='Actual inputs'!E47 -> 0 | F125: ='Actual inputs'!F47 -> 0 | G125: ='Actual inputs'!G47 -> 0 | H125: ='Actual inputs'!H47 -> €40,000 | I125: ='Actual inputs'!I47 -> €45,000 | J125: ='Actual inputs'!J47 -> €50,000 | K125: ='Actual inputs'!K47 -> €55,000 | L125: ='Actual inputs'!L47 -> €60,000 | M125: =IF($E$4=1,IF(ISNUMBER(M126),M126,NA()),IF($E$4=2,IF(ISNUMBER(M127),M127,NA()),NA())) -> €70,000 | N125: =IF($E$4=1,IF(ISNUMBER(N126),N126,NA()),IF($E$4=2,IF(ISNUMBER(N127),N127,NA()),NA())) -> €70,000 | O125: =IF($E$4=1,IF(ISNUMBER(O126),O126,NA()),IF($E$4=2,IF(ISNUMBER(O127),O127,NA()),NA())) -> €80,000 | P125: =IF($E$4=1,IF(ISNUMBER(P126),P126,NA()),IF($E$4=2,IF(ISNUMBER(P127),P127,NA()),NA())) -> €90,000
C126: Base | M126: 70,000 | N126: 70,000 | O126: 80,000 | P126: 90,000
C127: Downside | M127: 79,100 | N127: 79,100 | O127: 90,400 | P127: 101,700
C128: CW-06 Estimated total cost — active | E128: ='Actual inputs'!E48 -> €560,000 | F128: ='Actual inputs'!F48 -> €560,000 | G128: ='Actual inputs'!G48 -> €560,000 | H128: ='Actual inputs'!H48 -> €560,000 | I128: ='Actual inputs'!I48 -> €560,000 | J128: ='Actual inputs'!J48 -> €560,000 | K128: ='Actual inputs'!K48 -> €560,000 | L128: ='Actual inputs'!L48 -> €560,000 | M128: =IF($E$4=1,IF(ISNUMBER(M129),M129,NA()),IF($E$4=2,IF(ISNUMBER(M130),M130,NA()),NA())) -> €560,000 | N128: =IF($E$4=1,IF(ISNUMBER(N129),N129,NA()),IF($E$4=2,IF(ISNUMBER(N130),N130,NA()),NA())) -> €560,000 | O128: =IF($E$4=1,IF(ISNUMBER(O129),O129,NA()),IF($E$4=2,IF(ISNUMBER(O130),O130,NA()),NA())) -> €560,000 | P128: =IF($E$4=1,IF(ISNUMBER(P129),P129,NA()),IF($E$4=2,IF(ISNUMBER(P130),P130,NA()),NA())) -> €560,000
C129: Base | M129: 560,000 | N129: 560,000 | O129: 560,000 | P129: 560,000
C130: Downside | M130: 600,300 | N130: 600,300 | O130: 600,300 | P130: 600,300
C131: CW-06 Approved cumulative variations — active | E131: ='Actual inputs'!E49 -> 0 | F131: ='Actual inputs'!F49 -> 0 | G131: ='Actual inputs'!G49 -> 0 | H131: ='Actual inputs'!H49 -> 0 | I131: ='Actual inputs'!I49 -> 0 | J131: ='Actual inputs'!J49 -> €10,400 | K131: ='Actual inputs'!K49 -> €10,400 | L131: ='Actual inputs'!L49 -> €10,400 | M131: =IF($E$4=1,IF(ISNUMBER(M132),M132,NA()),IF($E$4=2,IF(ISNUMBER(M133),M133,NA()),NA())) -> €26,000 | N131: =IF($E$4=1,IF(ISNUMBER(N132),N132,NA()),IF($E$4=2,IF(ISNUMBER(N133),N133,NA()),NA())) -> €26,000 | O131: =IF($E$4=1,IF(ISNUMBER(O132),O132,NA()),IF($E$4=2,IF(ISNUMBER(O133),O133,NA()),NA())) -> €26,000 | P131: =IF($E$4=1,IF(ISNUMBER(P132),P132,NA()),IF($E$4=2,IF(ISNUMBER(P133),P133,NA()),NA())) -> €26,000
C132: Base | M132: 26,000 | N132: 26,000 | O132: 26,000 | P132: 26,000
C133: Downside | M133: 10,400 | N133: 10,400 | O133: 15,600 | P133: 15,600
C134: CW-06 Gross progress billing — active | E134: ='Actual inputs'!E50 -> 0 | F134: ='Actual inputs'!F50 -> 0 | G134: ='Actual inputs'!G50 -> 0 | H134: ='Actual inputs'!H50 -> €46,607 | I134: ='Actual inputs'!I50 -> €52,433 | J134: ='Actual inputs'!J50 -> €59,067 | K134: ='Actual inputs'!K50 -> €64,973 | L134: ='Actual inputs'!L50 -> €70,880 | M134: =IF($E$4=1,IF(ISNUMBER(M135),M135,NA()),IF($E$4=2,IF(ISNUMBER(M136),M136,NA()),NA())) -> €101,850 | N134: =IF($E$4=1,IF(ISNUMBER(N135),N135,NA()),IF($E$4=2,IF(ISNUMBER(N136),N136,NA()),NA())) -> €101,850 | O134: =IF($E$4=1,IF(ISNUMBER(O135),O135,NA()),IF($E$4=2,IF(ISNUMBER(O136),O136,NA()),NA())) -> €116,400 | P134: =IF($E$4=1,IF(ISNUMBER(P135),P135,NA()),IF($E$4=2,IF(ISNUMBER(P136),P136,NA()),NA())) -> €161,939
C135: Base | M135: 101,850 | N135: 101,850 | O135: 116,400 | P135: 161,939
C136: Downside | M136: 83,517 | N136: 83,517 | O136: 95,448 | P136: 142,507
C137: CW-06 Retention released into receivables — active | E137: ='Actual inputs'!E51 -> 0 | F137: ='Actual inputs'!F51 -> 0 | G137: ='Actual inputs'!G51 -> 0 | H137: ='Actual inputs'!H51 -> 0 | I137: ='Actual inputs'!I51 -> 0 | J137: ='Actual inputs'!J51 -> 0 | K137: ='Actual inputs'!K51 -> 0 | L137: ='Actual inputs'!L51 -> 0 | M137: =IF($E$4=1,IF(ISNUMBER(M138),M138,NA()),IF($E$4=2,IF(ISNUMBER(M139),M139,NA()),NA())) -> 0 | N137: =IF($E$4=1,IF(ISNUMBER(N138),N138,NA()),IF($E$4=2,IF(ISNUMBER(N139),N139,NA()),NA())) -> 0 | O137: =IF($E$4=1,IF(ISNUMBER(O138),O138,NA()),IF($E$4=2,IF(ISNUMBER(O139),O139,NA()),NA())) -> 0 | P137: =IF($E$4=1,IF(ISNUMBER(P138),P138,NA()),IF($E$4=2,IF(ISNUMBER(P139),P139,NA()),NA())) -> 0
C138: Base | M138: 0 | N138: 0 | O138: 0 | P138: 0
C139: Downside | M139: 0 | N139: 0 | O139: 0 | P139: 0
C140: CW-06 Committed share of remaining cost — active | E140: ='Actual inputs'!E52 -> 72.0% | F140: ='Actual inputs'!F52 -> 72.0% | G140: ='Actual inputs'!G52 -> 72.0% | H140: ='Actual inputs'!H52 -> 72.0% | I140: ='Actual inputs'!I52 -> 72.0% | J140: ='Actual inputs'!J52 -> 72.0% | K140: ='Actual inputs'!K52 -> 72.0% | L140: ='Actual inputs'!L52 -> 72.0% | M140: =IF($E$4=1,IF(ISNUMBER(M141),M141,NA()),IF($E$4=2,IF(ISNUMBER(M142),M142,NA()),NA())) -> 78.0% | N140: =IF($E$4=1,IF(ISNUMBER(N141),N141,NA()),IF($E$4=2,IF(ISNUMBER(N142),N142,NA()),NA())) -> 78.0% | O140: =IF($E$4=1,IF(ISNUMBER(O141),O141,NA()),IF($E$4=2,IF(ISNUMBER(O142),O142,NA()),NA())) -> 78.0% | P140: =IF($E$4=1,IF(ISNUMBER(P141),P141,NA()),IF($E$4=2,IF(ISNUMBER(P142),P142,NA()),NA())) -> 78.0%
C141: Base | M141: 78.0% | N141: 78.0% | O141: 78.0% | P141: 78.0%
C142: Downside | M142: 88.0% | N142: 88.0% | O142: 88.0% | P142: 88.0%
C144: Shared accounting and cash assumptions
C146: Illustrative current tax rate | E146: 20.0%
C147: Annual debt interest rate | E147: 5.5%
C148: Minimum cash reserve | E148: 125,000
C149: Monthly principal repayment | E149: 6,500
C150: New asset useful life (months) | E150: 48
C151: Opening assets remaining life (months) | E151: 44

Sheet P&L
C2: P&L
C4: Selected case | E4: ='Assumptions'!$G$4 -> Base | H4: EUR. Entirely fictional.
E6: Actual | F6: Actual | G6: Actual | H6: Actual | I6: Actual | J6: Actual | K6: Actual | L6: Actual | M6: Forecast | N6: Forecast | O6: Forecast | P6: Forecast
E7: 2026-01-01 | F7: 2026-02-01 | G7: 2026-03-01 | H7: 2026-04-01 | I7: 2026-05-01 | J7: 2026-06-01 | K7: 2026-07-01 | L7: 2026-08-01 | M7: 2026-09-01 | N7: 2026-10-01 | O7: 2026-11-01 | P7: 2026-12-01
C8: Revenue | E8: ='Projects'!E171 -> €126,778 | F8: ='Projects'!F171 -> €139,889 | G8: ='Projects'!G171 -> €212,393 | H8: ='Projects'!H171 -> €287,175 | I8: ='Projects'!I171 -> €347,866 | J8: ='Projects'!J171 -> €397,330 | K8: ='Projects'!K171 -> €449,643 | L8: ='Projects'!L171 -> €469,596 | M8: ='Projects'!M171 -> €552,639 | N8: ='Projects'!N171 -> €507,114 | O8: ='Projects'!O171 -> €520,067 | P8: ='Projects'!P171 -> €527,511
C9: Direct payroll | E9: =-'Projects'!E185 -> (21,900) | F9: =-'Projects'!F185 -> (24,100) | G9: =-'Projects'!G185 -> (35,550) | H9: =-'Projects'!H185 -> (46,950) | I9: =-'Projects'!I185 -> (57,850) | J9: =-'Projects'!J185 -> (62,500) | K9: =-'Projects'!K185 -> (76,800) | L9: =-'Projects'!L185 -> (81,300) | M9: =-'Projects'!M185 -> (85,700) | N9: =-'Projects'!N185 -> (87,600) | O9: =-'Projects'!O185 -> (91,100) | P9: =-'Projects'!P185 -> (93,050)
C10: Materials | E10: =-'Projects'!E186 -> (44,100) | F10: =-'Projects'!F186 -> (48,900) | G10: =-'Projects'!G186 -> (72,000) | H10: =-'Projects'!H186 -> (99,000) | I10: =-'Projects'!I186 -> (117,800) | J10: =-'Projects'!J186 -> (126,600) | K10: =-'Projects'!K186 -> (146,200) | L10: =-'Projects'!L186 -> (151,700) | M10: =-'Projects'!M186 -> (157,300) | N10: =-'Projects'!N186 -> (158,700) | O10: =-'Projects'!O186 -> (161,900) | P10: =-'Projects'!P186 -> (163,400)
C11: Subcontractors | E11: =-'Projects'!E187 -> (29,000) | F11: =-'Projects'!F187 -> (32,000) | G11: =-'Projects'!G187 -> (47,450) | H11: =-'Projects'!H187 -> (64,050) | I11: =-'Projects'!I187 -> (79,350) | J11: =-'Projects'!J187 -> (85,900) | K11: =-'Projects'!K187 -> (102,000) | L11: =-'Projects'!L187 -> (107,000) | M11: =-'Projects'!M187 -> (112,000) | N11: =-'Projects'!N187 -> (113,700) | O11: =-'Projects'!O187 -> (117,000) | P11: =-'Projects'!P187 -> (118,550)
C12: Direct systems and software | E12: =-'Assumptions'!E17 -> (4,500) | F12: =-'Assumptions'!F17 -> (4,500) | G12: =-'Assumptions'!G17 -> (4,500) | H12: =-'Assumptions'!H17 -> (4,500) | I12: =-'Assumptions'!I17 -> (4,500) | J12: =-'Assumptions'!J17 -> (4,500) | K12: =-'Assumptions'!K17 -> (4,500) | L12: =-'Assumptions'!L17 -> (4,500) | M12: =-'Assumptions'!M17 -> (5,000) | N12: =-'Assumptions'!N17 -> (5,000) | O12: =-'Assumptions'!O17 -> (5,000) | P12: =-'Assumptions'!P17 -> (5,000)
C13: Unbilled recoverability charge / (release) | E13: =0 -> 0 | F13: =0 -> 0 | G13: =0 -> 0 | H13: =0 -> 0 | I13: =0 -> 0 | J13: =0 -> 0 | K13: =0 -> 0 | L13: =0 -> 0 | M13: =0 -> 0 | N13: =0 -> 0 | O13: =0 -> 0 | P13: =0 -> 0
C14: Direct costs | E14: =SUM(E9:E13) -> (€99,500) | F14: =SUM(F9:F13) -> (€109,500) | G14: =SUM(G9:G13) -> (€159,500) | H14: =SUM(H9:H13) -> (€214,500) | I14: =SUM(I9:I13) -> (€259,500) | J14: =SUM(J9:J13) -> (€279,500) | K14: =SUM(K9:K13) -> (€329,500) | L14: =SUM(L9:L13) -> (€344,500) | M14: =SUM(M9:M13) -> (€360,000) | N14: =SUM(N9:N13) -> (€365,000) | O14: =SUM(O9:O13) -> (€375,000) | P14: =SUM(P9:P13) -> (€380,000)
C15: Gross profit | E15: =E8+E14 -> €27,278 | F15: =F8+F14 -> €30,389 | G15: =G8+G14 -> €52,893 | H15: =H8+H14 -> €72,675 | I15: =I8+I14 -> €88,366 | J15: =J8+J14 -> €117,830 | K15: =K8+K14 -> €120,143 | L15: =L8+L14 -> €125,096 | M15: =M8+M14 -> €192,639 | N15: =N8+N14 -> €142,114 | O15: =O8+O14 -> €145,067 | P15: =P8+P14 -> €147,511
C16: Gross margin | E16: =E15/E8 -> 21.5% | F16: =F15/F8 -> 21.7% | G16: =G15/G8 -> 24.9% | H16: =H15/H8 -> 25.3% | I16: =I15/I8 -> 25.4% | J16: =J15/J8 -> 29.7% | K16: =K15/K8 -> 26.7% | L16: =L15/L8 -> 26.6% | M16: =M15/M8 -> 34.9% | N16: =N15/N8 -> 28.0% | O16: =O15/O8 -> 27.9% | P16: =P15/P8 -> 28.0%
C17: Management and administration payroll | E17: =-'Assumptions'!E8 -> (33,000) | F17: =-'Assumptions'!F8 -> (33,500) | G17: =-'Assumptions'!G8 -> (34,000) | H17: =-'Assumptions'!H8 -> (34,500) | I17: =-'Assumptions'!I8 -> (35,000) | J17: =-'Assumptions'!J8 -> (35,500) | K17: =-'Assumptions'!K8 -> (36,000) | L17: =-'Assumptions'!L8 -> (36,500) | M17: =-'Assumptions'!M8 -> (37,500) | N17: =-'Assumptions'!N8 -> (38,000) | O17: =-'Assumptions'!O8 -> (39,000) | P17: =-'Assumptions'!P8 -> (39,000)
C18: Business development | E18: =-'Assumptions'!E11 -> (6,500) | F18: =-'Assumptions'!F11 -> (6,500) | G18: =-'Assumptions'!G11 -> (6,500) | H18: =-'Assumptions'!H11 -> (6,500) | I18: =-'Assumptions'!I11 -> (6,500) | J18: =-'Assumptions'!J11 -> (6,500) | K18: =-'Assumptions'!K11 -> (6,500) | L18: =-'Assumptions'!L11 -> (6,500) | M18: =-'Assumptions'!M11 -> (7,000) | N18: =-'Assumptions'!N11 -> (7,000) | O18: =-'Assumptions'!O11 -> (7,000) | P18: =-'Assumptions'!P11 -> (7,000)
C19: Office, insurance and general costs | E19: =-'Assumptions'!E14 -> (9,500) | F19: =-'Assumptions'!F14 -> (9,500) | G19: =-'Assumptions'!G14 -> (9,500) | H19: =-'Assumptions'!H14 -> (9,500) | I19: =-'Assumptions'!I14 -> (9,500) | J19: =-'Assumptions'!J14 -> (9,500) | K19: =-'Assumptions'!K14 -> (9,500) | L19: =-'Assumptions'!L14 -> (9,500) | M19: =-'Assumptions'!M14 -> (10,000) | N19: =-'Assumptions'!N14 -> (10,000) | O19: =-'Assumptions'!O14 -> (10,000) | P19: =-'Assumptions'!P14 -> (10,000)
C20: Operating expenses | E20: =SUM(E17:E19) -> (€49,000) | F20: =SUM(F17:F19) -> (€49,500) | G20: =SUM(G17:G19) -> (€50,000) | H20: =SUM(H17:H19) -> (€50,500) | I20: =SUM(I17:I19) -> (€51,000) | J20: =SUM(J17:J19) -> (€51,500) | K20: =SUM(K17:K19) -> (€52,000) | L20: =SUM(L17:L19) -> (€52,500) | M20: =SUM(M17:M19) -> (€54,500) | N20: =SUM(N17:N19) -> (€55,000) | O20: =SUM(O17:O19) -> (€56,000) | P20: =SUM(P17:P19) -> (€56,000)
C21: EBITDA | E21: =E15+E20 -> (€21,722) | F21: =F15+F20 -> (€19,111) | G21: =G15+G20 -> €2,893 | H21: =H15+H20 -> €22,175 | I21: =I15+I20 -> €37,366 | J21: =J15+J20 -> €66,330 | K21: =K15+K20 -> €68,143 | L21: =L15+L20 -> €72,596 | M21: =M15+M20 -> €138,139 | N21: =N15+N20 -> €87,114 | O21: =O15+O20 -> €89,067 | P21: =P15+P20 -> €91,511
C22: EBITDA margin | E22: =E21/E8 -> (17.1%) | F22: =F21/F8 -> (13.7%) | G22: =G21/G8 -> 1.4% | H22: =H21/H8 -> 7.7% | I22: =I21/I8 -> 10.7% | J22: =J21/J8 -> 16.7% | K22: =K21/K8 -> 15.2% | L22: =L21/L8 -> 15.5% | M22: =M21/M8 -> 25.0% | N22: =N21/N8 -> 17.2% | O22: =O21/O8 -> 17.1% | P22: =P21/P8 -> 17.3%
C23: Depreciation | E23: ='Assets debt'!E9 -> (3,625) | F23: ='Assets debt'!F9 -> (3,708) | G23: ='Assets debt'!G9 -> (3,875) | H23: ='Assets debt'!H9 -> (4,000) | I23: ='Assets debt'!I9 -> (4,188) | J23: ='Assets debt'!J9 -> (4,292) | K23: ='Assets debt'!K9 -> (4,458) | L23: ='Assets debt'!L9 -> (4,583) | M23: ='Assets debt'!M9 -> (5,458) | N23: ='Assets debt'!N9 -> (5,646) | O23: ='Assets debt'!O9 -> (5,896) | P23: ='Assets debt'!P9 -> (6,063)
C24: EBIT | E24: =E21+E23 -> (€25,347) | F24: =F21+F23 -> (€22,819) | G24: =G21+G23 -> (€982) | H24: =H21+H23 -> €18,175 | I24: =I21+I23 -> €33,178 | J24: =J21+J23 -> €62,038 | K24: =K21+K23 -> €63,685 | L24: =L21+L23 -> €68,013 | M24: =M21+M23 -> €132,681 | N24: =N21+N23 -> €81,468 | O24: =O21+O23 -> €83,171 | P24: =P21+P23 -> €85,449
C25: Interest | E25: ='Assets debt'!E16 -> (1,238) | F25: ='Assets debt'!F16 -> (1,208) | G25: ='Assets debt'!G16 -> (1,178) | H25: ='Assets debt'!H16 -> (1,148) | I25: ='Assets debt'!I16 -> (1,118) | J25: ='Assets debt'!J16 -> (1,089) | K25: ='Assets debt'!K16 -> (1,059) | L25: ='Assets debt'!L16 -> (1,029) | M25: ='Assets debt'!M16 -> (999) | N25: ='Assets debt'!N16 -> (969) | O25: ='Assets debt'!O16 -> (940) | P25: ='Assets debt'!P16 -> (910)
C26: Profit before tax | E26: =E24+E25 -> (€26,585) | F26: =F24+F25 -> (€24,027) | G26: =G24+G25 -> (€2,160) | H26: =H24+H25 -> €17,027 | I26: =I24+I25 -> €32,060 | J26: =J24+J25 -> €60,950 | K26: =K24+K25 -> €62,626 | L26: =L24+L25 -> €66,984 | M26: =M24+M25 -> €131,682 | N26: =N24+N25 -> €80,498 | O26: =O24+O25 -> €82,232 | P26: =P24+P25 -> €84,539
C27: Illustrative current tax | E27: =-MAX(0,E26)*'Assumptions'!$E$146 -> 0 | F27: =-MAX(0,F26)*'Assumptions'!$E$146 -> 0 | G27: =-MAX(0,G26)*'Assumptions'!$E$146 -> 0 | H27: =-MAX(0,H26)*'Assumptions'!$E$146 -> (3,405) | I27: =-MAX(0,I26)*'Assumptions'!$E$146 -> (6,412) | J27: =-MAX(0,J26)*'Assumptions'!$E$146 -> (12,190) | K27: =-MAX(0,K26)*'Assumptions'!$E$146 -> (12,525) | L27: =-MAX(0,L26)*'Assumptions'!$E$146 -> (13,397) | M27: =-MAX(0,M26)*'Assumptions'!$E$146 -> (26,336) | N27: =-MAX(0,N26)*'Assumptions'!$E$146 -> (16,100) | O27: =-MAX(0,O26)*'Assumptions'!$E$146 -> (16,446) | P27: =-MAX(0,P26)*'Assumptions'!$E$146 -> (16,908)
C28: Net profit | E28: =E26+E27 -> (€26,585) | F28: =F26+F27 -> (€24,027) | G28: =G26+G27 -> (€2,160) | H28: =H26+H27 -> €13,621 | I28: =I26+I27 -> €25,648 | J28: =J26+J27 -> €48,760 | K28: =K26+K27 -> €50,101 | L28: =L26+L27 -> €53,587 | M28: =M26+M27 -> €105,345 | N28: =N26+N27 -> €64,399 | O28: =O26+O27 -> €65,785 | P28: =P26+P27 -> €67,631
C32: Original budget comparison
C34: Revenue versus budget | E34: ='P&L'!E8-'Budget'!E8 -> 0 | F34: ='P&L'!F8-'Budget'!F8 -> 0 | G34: ='P&L'!G8-'Budget'!G8 -> 0 | H34: ='P&L'!H8-'Budget'!H8 -> 0 | I34: ='P&L'!I8-'Budget'!I8 -> 0 | J34: ='P&L'!J8-'Budget'!J8 -> 22,107 | K34: ='P&L'!K8-'Budget'!K8 -> 6,372 | L34: ='P&L'!L8-'Budget'!L8 -> 6,627 | M34: ='P&L'!M8-'Budget'!M8 -> 69,833 | N34: ='P&L'!N8-'Budget'!N8 -> 17,384 | O34: ='P&L'!O8-'Budget'!O8 -> 17,755 | P34: ='P&L'!P8-'Budget'!P8 -> 17,922
C35: EBITDA versus budget | E35: ='P&L'!E21-'Budget'!E21 -> (1,650) | F35: ='P&L'!F21-'Budget'!F21 -> (1,675) | G35: ='P&L'!G21-'Budget'!G21 -> (1,700) | H35: ='P&L'!H21-'Budget'!H21 -> (1,725) | I35: ='P&L'!I21-'Budget'!I21 -> (1,750) | J35: ='P&L'!J21-'Budget'!J21 -> 20,332 | K35: ='P&L'!K21-'Budget'!K21 -> 4,572 | L35: ='P&L'!L21-'Budget'!L21 -> 4,802 | M35: ='P&L'!M21-'Budget'!M21 -> 67,958 | N35: ='P&L'!N21-'Budget'!N21 -> 15,484 | O35: ='P&L'!O21-'Budget'!O21 -> 15,805 | P35: ='P&L'!P21-'Budget'!P21 -> 15,972
C36: Revenue variance percentage | E36: =E34/'Budget'!E8 -> 0 | F36: =F34/'Budget'!F8 -> 0 | G36: =G34/'Budget'!G8 -> 0 | H36: =H34/'Budget'!H8 -> 0 | I36: =I34/'Budget'!I8 -> 0 | J36: =J34/'Budget'!J8 -> 5.9% | K36: =K34/'Budget'!K8 -> 1.4% | L36: =L34/'Budget'!L8 -> 1.4% | M36: =M34/'Budget'!M8 -> 14.5% | N36: =N34/'Budget'!N8 -> 3.5% | O36: =O34/'Budget'!O8 -> 3.5% | P36: =P34/'Budget'!P8 -> 3.5%

Sheet Balance sheet
C2: Balance sheet
C4: Selected case | E4: ='Assumptions'!$G$4 -> Base | H4: EUR. Entirely fictional.
E6: Actual | F6: Actual | G6: Actual | H6: Actual | I6: Actual | J6: Actual | K6: Actual | L6: Actual | M6: Forecast | N6: Forecast | O6: Forecast | P6: Forecast
E7: 2026-01-01 | F7: 2026-02-01 | G7: 2026-03-01 | H7: 2026-04-01 | I7: 2026-05-01 | J7: 2026-06-01 | K7: 2026-07-01 | L7: 2026-08-01 | M7: 2026-09-01 | N7: 2026-10-01 | O7: 2026-11-01 | P7: 2026-12-01
C8: Cash / (unfunded cash requirement) | E8: ='Cash flow'!E23 -> 797,859 | F8: ='Cash flow'!F23 -> 698,786 | G8: ='Cash flow'!G23 -> 607,265 | H8: ='Cash flow'!H23 -> 523,605 | I8: ='Cash flow'!I23 -> 457,077 | J8: ='Cash flow'!J23 -> 389,455 | K8: ='Cash flow'!K23 -> 331,533 | L8: ='Cash flow'!L23 -> 298,008 | M8: ='Cash flow'!M23 -> 345,334 | N8: ='Cash flow'!N23 -> 359,619 | O8: ='Cash flow'!O23 -> 425,600 | P8: ='Cash flow'!P23 -> 454,942
C9: Trade receivables | E9: ='Working capital'!E11 -> 104,782 | F9: ='Working capital'!F11 -> 165,169 | G9: ='Working capital'!G11 -> 226,507 | H9: ='Working capital'!H11 -> 316,467 | I9: ='Working capital'!I11 -> 370,982 | J9: ='Working capital'!J11 -> 419,481 | K9: ='Working capital'!K11 -> 479,523 | L9: ='Working capital'!L11 -> 500,801 | M9: ='Working capital'!M11 -> 573,850 | N9: ='Working capital'!N11 -> 587,434 | O9: ='Working capital'!O11 -> 605,228 | P9: ='Working capital'!P11 -> 894,863
C10: Contract asset / net unbilled work | E10: ='Working capital'!E19 -> 16,481 | F10: ='Working capital'!F19 -> 34,667 | G10: ='Working capital'!G19 -> 62,278 | H10: ='Working capital'!H19 -> 99,610 | I10: ='Working capital'!I19 -> 144,833 | J10: ='Working capital'!J19 -> 210,994 | K10: ='Working capital'!K19 -> 269,447 | L10: ='Working capital'!L19 -> 330,495 | M10: ='Working capital'!M19 -> 358,156 | N10: ='Working capital'!N19 -> 332,800 | O10: ='Working capital'!O19 -> 306,797 | P10: ='Working capital'!P19 -> 0
C11: Retention receivables | E11: ='Working capital'!E20 -> 5,515 | F11: ='Working capital'!F20 -> 11,600 | G11: ='Working capital'!G20 -> 20,839 | H11: ='Working capital'!H20 -> 33,331 | I11: ='Working capital'!I20 -> 48,463 | J11: ='Working capital'!J20 -> 65,022 | K11: ='Working capital'!K20 -> 84,581 | L11: ='Working capital'!L20 -> 105,009 | M11: ='Working capital'!M20 -> 131,258 | N11: ='Working capital'!N20 -> 157,881 | O11: ='Working capital'!O20 -> 185,185 | P11: ='Working capital'!P20 -> 226,900
C12: Prepayments | E12: ='Actual inputs'!$E$65 -> 18,000 | F12: ='Actual inputs'!$E$65 -> 18,000 | G12: ='Actual inputs'!$E$65 -> 18,000 | H12: ='Actual inputs'!$E$65 -> 18,000 | I12: ='Actual inputs'!$E$65 -> 18,000 | J12: ='Actual inputs'!$E$65 -> 18,000 | K12: ='Actual inputs'!$E$65 -> 18,000 | L12: ='Actual inputs'!$E$65 -> 18,000 | M12: ='Actual inputs'!$E$65 -> 18,000 | N12: ='Actual inputs'!$E$65 -> 18,000 | O12: ='Actual inputs'!$E$65 -> 18,000 | P12: ='Actual inputs'!$E$65 -> 18,000
C13: Current tax prepayment | E13: ='Assets debt'!E22 -> 0 | F13: ='Assets debt'!F22 -> 0 | G13: ='Assets debt'!G22 -> 0 | H13: ='Assets debt'!H22 -> 0 | I13: ='Assets debt'!I22 -> 0 | J13: ='Assets debt'!J22 -> 0 | K13: ='Assets debt'!K22 -> 0 | L13: ='Assets debt'!L22 -> 0 | M13: ='Assets debt'!M22 -> 0 | N13: ='Assets debt'!N22 -> 0 | O13: ='Assets debt'!O22 -> 0 | P13: ='Assets debt'!P22 -> 0
C14: Current assets | E14: =SUM(E8:E13) -> €942,637 | F14: =SUM(F8:F13) -> €928,221 | G14: =SUM(G8:G13) -> €934,888 | H14: =SUM(H8:H13) -> €991,013 | I14: =SUM(I8:I13) -> €1,039,355 | J14: =SUM(J8:J13) -> €1,102,952 | K14: =SUM(K8:K13) -> €1,183,084 | L14: =SUM(L8:L13) -> €1,252,313 | M14: =SUM(M8:M13) -> €1,426,597 | N14: =SUM(N8:N13) -> €1,455,734 | O14: =SUM(O8:O13) -> €1,540,810 | P14: =SUM(P8:P13) -> €1,594,705
C15: Fixed assets at cost | E15: ='Assets debt'!E8 -> 226,000 | F15: ='Assets debt'!F8 -> 230,000 | G15: ='Assets debt'!G8 -> 238,000 | H15: ='Assets debt'!H8 -> 244,000 | I15: ='Assets debt'!I8 -> 253,000 | J15: ='Assets debt'!J8 -> 258,000 | K15: ='Assets debt'!K8 -> 266,000 | L15: ='Assets debt'!L8 -> 272,000 | M15: ='Assets debt'!M8 -> 314,000 | N15: ='Assets debt'!N8 -> 323,000 | O15: ='Assets debt'!O8 -> 335,000 | P15: ='Assets debt'!P8 -> 343,000
C16: Accumulated depreciation | E16: ='Assets debt'!E10 -> 69,625 | F16: ='Assets debt'!F10 -> 73,333 | G16: ='Assets debt'!G10 -> 77,208 | H16: ='Assets debt'!H10 -> 81,208 | I16: ='Assets debt'!I10 -> 85,396 | J16: ='Assets debt'!J10 -> 89,688 | K16: ='Assets debt'!K10 -> 94,146 | L16: ='Assets debt'!L10 -> 98,729 | M16: ='Assets debt'!M10 -> 104,188 | N16: ='Assets debt'!N10 -> 109,833 | O16: ='Assets debt'!O10 -> 115,729 | P16: ='Assets debt'!P10 -> 121,792
C17: Net fixed assets | E17: ='Assets debt'!E11 -> €156,375 | F17: ='Assets debt'!F11 -> €156,667 | G17: ='Assets debt'!G11 -> €160,792 | H17: ='Assets debt'!H11 -> €162,792 | I17: ='Assets debt'!I11 -> €167,604 | J17: ='Assets debt'!J11 -> €168,313 | K17: ='Assets debt'!K11 -> €171,854 | L17: ='Assets debt'!L11 -> €173,271 | M17: ='Assets debt'!M11 -> €209,813 | N17: ='Assets debt'!N11 -> €213,167 | O17: ='Assets debt'!O11 -> €219,271 | P17: ='Assets debt'!P11 -> €221,208
C18: Total assets | E18: =E14+E17 -> €1,099,012 | F18: =F14+F17 -> €1,084,888 | G18: =G14+G17 -> €1,095,680 | H18: =H14+H17 -> €1,153,805 | I18: =I14+I17 -> €1,206,960 | J18: =J14+J17 -> €1,271,264 | K18: =K14+K17 -> €1,354,939 | L18: =L14+L17 -> €1,425,584 | M18: =M14+M17 -> €1,636,410 | N18: =N14+N17 -> €1,668,901 | O18: =O14+O17 -> €1,760,080 | P18: =P14+P17 -> €1,815,913
C19: Trade payables | E19: ='Working capital'!E16 -> 75,097 | F19: ='Working capital'!F16 -> 91,500 | G19: ='Working capital'!G16 -> 119,952 | H19: ='Working capital'!H16 -> 167,550 | I19: ='Working capital'!I16 -> 195,145 | J19: ='Working capital'!J16 -> 217,000 | K19: ='Working capital'!K16 -> 244,548 | L19: ='Working capital'!L16 -> 254,710 | M19: ='Working capital'!M16 -> 358,354 | N19: ='Working capital'!N16 -> 316,846 | O19: ='Working capital'!O16 -> 332,295 | P19: ='Working capital'!P16 -> 326,088
C20: Payroll accruals | E20: ='Actual inputs'!$E$63 -> 22,000 | F20: ='Actual inputs'!$E$63 -> 22,000 | G20: ='Actual inputs'!$E$63 -> 22,000 | H20: ='Actual inputs'!$E$63 -> 22,000 | I20: ='Actual inputs'!$E$63 -> 22,000 | J20: ='Actual inputs'!$E$63 -> 22,000 | K20: ='Actual inputs'!$E$63 -> 22,000 | L20: ='Actual inputs'!$E$63 -> 22,000 | M20: ='Actual inputs'!$E$63 -> 22,000 | N20: ='Actual inputs'!$E$63 -> 22,000 | O20: ='Actual inputs'!$E$63 -> 22,000 | P20: ='Actual inputs'!$E$63 -> 22,000
C21: Contract liabilities / customer advances | E21: ='Working capital'!E21 -> 0 | F21: ='Working capital'!F21 -> 0 | G21: ='Working capital'!G21 -> 0 | H21: ='Working capital'!H21 -> 0 | I21: ='Working capital'!I21 -> 0 | J21: ='Working capital'!J21 -> 0 | K21: ='Working capital'!K21 -> 0 | L21: ='Working capital'!L21 -> 0 | M21: ='Working capital'!M21 -> 0 | N21: ='Working capital'!N21 -> 0 | O21: ='Working capital'!O21 -> 0 | P21: ='Working capital'!P21 -> 0
C22: Current tax payable | E22: ='Assets debt'!E21 -> 10,000 | F22: ='Assets debt'!F21 -> 10,000 | G22: ='Assets debt'!G21 -> 1,000 | H22: ='Assets debt'!H21 -> 4,405 | I22: ='Assets debt'!I21 -> 10,817 | J22: ='Assets debt'!J21 -> 11,007 | K22: ='Assets debt'!K21 -> 23,532 | L22: ='Assets debt'!L21 -> 36,929 | M22: ='Assets debt'!M21 -> 45,266 | N22: ='Assets debt'!N21 -> 61,365 | O22: ='Assets debt'!O21 -> 77,812 | P22: ='Assets debt'!P21 -> 78,719
C23: Current operating liabilities | E23: =SUM(E19:E22) -> €107,097 | F23: =SUM(F19:F22) -> €123,500 | G23: =SUM(G19:G22) -> €142,952 | H23: =SUM(H19:H22) -> €193,955 | I23: =SUM(I19:I22) -> €227,962 | J23: =SUM(J19:J22) -> €250,007 | K23: =SUM(K19:K22) -> €290,081 | L23: =SUM(L19:L22) -> €313,639 | M23: =SUM(M19:M22) -> €425,620 | N23: =SUM(N19:N22) -> €400,212 | O23: =SUM(O19:O22) -> €432,106 | P23: =SUM(P19:P22) -> €426,808
C24: Debt | E24: ='Assets debt'!E15 -> 263,500 | F24: ='Assets debt'!F15 -> 257,000 | G24: ='Assets debt'!G15 -> 250,500 | H24: ='Assets debt'!H15 -> 244,000 | I24: ='Assets debt'!I15 -> 237,500 | J24: ='Assets debt'!J15 -> 231,000 | K24: ='Assets debt'!K15 -> 224,500 | L24: ='Assets debt'!L15 -> 218,000 | M24: ='Assets debt'!M15 -> 211,500 | N24: ='Assets debt'!N15 -> 205,000 | O24: ='Assets debt'!O15 -> 198,500 | P24: ='Assets debt'!P15 -> 192,000
C25: Total liabilities | E25: =E23+E24 -> €370,597 | F25: =F23+F24 -> €380,500 | G25: =G23+G24 -> €393,452 | H25: =H23+H24 -> €437,955 | I25: =I23+I24 -> €465,462 | J25: =J23+J24 -> €481,007 | K25: =K23+K24 -> €514,581 | L25: =L23+L24 -> €531,639 | M25: =M23+M24 -> €637,120 | N25: =N23+N24 -> €605,212 | O25: =O23+O24 -> €630,606 | P25: =P23+P24 -> €618,808
C26: Share capital | E26: ='Actual inputs'!$E$69 -> 50,000 | F26: ='Actual inputs'!$E$69 -> 50,000 | G26: ='Actual inputs'!$E$69 -> 50,000 | H26: ='Actual inputs'!$E$69 -> 50,000 | I26: ='Actual inputs'!$E$69 -> 50,000 | J26: ='Actual inputs'!$E$69 -> 50,000 | K26: ='Actual inputs'!$E$69 -> 50,000 | L26: ='Actual inputs'!$E$69 -> 50,000 | M26: ='Actual inputs'!$E$69 -> 50,000 | N26: ='Actual inputs'!$E$69 -> 50,000 | O26: ='Actual inputs'!$E$69 -> 50,000 | P26: ='Actual inputs'!$E$69 -> 50,000
C27: Retained earnings | E27: ='Actual inputs'!$E$70+'P&L'!E28 -> 678,415 | F27: =E27+'P&L'!F28 -> 654,388 | G27: =F27+'P&L'!G28 -> 652,228 | H27: =G27+'P&L'!H28 -> 665,849 | I27: =H27+'P&L'!I28 -> 691,497 | J27: =I27+'P&L'!J28 -> 740,257 | K27: =J27+'P&L'!K28 -> 790,358 | L27: =K27+'P&L'!L28 -> 843,945 | M27: =L27+'P&L'!M28 -> 949,290 | N27: =M27+'P&L'!N28 -> 1,013,689 | O27: =N27+'P&L'!O28 -> 1,079,474 | P27: =O27+'P&L'!P28 -> 1,147,105
C28: Equity | E28: =E26+E27 -> €728,415 | F28: =F26+F27 -> €704,388 | G28: =G26+G27 -> €702,228 | H28: =H26+H27 -> €715,849 | I28: =I26+I27 -> €741,497 | J28: =J26+J27 -> €790,257 | K28: =K26+K27 -> €840,358 | L28: =L26+L27 -> €893,945 | M28: =M26+M27 -> €999,290 | N28: =N26+N27 -> €1,063,689 | O28: =O26+O27 -> €1,129,474 | P28: =P26+P27 -> €1,197,105
C29: Liabilities and equity | E29: =E25+E28 -> €1,099,012 | F29: =F25+F28 -> €1,084,888 | G29: =G25+G28 -> €1,095,680 | H29: =H25+H28 -> €1,153,805 | I29: =I25+I28 -> €1,206,960 | J29: =J25+J28 -> €1,271,264 | K29: =K25+K28 -> €1,354,939 | L29: =L25+L28 -> €1,425,584 | M29: =M25+M28 -> €1,636,410 | N29: =N25+N28 -> €1,668,901 | O29: =O25+O28 -> €1,760,080 | P29: =P25+P28 -> €1,815,913

Sheet Cash flow
C2: Cash flow
C4: Selected case | E4: ='Assumptions'!$G$4 -> Base | H4: EUR. Entirely fictional.
E6: Actual | F6: Actual | G6: Actual | H6: Actual | I6: Actual | J6: Actual | K6: Actual | L6: Actual | M6: Forecast | N6: Forecast | O6: Forecast | P6: Forecast
E7: 2026-01-01 | F7: 2026-02-01 | G7: 2026-03-01 | H7: 2026-04-01 | I7: 2026-05-01 | J7: 2026-06-01 | K7: 2026-07-01 | L7: 2026-08-01 | M7: 2026-09-01 | N7: 2026-10-01 | O7: 2026-11-01 | P7: 2026-12-01
C8: Net profit | E8: ='P&L'!E28 -> (26,585) | F8: ='P&L'!F28 -> (24,027) | G8: ='P&L'!G28 -> (2,160) | H8: ='P&L'!H28 -> 13,621 | I8: ='P&L'!I28 -> 25,648 | J8: ='P&L'!J28 -> 48,760 | K8: ='P&L'!K28 -> 50,101 | L8: ='P&L'!L28 -> 53,587 | M8: ='P&L'!M28 -> 105,345 | N8: ='P&L'!N28 -> 64,399 | O8: ='P&L'!O28 -> 65,785 | P8: ='P&L'!P28 -> 67,631
C9: Depreciation add-back | E9: =-'P&L'!E23 -> 3,625 | F9: =-'P&L'!F23 -> 3,708 | G9: =-'P&L'!G23 -> 3,875 | H9: =-'P&L'!H23 -> 4,000 | I9: =-'P&L'!I23 -> 4,188 | J9: =-'P&L'!J23 -> 4,292 | K9: =-'P&L'!K23 -> 4,458 | L9: =-'P&L'!L23 -> 4,583 | M9: =-'P&L'!M23 -> 5,458 | N9: =-'P&L'!N23 -> 5,646 | O9: =-'P&L'!O23 -> 5,896 | P9: =-'P&L'!P23 -> 6,063
C10: Change in trade receivables | E10: ='Actual inputs'!$E$58-'Balance sheet'!E9 -> (104,782) | F10: ='Balance sheet'!E9-'Balance sheet'!F9 -> (60,387) | G10: ='Balance sheet'!F9-'Balance sheet'!G9 -> (61,338) | H10: ='Balance sheet'!G9-'Balance sheet'!H9 -> (89,960) | I10: ='Balance sheet'!H9-'Balance sheet'!I9 -> (54,515) | J10: ='Balance sheet'!I9-'Balance sheet'!J9 -> (48,499) | K10: ='Balance sheet'!J9-'Balance sheet'!K9 -> (60,041) | L10: ='Balance sheet'!K9-'Balance sheet'!L9 -> (21,279) | M10: ='Balance sheet'!L9-'Balance sheet'!M9 -> (73,048) | N10: ='Balance sheet'!M9-'Balance sheet'!N9 -> (13,584) | O10: ='Balance sheet'!N9-'Balance sheet'!O9 -> (17,794) | P10: ='Balance sheet'!O9-'Balance sheet'!P9 -> (289,635)
C11: Change in contract assets / net unbilled work | E11: ='Actual inputs'!$E$60-'Balance sheet'!E10 -> (16,481) | F11: ='Balance sheet'!E10-'Balance sheet'!F10 -> (18,186) | G11: ='Balance sheet'!F10-'Balance sheet'!G10 -> (27,611) | H11: ='Balance sheet'!G10-'Balance sheet'!H10 -> (37,333) | I11: ='Balance sheet'!H10-'Balance sheet'!I10 -> (45,223) | J11: ='Balance sheet'!I10-'Balance sheet'!J10 -> (66,161) | K11: ='Balance sheet'!J10-'Balance sheet'!K10 -> (58,454) | L11: ='Balance sheet'!K10-'Balance sheet'!L10 -> (61,047) | M11: ='Balance sheet'!L10-'Balance sheet'!M10 -> (27,661) | N11: ='Balance sheet'!M10-'Balance sheet'!N10 -> 25,356 | O11: ='Balance sheet'!N10-'Balance sheet'!O10 -> 26,003 | P11: ='Balance sheet'!O10-'Balance sheet'!P10 -> 306,797
C12: Change in retentions | E12: ='Actual inputs'!$E$61-'Balance sheet'!E11 -> (5,515) | F12: ='Balance sheet'!E11-'Balance sheet'!F11 -> (6,085) | G12: ='Balance sheet'!F11-'Balance sheet'!G11 -> (9,239) | H12: ='Balance sheet'!G11-'Balance sheet'!H11 -> (12,492) | I12: ='Balance sheet'!H11-'Balance sheet'!I11 -> (15,132) | J12: ='Balance sheet'!I11-'Balance sheet'!J11 -> (16,558) | K12: ='Balance sheet'!J11-'Balance sheet'!K11 -> (19,559) | L12: ='Balance sheet'!K11-'Balance sheet'!L11 -> (20,427) | M12: ='Balance sheet'!L11-'Balance sheet'!M11 -> (26,249) | N12: ='Balance sheet'!M11-'Balance sheet'!N11 -> (26,623) | O12: ='Balance sheet'!N11-'Balance sheet'!O11 -> (27,304) | P12: ='Balance sheet'!O11-'Balance sheet'!P11 -> (41,715)
C13: Change in trade payables | E13: ='Balance sheet'!E19-'Actual inputs'!$E$59 -> 10,097 | F13: ='Balance sheet'!F19-'Balance sheet'!E19 -> 16,403 | G13: ='Balance sheet'!G19-'Balance sheet'!F19 -> 28,452 | H13: ='Balance sheet'!H19-'Balance sheet'!G19 -> 47,598 | I13: ='Balance sheet'!I19-'Balance sheet'!H19 -> 27,595 | J13: ='Balance sheet'!J19-'Balance sheet'!I19 -> 21,855 | K13: ='Balance sheet'!K19-'Balance sheet'!J19 -> 27,548 | L13: ='Balance sheet'!L19-'Balance sheet'!K19 -> 10,161 | M13: ='Balance sheet'!M19-'Balance sheet'!L19 -> 103,645 | N13: ='Balance sheet'!N19-'Balance sheet'!M19 -> (41,508) | O13: ='Balance sheet'!O19-'Balance sheet'!N19 -> 15,448 | P13: ='Balance sheet'!P19-'Balance sheet'!O19 -> (6,206)
C14: Change in customer advances | E14: ='Balance sheet'!E21-'Actual inputs'!$E$62 -> 0 | F14: ='Balance sheet'!F21-'Balance sheet'!E21 -> 0 | G14: ='Balance sheet'!G21-'Balance sheet'!F21 -> 0 | H14: ='Balance sheet'!H21-'Balance sheet'!G21 -> 0 | I14: ='Balance sheet'!I21-'Balance sheet'!H21 -> 0 | J14: ='Balance sheet'!J21-'Balance sheet'!I21 -> 0 | K14: ='Balance sheet'!K21-'Balance sheet'!J21 -> 0 | L14: ='Balance sheet'!L21-'Balance sheet'!K21 -> 0 | M14: ='Balance sheet'!M21-'Balance sheet'!L21 -> 0 | N14: ='Balance sheet'!N21-'Balance sheet'!M21 -> 0 | O14: ='Balance sheet'!O21-'Balance sheet'!N21 -> 0 | P14: ='Balance sheet'!P21-'Balance sheet'!O21 -> 0
C15: Change in net current tax | E15: ='Assets debt'!E20-'Actual inputs'!$E$64 -> 0 | F15: ='Assets debt'!F20-'Assets debt'!E20 -> 0 | G15: ='Assets debt'!G20-'Assets debt'!F20 -> (9,000) | H15: ='Assets debt'!H20-'Assets debt'!G20 -> 3,405 | I15: ='Assets debt'!I20-'Assets debt'!H20 -> 6,412 | J15: ='Assets debt'!J20-'Assets debt'!I20 -> 190 | K15: ='Assets debt'!K20-'Assets debt'!J20 -> 12,525 | L15: ='Assets debt'!L20-'Assets debt'!K20 -> 13,397 | M15: ='Assets debt'!M20-'Assets debt'!L20 -> 8,336 | N15: ='Assets debt'!N20-'Assets debt'!M20 -> 16,100 | O15: ='Assets debt'!O20-'Assets debt'!N20 -> 16,446 | P15: ='Assets debt'!P20-'Assets debt'!O20 -> 908
C16: Operating cash flow | E16: =SUM(E8:E15) -> (€139,641) | F16: =SUM(F8:F15) -> (€88,573) | G16: =SUM(G8:G15) -> (€77,021) | H16: =SUM(H8:H15) -> (€71,160) | I16: =SUM(I8:I15) -> (€51,027) | J16: =SUM(J8:J15) -> (€56,122) | K16: =SUM(K8:K15) -> (€43,422) | L16: =SUM(L8:L15) -> (€21,025) | M16: =SUM(M8:M15) -> €95,826 | N16: =SUM(N8:N15) -> €29,784 | O16: =SUM(O8:O15) -> €84,482 | P16: =SUM(P8:P15) -> €43,842
C17: Capital expenditure | E17: =-'Assumptions'!E26 -> (6,000) | F17: =-'Assumptions'!F26 -> (4,000) | G17: =-'Assumptions'!G26 -> (8,000) | H17: =-'Assumptions'!H26 -> (6,000) | I17: =-'Assumptions'!I26 -> (9,000) | J17: =-'Assumptions'!J26 -> (5,000) | K17: =-'Assumptions'!K26 -> (8,000) | L17: =-'Assumptions'!L26 -> (6,000) | M17: =-'Assumptions'!M26 -> (42,000) | N17: =-'Assumptions'!N26 -> (9,000) | O17: =-'Assumptions'!O26 -> (12,000) | P17: =-'Assumptions'!P26 -> (8,000)
C18: Investing cash flow | E18: =E17 -> (€6,000) | F18: =F17 -> (€4,000) | G18: =G17 -> (€8,000) | H18: =H17 -> (€6,000) | I18: =I17 -> (€9,000) | J18: =J17 -> (€5,000) | K18: =K17 -> (€8,000) | L18: =L17 -> (€6,000) | M18: =M17 -> (€42,000) | N18: =N17 -> (€9,000) | O18: =O17 -> (€12,000) | P18: =P17 -> (€8,000)
C19: Debt principal repayment | E19: =-'Assets debt'!E14 -> (6,500) | F19: =-'Assets debt'!F14 -> (6,500) | G19: =-'Assets debt'!G14 -> (6,500) | H19: =-'Assets debt'!H14 -> (6,500) | I19: =-'Assets debt'!I14 -> (6,500) | J19: =-'Assets debt'!J14 -> (6,500) | K19: =-'Assets debt'!K14 -> (6,500) | L19: =-'Assets debt'!L14 -> (6,500) | M19: =-'Assets debt'!M14 -> (6,500) | N19: =-'Assets debt'!N14 -> (6,500) | O19: =-'Assets debt'!O14 -> (6,500) | P19: =-'Assets debt'!P14 -> (6,500)
C20: Financing cash flow | E20: =E19 -> (€6,500) | F20: =F19 -> (€6,500) | G20: =G19 -> (€6,500) | H20: =H19 -> (€6,500) | I20: =I19 -> (€6,500) | J20: =J19 -> (€6,500) | K20: =K19 -> (€6,500) | L20: =L19 -> (€6,500) | M20: =M19 -> (€6,500) | N20: =N19 -> (€6,500) | O20: =O19 -> (€6,500) | P20: =P19 -> (€6,500)
C21: Net cash change | E21: =E16+E18+E20 -> (€152,141) | F21: =F16+F18+F20 -> (€99,073) | G21: =G16+G18+G20 -> (€91,521) | H21: =H16+H18+H20 -> (€83,660) | I21: =I16+I18+I20 -> (€66,527) | J21: =J16+J18+J20 -> (€67,622) | K21: =K16+K18+K20 -> (€57,922) | L21: =L16+L18+L20 -> (€33,525) | M21: =M16+M18+M20 -> €47,326 | N21: =N16+N18+N20 -> €14,284 | O21: =O16+O18+O20 -> €65,982 | P21: =P16+P18+P20 -> €29,342
C22: Opening cash | E22: ='Actual inputs'!$E$57 -> 950,000 | F22: =E23 -> 797,859 | G22: =F23 -> 698,786 | H22: =G23 -> 607,265 | I22: =H23 -> 523,605 | J22: =I23 -> 457,077 | K22: =J23 -> 389,455 | L22: =K23 -> 331,533 | M22: =L23 -> 298,008 | N22: =M23 -> 345,334 | O22: =N23 -> 359,619 | P22: =O23 -> 425,600
C23: Closing cash | E23: =E22+E21 -> €797,859 | F23: =F22+F21 -> €698,786 | G23: =G22+G21 -> €607,265 | H23: =H22+H21 -> €523,605 | I23: =I22+I21 -> €457,077 | J23: =J22+J21 -> €389,455 | K23: =K22+K21 -> €331,533 | L23: =L22+L21 -> €298,008 | M23: =M22+M21 -> €345,334 | N23: =N22+N21 -> €359,619 | O23: =O22+O21 -> €425,600 | P23: =P22+P21 -> €454,942

Sheet 13 week cash
C2: 13 week cash
C4: Selected case | E4: ='Assumptions'!$G$4 -> Base | H4: EUR. Entirely fictional.
E6: Forecast | F6: Forecast | G6: Forecast | H6: Forecast | I6: Forecast | J6: Forecast | K6: Forecast | L6: Forecast | M6: Forecast | N6: Forecast | O6: Forecast | P6: Forecast | Q6: Forecast
E7: 1–6 Sep | F7: 07 Sept | G7: 14 Sept | H7: 21 Sept | I7: 28 Sept | J7: 05 Oct | K7: 12 Oct | L7: 19 Oct | M7: 26 Oct | N7: 02 Nov | O7: 09 Nov | P7: 16 Nov | Q7: 23 Nov
C8: Opening cash | E8: ='Balance sheet'!L8 -> 298,008 | F8: =E18 -> 324,992 | G8: =F18 -> 342,970 | H8: =G18 -> 432,425 | I8: =H18 -> 352,834 | J8: =I18 -> 384,795 | K8: =J18 -> 358,795 | L8: =K18 -> 377,333 | M8: =L18 -> 251,733 | N8: =M18 -> 359,619 | O8: =N18 -> 347,619 | P8: =O18 -> 385,156 | Q8: =P18 -> 385,156
C9: Customer receipts | E9: =SUMIFS($F$37:$F$92,$D$37:$D$92,">="&46266,$D$37:$D$92,"<="&46271,$E$37:$E$92,"receipts") -> 60,096 | F9: =SUMIFS($F$37:$F$92,$D$37:$D$92,">="&46272,$D$37:$D$92,"<="&46278,$E$37:$E$92,"receipts") -> 115,184 | G9: =SUMIFS($F$37:$F$92,$D$37:$D$92,">="&46279,$D$37:$D$92,"<="&46285,$E$37:$E$92,"receipts") -> 130,208 | H9: =SUMIFS($F$37:$F$92,$D$37:$D$92,">="&46286,$D$37:$D$92,"<="&46292,$E$37:$E$92,"receipts") -> 120,192 | I9: =SUMIFS($F$37:$F$92,$D$37:$D$92,">="&46293,$D$37:$D$92,"<="&46299,$E$37:$E$92,"receipts") -> 75,120 | J9: =SUMIFS($F$37:$F$92,$D$37:$D$92,">="&46300,$D$37:$D$92,"<="&46306,$E$37:$E$92,"receipts") -> 0 | K9: =SUMIFS($F$37:$F$92,$D$37:$D$92,">="&46307,$D$37:$D$92,"<="&46313,$E$37:$E$92,"receipts") -> 145,999 | L9: =SUMIFS($F$37:$F$92,$D$37:$D$92,">="&46314,$D$37:$D$92,"<="&46320,$E$37:$E$92,"receipts") -> 0 | M9: =SUMIFS($F$37:$F$92,$D$37:$D$92,">="&46321,$D$37:$D$92,"<="&46327,$E$37:$E$92,"receipts") -> 271,142 | N9: =SUMIFS($F$37:$F$92,$D$37:$D$92,">="&46328,$D$37:$D$92,"<="&46334,$E$37:$E$92,"receipts") -> 0 | O9: =SUMIFS($F$37:$F$92,$D$37:$D$92,">="&46335,$D$37:$D$92,"<="&46341,$E$37:$E$92,"receipts") -> 175,340 | P9: =SUMIFS($F$37:$F$92,$D$37:$D$92,">="&46342,$D$37:$D$92,"<="&46348,$E$37:$E$92,"receipts") -> 0 | Q9: =SUMIFS($F$37:$F$92,$D$37:$D$92,">="&46349,$D$37:$D$92,"<="&46355,$E$37:$E$92,"receipts") -> 325,632
C10: Supplier payments | E10: =SUMIFS($F$37:$F$92,$D$37:$D$92,">="&46266,$D$37:$D$92,"<="&46271,$E$37:$E$92,"supplierPayments") -> (33,112) | F10: =SUMIFS($F$37:$F$92,$D$37:$D$92,">="&46272,$D$37:$D$92,"<="&46278,$E$37:$E$92,"supplierPayments") -> (38,206) | G10: =SUMIFS($F$37:$F$92,$D$37:$D$92,">="&46279,$D$37:$D$92,"<="&46285,$E$37:$E$92,"supplierPayments") -> (40,754) | H10: =SUMIFS($F$37:$F$92,$D$37:$D$92,">="&46286,$D$37:$D$92,"<="&46292,$E$37:$E$92,"supplierPayments") -> (58,583) | I10: =SUMIFS($F$37:$F$92,$D$37:$D$92,">="&46293,$D$37:$D$92,"<="&46299,$E$37:$E$92,"supplierPayments") -> (35,659) | J10: =SUMIFS($F$37:$F$92,$D$37:$D$92,">="&46300,$D$37:$D$92,"<="&46306,$E$37:$E$92,"supplierPayments") -> 0 | K10: =SUMIFS($F$37:$F$92,$D$37:$D$92,">="&46307,$D$37:$D$92,"<="&46313,$E$37:$E$92,"supplierPayments") -> (127,462) | L10: =SUMIFS($F$37:$F$92,$D$37:$D$92,">="&46314,$D$37:$D$92,"<="&46320,$E$37:$E$92,"supplierPayments") -> 0 | M10: =SUMIFS($F$37:$F$92,$D$37:$D$92,">="&46321,$D$37:$D$92,"<="&46327,$E$37:$E$92,"supplierPayments") -> (155,787) | N10: =SUMIFS($F$37:$F$92,$D$37:$D$92,">="&46328,$D$37:$D$92,"<="&46334,$E$37:$E$92,"supplierPayments") -> 0 | O10: =SUMIFS($F$37:$F$92,$D$37:$D$92,">="&46335,$D$37:$D$92,"<="&46341,$E$37:$E$92,"supplierPayments") -> (120,803) | P10: =SUMIFS($F$37:$F$92,$D$37:$D$92,">="&46342,$D$37:$D$92,"<="&46348,$E$37:$E$92,"supplierPayments") -> 0 | Q10: =SUMIFS($F$37:$F$92,$D$37:$D$92,">="&46349,$D$37:$D$92,"<="&46355,$E$37:$E$92,"supplierPayments") -> (147,648)
C11: Payroll | E11: =SUMIFS($F$37:$F$92,$D$37:$D$92,">="&46266,$D$37:$D$92,"<="&46271,$E$37:$E$92,"payroll") -> 0 | F11: =SUMIFS($F$37:$F$92,$D$37:$D$92,">="&46272,$D$37:$D$92,"<="&46278,$E$37:$E$92,"payroll") -> 0 | G11: =SUMIFS($F$37:$F$92,$D$37:$D$92,">="&46279,$D$37:$D$92,"<="&46285,$E$37:$E$92,"payroll") -> 0 | H11: =SUMIFS($F$37:$F$92,$D$37:$D$92,">="&46286,$D$37:$D$92,"<="&46292,$E$37:$E$92,"payroll") -> (123,200) | I11: =SUMIFS($F$37:$F$92,$D$37:$D$92,">="&46293,$D$37:$D$92,"<="&46299,$E$37:$E$92,"payroll") -> 0 | J11: =SUMIFS($F$37:$F$92,$D$37:$D$92,">="&46300,$D$37:$D$92,"<="&46306,$E$37:$E$92,"payroll") -> 0 | K11: =SUMIFS($F$37:$F$92,$D$37:$D$92,">="&46307,$D$37:$D$92,"<="&46313,$E$37:$E$92,"payroll") -> 0 | L11: =SUMIFS($F$37:$F$92,$D$37:$D$92,">="&46314,$D$37:$D$92,"<="&46320,$E$37:$E$92,"payroll") -> (125,600) | M11: =SUMIFS($F$37:$F$92,$D$37:$D$92,">="&46321,$D$37:$D$92,"<="&46327,$E$37:$E$92,"payroll") -> 0 | N11: =SUMIFS($F$37:$F$92,$D$37:$D$92,">="&46328,$D$37:$D$92,"<="&46334,$E$37:$E$92,"payroll") -> 0 | O11: =SUMIFS($F$37:$F$92,$D$37:$D$92,">="&46335,$D$37:$D$92,"<="&46341,$E$37:$E$92,"payroll") -> 0 | P11: =SUMIFS($F$37:$F$92,$D$37:$D$92,">="&46342,$D$37:$D$92,"<="&46348,$E$37:$E$92,"payroll") -> 0 | Q11: =SUMIFS($F$37:$F$92,$D$37:$D$92,">="&46349,$D$37:$D$92,"<="&46355,$E$37:$E$92,"payroll") -> (130,100)
C12: Operating overheads | E12: =SUMIFS($F$37:$F$92,$D$37:$D$92,">="&46266,$D$37:$D$92,"<="&46271,$E$37:$E$92,"overheads") -> 0 | F12: =SUMIFS($F$37:$F$92,$D$37:$D$92,">="&46272,$D$37:$D$92,"<="&46278,$E$37:$E$92,"overheads") -> (17,000) | G12: =SUMIFS($F$37:$F$92,$D$37:$D$92,">="&46279,$D$37:$D$92,"<="&46285,$E$37:$E$92,"overheads") -> 0 | H12: =SUMIFS($F$37:$F$92,$D$37:$D$92,">="&46286,$D$37:$D$92,"<="&46292,$E$37:$E$92,"overheads") -> 0 | I12: =SUMIFS($F$37:$F$92,$D$37:$D$92,">="&46293,$D$37:$D$92,"<="&46299,$E$37:$E$92,"overheads") -> 0 | J12: =SUMIFS($F$37:$F$92,$D$37:$D$92,">="&46300,$D$37:$D$92,"<="&46306,$E$37:$E$92,"overheads") -> (17,000) | K12: =SUMIFS($F$37:$F$92,$D$37:$D$92,">="&46307,$D$37:$D$92,"<="&46313,$E$37:$E$92,"overheads") -> 0 | L12: =SUMIFS($F$37:$F$92,$D$37:$D$92,">="&46314,$D$37:$D$92,"<="&46320,$E$37:$E$92,"overheads") -> 0 | M12: =SUMIFS($F$37:$F$92,$D$37:$D$92,">="&46321,$D$37:$D$92,"<="&46327,$E$37:$E$92,"overheads") -> 0 | N12: =SUMIFS($F$37:$F$92,$D$37:$D$92,">="&46328,$D$37:$D$92,"<="&46334,$E$37:$E$92,"overheads") -> 0 | O12: =SUMIFS($F$37:$F$92,$D$37:$D$92,">="&46335,$D$37:$D$92,"<="&46341,$E$37:$E$92,"overheads") -> (17,000) | P12: =SUMIFS($F$37:$F$92,$D$37:$D$92,">="&46342,$D$37:$D$92,"<="&46348,$E$37:$E$92,"overheads") -> 0 | Q12: =SUMIFS($F$37:$F$92,$D$37:$D$92,">="&46349,$D$37:$D$92,"<="&46355,$E$37:$E$92,"overheads") -> 0
C13: Tax paid | E13: =SUMIFS($F$37:$F$92,$D$37:$D$92,">="&46266,$D$37:$D$92,"<="&46271,$E$37:$E$92,"tax") -> 0 | F13: =SUMIFS($F$37:$F$92,$D$37:$D$92,">="&46272,$D$37:$D$92,"<="&46278,$E$37:$E$92,"tax") -> 0 | G13: =SUMIFS($F$37:$F$92,$D$37:$D$92,">="&46279,$D$37:$D$92,"<="&46285,$E$37:$E$92,"tax") -> 0 | H13: =SUMIFS($F$37:$F$92,$D$37:$D$92,">="&46286,$D$37:$D$92,"<="&46292,$E$37:$E$92,"tax") -> (18,000) | I13: =SUMIFS($F$37:$F$92,$D$37:$D$92,">="&46293,$D$37:$D$92,"<="&46299,$E$37:$E$92,"tax") -> 0 | J13: =SUMIFS($F$37:$F$92,$D$37:$D$92,">="&46300,$D$37:$D$92,"<="&46306,$E$37:$E$92,"tax") -> 0 | K13: =SUMIFS($F$37:$F$92,$D$37:$D$92,">="&46307,$D$37:$D$92,"<="&46313,$E$37:$E$92,"tax") -> 0 | L13: =SUMIFS($F$37:$F$92,$D$37:$D$92,">="&46314,$D$37:$D$92,"<="&46320,$E$37:$E$92,"tax") -> 0 | M13: =SUMIFS($F$37:$F$92,$D$37:$D$92,">="&46321,$D$37:$D$92,"<="&46327,$E$37:$E$92,"tax") -> 0 | N13: =SUMIFS($F$37:$F$92,$D$37:$D$92,">="&46328,$D$37:$D$92,"<="&46334,$E$37:$E$92,"tax") -> 0 | O13: =SUMIFS($F$37:$F$92,$D$37:$D$92,">="&46335,$D$37:$D$92,"<="&46341,$E$37:$E$92,"tax") -> 0 | P13: =SUMIFS($F$37:$F$92,$D$37:$D$92,">="&46342,$D$37:$D$92,"<="&46348,$E$37:$E$92,"tax") -> 0 | Q13: =SUMIFS($F$37:$F$92,$D$37:$D$92,">="&46349,$D$37:$D$92,"<="&46355,$E$37:$E$92,"tax") -> 0
C14: Interest paid | E14: =SUMIFS($F$37:$F$92,$D$37:$D$92,">="&46266,$D$37:$D$92,"<="&46271,$E$37:$E$92,"interest") -> 0 | F14: =SUMIFS($F$37:$F$92,$D$37:$D$92,">="&46272,$D$37:$D$92,"<="&46278,$E$37:$E$92,"interest") -> 0 | G14: =SUMIFS($F$37:$F$92,$D$37:$D$92,">="&46279,$D$37:$D$92,"<="&46285,$E$37:$E$92,"interest") -> 0 | H14: =SUMIFS($F$37:$F$92,$D$37:$D$92,">="&46286,$D$37:$D$92,"<="&46292,$E$37:$E$92,"interest") -> 0 | I14: =SUMIFS($F$37:$F$92,$D$37:$D$92,">="&46293,$D$37:$D$92,"<="&46299,$E$37:$E$92,"interest") -> (999) | J14: =SUMIFS($F$37:$F$92,$D$37:$D$92,">="&46300,$D$37:$D$92,"<="&46306,$E$37:$E$92,"interest") -> 0 | K14: =SUMIFS($F$37:$F$92,$D$37:$D$92,">="&46307,$D$37:$D$92,"<="&46313,$E$37:$E$92,"interest") -> 0 | L14: =SUMIFS($F$37:$F$92,$D$37:$D$92,">="&46314,$D$37:$D$92,"<="&46320,$E$37:$E$92,"interest") -> 0 | M14: =SUMIFS($F$37:$F$92,$D$37:$D$92,">="&46321,$D$37:$D$92,"<="&46327,$E$37:$E$92,"interest") -> (969) | N14: =SUMIFS($F$37:$F$92,$D$37:$D$92,">="&46328,$D$37:$D$92,"<="&46334,$E$37:$E$92,"interest") -> 0 | O14: =SUMIFS($F$37:$F$92,$D$37:$D$92,">="&46335,$D$37:$D$92,"<="&46341,$E$37:$E$92,"interest") -> 0 | P14: =SUMIFS($F$37:$F$92,$D$37:$D$92,">="&46342,$D$37:$D$92,"<="&46348,$E$37:$E$92,"interest") -> 0 | Q14: =SUMIFS($F$37:$F$92,$D$37:$D$92,">="&46349,$D$37:$D$92,"<="&46355,$E$37:$E$92,"interest") -> (940)
C15: Capital expenditure | E15: =SUMIFS($F$37:$F$92,$D$37:$D$92,">="&46266,$D$37:$D$92,"<="&46271,$E$37:$E$92,"capex") -> 0 | F15: =SUMIFS($F$37:$F$92,$D$37:$D$92,">="&46272,$D$37:$D$92,"<="&46278,$E$37:$E$92,"capex") -> (42,000) | G15: =SUMIFS($F$37:$F$92,$D$37:$D$92,">="&46279,$D$37:$D$92,"<="&46285,$E$37:$E$92,"capex") -> 0 | H15: =SUMIFS($F$37:$F$92,$D$37:$D$92,">="&46286,$D$37:$D$92,"<="&46292,$E$37:$E$92,"capex") -> 0 | I15: =SUMIFS($F$37:$F$92,$D$37:$D$92,">="&46293,$D$37:$D$92,"<="&46299,$E$37:$E$92,"capex") -> 0 | J15: =SUMIFS($F$37:$F$92,$D$37:$D$92,">="&46300,$D$37:$D$92,"<="&46306,$E$37:$E$92,"capex") -> (9,000) | K15: =SUMIFS($F$37:$F$92,$D$37:$D$92,">="&46307,$D$37:$D$92,"<="&46313,$E$37:$E$92,"capex") -> 0 | L15: =SUMIFS($F$37:$F$92,$D$37:$D$92,">="&46314,$D$37:$D$92,"<="&46320,$E$37:$E$92,"capex") -> 0 | M15: =SUMIFS($F$37:$F$92,$D$37:$D$92,">="&46321,$D$37:$D$92,"<="&46327,$E$37:$E$92,"capex") -> 0 | N15: =SUMIFS($F$37:$F$92,$D$37:$D$92,">="&46328,$D$37:$D$92,"<="&46334,$E$37:$E$92,"capex") -> (12,000) | O15: =SUMIFS($F$37:$F$92,$D$37:$D$92,">="&46335,$D$37:$D$92,"<="&46341,$E$37:$E$92,"capex") -> 0 | P15: =SUMIFS($F$37:$F$92,$D$37:$D$92,">="&46342,$D$37:$D$92,"<="&46348,$E$37:$E$92,"capex") -> 0 | Q15: =SUMIFS($F$37:$F$92,$D$37:$D$92,">="&46349,$D$37:$D$92,"<="&46355,$E$37:$E$92,"capex") -> 0
C16: Debt repayment | E16: =SUMIFS($F$37:$F$92,$D$37:$D$92,">="&46266,$D$37:$D$92,"<="&46271,$E$37:$E$92,"debt") -> 0 | F16: =SUMIFS($F$37:$F$92,$D$37:$D$92,">="&46272,$D$37:$D$92,"<="&46278,$E$37:$E$92,"debt") -> 0 | G16: =SUMIFS($F$37:$F$92,$D$37:$D$92,">="&46279,$D$37:$D$92,"<="&46285,$E$37:$E$92,"debt") -> 0 | H16: =SUMIFS($F$37:$F$92,$D$37:$D$92,">="&46286,$D$37:$D$92,"<="&46292,$E$37:$E$92,"debt") -> 0 | I16: =SUMIFS($F$37:$F$92,$D$37:$D$92,">="&46293,$D$37:$D$92,"<="&46299,$E$37:$E$92,"debt") -> (6,500) | J16: =SUMIFS($F$37:$F$92,$D$37:$D$92,">="&46300,$D$37:$D$92,"<="&46306,$E$37:$E$92,"debt") -> 0 | K16: =SUMIFS($F$37:$F$92,$D$37:$D$92,">="&46307,$D$37:$D$92,"<="&46313,$E$37:$E$92,"debt") -> 0 | L16: =SUMIFS($F$37:$F$92,$D$37:$D$92,">="&46314,$D$37:$D$92,"<="&46320,$E$37:$E$92,"debt") -> 0 | M16: =SUMIFS($F$37:$F$92,$D$37:$D$92,">="&46321,$D$37:$D$92,"<="&46327,$E$37:$E$92,"debt") -> (6,500) | N16: =SUMIFS($F$37:$F$92,$D$37:$D$92,">="&46328,$D$37:$D$92,"<="&46334,$E$37:$E$92,"debt") -> 0 | O16: =SUMIFS($F$37:$F$92,$D$37:$D$92,">="&46335,$D$37:$D$92,"<="&46341,$E$37:$E$92,"debt") -> 0 | P16: =SUMIFS($F$37:$F$92,$D$37:$D$92,">="&46342,$D$37:$D$92,"<="&46348,$E$37:$E$92,"debt") -> 0 | Q16: =SUMIFS($F$37:$F$92,$D$37:$D$92,">="&46349,$D$37:$D$92,"<="&46355,$E$37:$E$92,"debt") -> (6,500)
C17: Net cash change | E17: =SUM(E9:E16) -> €26,984 | F17: =SUM(F9:F16) -> €17,978 | G17: =SUM(G9:G16) -> €89,455 | H17: =SUM(H9:H16) -> (€79,591) | I17: =SUM(I9:I16) -> €31,962 | J17: =SUM(J9:J16) -> (€26,000) | K17: =SUM(K9:K16) -> €18,538 | L17: =SUM(L9:L16) -> (€125,600) | M17: =SUM(M9:M16) -> €107,886 | N17: =SUM(N9:N16) -> (€12,000) | O17: =SUM(O9:O16) -> €37,537 | P17: =SUM(P9:P16) -> 0 | Q17: =SUM(Q9:Q16) -> €40,444
C18: Closing cash | E18: =E8+E17 -> €324,992 | F18: =F8+F17 -> €342,970 | G18: =G8+G17 -> €432,425 | H18: =H8+H17 -> €352,834 | I18: =I8+I17 -> €384,795 | J18: =J8+J17 -> €358,795 | K18: =K8+K17 -> €377,333 | L18: =L8+L17 -> €251,733 | M18: =M8+M17 -> €359,619 | N18: =N8+N17 -> €347,619 | O18: =O8+O17 -> €385,156 | P18: =P8+P17 -> €385,156 | Q18: =Q8+Q17 -> €425,600
C19: Minimum reserve | E19: ='Assumptions'!$E$148 -> €125,000 | F19: ='Assumptions'!$E$148 -> €125,000 | G19: ='Assumptions'!$E$148 -> €125,000 | H19: ='Assumptions'!$E$148 -> €125,000 | I19: ='Assumptions'!$E$148 -> €125,000 | J19: ='Assumptions'!$E$148 -> €125,000 | K19: ='Assumptions'!$E$148 -> €125,000 | L19: ='Assumptions'!$E$148 -> €125,000 | M19: ='Assumptions'!$E$148 -> €125,000 | N19: ='Assumptions'!$E$148 -> €125,000 | O19: ='Assumptions'!$E$148 -> €125,000 | P19: ='Assumptions'!$E$148 -> €125,000 | Q19: ='Assumptions'!$E$148 -> €125,000
C20: Reserve headroom / (shortfall) | E20: =E18-E19 -> €199,992 | F20: =F18-F19 -> €217,970 | G20: =G18-G19 -> €307,425 | H20: =H18-H19 -> €227,834 | I20: =I18-I19 -> €259,795 | J20: =J18-J19 -> €233,795 | K20: =K18-K19 -> €252,333 | L20: =L18-L19 -> €126,733 | M20: =M18-M19 -> €234,619 | N20: =N18-N19 -> €222,619 | O20: =O18-O19 -> €260,156 | P20: =P18-P19 -> €260,156 | Q20: =Q18-Q19 -> €300,600
C23: Lowest end-of-day scheduled cash | F23: =MIN(H112:H201) -> 95,946 | H23: On | I23: =INDEX(C112:C201,MATCH(F23,H112:H201,0)) -> 2026-10-26
C25: Funding needed to avoid negative cash | F25: =MAX(0,-F23) -> 0
C27: Opening cash follows the 31 August close. Week 1 is 1–6 September.
C29: Negative cash is unfunded. Pending AP remains a liability.
C33: Dated cash schedule
C35: Reference | D35: Scheduled date | E35: Cash category | F35: Amount
C37: AR-1 | D37: ='Working capital'!I42 -> 2026-09-04 | E37: receipts | F37: ='Working capital'!L42 -> 60,096
C38: AR-2 | D38: ='Working capital'!I43 -> 2026-09-08 | E38: receipts | F38: ='Working capital'!L43 -> 70,112
C39: AR-3 | D39: ='Working capital'!I44 -> 2026-09-11 | E39: receipts | F39: ='Working capital'!L44 -> 45,072
C40: AR-4 | D40: ='Working capital'!I45 -> 2026-09-15 | E40: receipts | F40: ='Working capital'!L45 -> 80,128
C41: AR-5 | D41: ='Working capital'!I46 -> 2026-09-18 | E41: receipts | F41: ='Working capital'!L46 -> 50,080
C42: AR-6 | D42: ='Working capital'!I47 -> 2026-09-22 | E42: receipts | F42: ='Working capital'!L47 -> 65,104
C43: AR-7 | D43: ='Working capital'!I48 -> 2026-09-25 | E43: receipts | F43: ='Working capital'!L48 -> 55,088
C44: AR-8 | D44: ='Working capital'!I49 -> 2026-10-02 | E44: receipts | F44: ='Working capital'!L49 -> 75,120
C45: AP-1 | D45: ='Working capital'!N56 -> 2026-09-04 | E45: supplierPayments | F45: =-'Working capital'!O56 -> (33,112)
C46: AP-2 | D46: ='Working capital'!N57 -> 00:00:00 | E46: supplierPayments | F46: =-'Working capital'!O57 -> 0
C47: AP-3 | D47: ='Working capital'!N58 -> 2026-09-11 | E47: supplierPayments | F47: =-'Working capital'!O58 -> (38,206)
C48: AP-4 | D48: ='Working capital'!N59 -> 00:00:00 | E48: supplierPayments | F48: =-'Working capital'!O59 -> 0
C49: AP-5 | D49: ='Working capital'!N60 -> 2026-09-18 | E49: supplierPayments | F49: =-'Working capital'!O60 -> (40,754)
C50: AP-6 | D50: ='Working capital'!N61 -> 2026-09-22 | E50: supplierPayments | F50: =-'Working capital'!O61 -> (30,565)
C51: AP-7 | D51: ='Working capital'!N62 -> 2026-09-25 | E51: supplierPayments | F51: =-'Working capital'!O62 -> (28,018)
C52: AP-8 | D52: ='Working capital'!N63 -> 2026-10-02 | E52: supplierPayments | F52: =-'Working capital'!O63 -> (35,659)
C53: receipts Sept 26 | D53: 2026-09-15 | E53: receipts | F53: =('Working capital'!M12-SUMIFS($F$37:$F$52,$E$37:$E$52,"receipts",$D$37:$D$52,">="&46266,$D$37:$D$52,"<="&46295))*0.35 -> 0
C54: receipts Sept 26 | D54: 2026-09-28 | E54: receipts | F54: =('Working capital'!M12-SUMIFS($F$37:$F$52,$E$37:$E$52,"receipts",$D$37:$D$52,">="&46266,$D$37:$D$52,"<="&46295))*0.65 -> 0
C55: supplierPayments Sept 26 | D55: 2026-09-12 | E55: supplierPayments | F55: =('Working capital'!M17-SUMIFS($F$37:$F$52,$E$37:$E$52,"supplierPayments",$D$37:$D$52,">="&46266,$D$37:$D$52,"<="&46295))*0.45 -> 0
C56: supplierPayments Sept 26 | D56: 2026-09-26 | E56: supplierPayments | F56: =('Working capital'!M17-SUMIFS($F$37:$F$52,$E$37:$E$52,"supplierPayments",$D$37:$D$52,">="&46266,$D$37:$D$52,"<="&46295))*0.55 -> 0
C57: payroll Sept 26 | D57: 2026-09-25 | E57: payroll | F57: =('Working capital'!M23-SUMIFS($F$37:$F$52,$E$37:$E$52,"payroll",$D$37:$D$52,">="&46266,$D$37:$D$52,"<="&46295))*1 -> (123,200)
C58: overheads Sept 26 | D58: 2026-09-10 | E58: overheads | F58: =('Working capital'!M24-SUMIFS($F$37:$F$52,$E$37:$E$52,"overheads",$D$37:$D$52,">="&46266,$D$37:$D$52,"<="&46295))*1 -> (17,000)
C59: tax Sept 26 | D59: 2026-09-21 | E59: tax | F59: =('Working capital'!M25-SUMIFS($F$37:$F$52,$E$37:$E$52,"tax",$D$37:$D$52,">="&46266,$D$37:$D$52,"<="&46295))*1 -> (18,000)
C60: interest Sept 26 | D60: 2026-09-28 | E60: interest | F60: =('Working capital'!M26-SUMIFS($F$37:$F$52,$E$37:$E$52,"interest",$D$37:$D$52,">="&46266,$D$37:$D$52,"<="&46295))*1 -> (999)
C61: capex Sept 26 | D61: 2026-09-08 | E61: capex | F61: =('Working capital'!M27-SUMIFS($F$37:$F$52,$E$37:$E$52,"capex",$D$37:$D$52,">="&46266,$D$37:$D$52,"<="&46295))*1 -> (42,000)
C62: debt Sept 26 | D62: 2026-09-28 | E62: debt | F62: =('Working capital'!M28-SUMIFS($F$37:$F$52,$E$37:$E$52,"debt",$D$37:$D$52,">="&46266,$D$37:$D$52,"<="&46295))*1 -> (6,500)
C63: receipts Oct 26 | D63: 2026-10-15 | E63: receipts | F63: =('Working capital'!N12-SUMIFS($F$37:$F$52,$E$37:$E$52,"receipts",$D$37:$D$52,">="&46296,$D$37:$D$52,"<="&46326))*0.35 -> 145,999
C64: receipts Oct 26 | D64: 2026-10-28 | E64: receipts | F64: =('Working capital'!N12-SUMIFS($F$37:$F$52,$E$37:$E$52,"receipts",$D$37:$D$52,">="&46296,$D$37:$D$52,"<="&46326))*0.65 -> 271,142
C65: supplierPayments Oct 26 | D65: 2026-10-12 | E65: supplierPayments | F65: =('Working capital'!N17-SUMIFS($F$37:$F$52,$E$37:$E$52,"supplierPayments",$D$37:$D$52,">="&46296,$D$37:$D$52,"<="&46326))*0.45 -> (127,462)
C66: supplierPayments Oct 26 | D66: 2026-10-26 | E66: supplierPayments | F66: =('Working capital'!N17-SUMIFS($F$37:$F$52,$E$37:$E$52,"supplierPayments",$D$37:$D$52,">="&46296,$D$37:$D$52,"<="&46326))*0.55 -> (155,787)
C67: payroll Oct 26 | D67: 2026-10-25 | E67: payroll | F67: =('Working capital'!N23-SUMIFS($F$37:$F$52,$E$37:$E$52,"payroll",$D$37:$D$52,">="&46296,$D$37:$D$52,"<="&46326))*1 -> (125,600)
C68: overheads Oct 26 | D68: 2026-10-10 | E68: overheads | F68: =('Working capital'!N24-SUMIFS($F$37:$F$52,$E$37:$E$52,"overheads",$D$37:$D$52,">="&46296,$D$37:$D$52,"<="&46326))*1 -> (17,000)
C69: tax Oct 26 | D69: 2026-10-21 | E69: tax | F69: =('Working capital'!N25-SUMIFS($F$37:$F$52,$E$37:$E$52,"tax",$D$37:$D$52,">="&46296,$D$37:$D$52,"<="&46326))*1 -> 0
C70: interest Oct 26 | D70: 2026-10-28 | E70: interest | F70: =('Working capital'!N26-SUMIFS($F$37:$F$52,$E$37:$E$52,"interest",$D$37:$D$52,">="&46296,$D$37:$D$52,"<="&46326))*1 -> (969)
C71: capex Oct 26 | D71: 2026-10-08 | E71: capex | F71: =('Working capital'!N27-SUMIFS($F$37:$F$52,$E$37:$E$52,"capex",$D$37:$D$52,">="&46296,$D$37:$D$52,"<="&46326))*1 -> (9,000)
C72: debt Oct 26 | D72: 2026-10-28 | E72: debt | F72: =('Working capital'!N28-SUMIFS($F$37:$F$52,$E$37:$E$52,"debt",$D$37:$D$52,">="&46296,$D$37:$D$52,"<="&46326))*1 -> (6,500)
C73: receipts Nov 26 | D73: 2026-11-15 | E73: receipts | F73: =('Working capital'!O12-SUMIFS($F$37:$F$52,$E$37:$E$52,"receipts",$D$37:$D$52,">="&46327,$D$37:$D$52,"<="&46356))*0.35 -> 175,340
C74: receipts Nov 26 | D74: 2026-11-28 | E74: receipts | F74: =('Working capital'!O12-SUMIFS($F$37:$F$52,$E$37:$E$52,"receipts",$D$37:$D$52,">="&46327,$D$37:$D$52,"<="&46356))*0.65 -> 325,632
C75: supplierPayments Nov 26 | D75: 2026-11-12 | E75: supplierPayments | F75: =('Working capital'!O17-SUMIFS($F$37:$F$52,$E$37:$E$52,"supplierPayments",$D$37:$D$52,">="&46327,$D$37:$D$52,"<="&46356))*0.45 -> (120,803)
C76: supplierPayments Nov 26 | D76: 2026-11-26 | E76: supplierPayments | F76: =('Working capital'!O17-SUMIFS($F$37:$F$52,$E$37:$E$52,"supplierPayments",$D$37:$D$52,">="&46327,$D$37:$D$52,"<="&46356))*0.55 -> (147,648)
C77: payroll Nov 26 | D77: 2026-11-25 | E77: payroll | F77: =('Working capital'!O23-SUMIFS($F$37:$F$52,$E$37:$E$52,"payroll",$D$37:$D$52,">="&46327,$D$37:$D$52,"<="&46356))*1 -> (130,100)
C78: overheads Nov 26 | D78: 2026-11-10 | E78: overheads | F78: =('Working capital'!O24-SUMIFS($F$37:$F$52,$E$37:$E$52,"overheads",$D$37:$D$52,">="&46327,$D$37:$D$52,"<="&46356))*1 -> (17,000)
C79: tax Nov 26 | D79: 2026-11-21 | E79: tax | F79: =('Working capital'!O25-SUMIFS($F$37:$F$52,$E$37:$E$52,"tax",$D$37:$D$52,">="&46327,$D$37:$D$52,"<="&46356))*1 -> 0
C80: interest Nov 26 | D80: 2026-11-28 | E80: interest | F80: =('Working capital'!O26-SUMIFS($F$37:$F$52,$E$37:$E$52,"interest",$D$37:$D$52,">="&46327,$D$37:$D$52,"<="&46356))*1 -> (940)
C81: capex Nov 26 | D81: 2026-11-08 | E81: capex | F81: =('Working capital'!O27-SUMIFS($F$37:$F$52,$E$37:$E$52,"capex",$D$37:$D$52,">="&46327,$D$37:$D$52,"<="&46356))*1 -> (12,000)
C82: debt Nov 26 | D82: 2026-11-28 | E82: debt | F82: =('Working capital'!O28-SUMIFS($F$37:$F$52,$E$37:$E$52,"debt",$D$37:$D$52,">="&46327,$D$37:$D$52,"<="&46356))*1 -> (6,500)
C83: receipts Dec 26 | D83: 2026-12-15 | E83: receipts | F83: =('Working capital'!P12-SUMIFS($F$37:$F$52,$E$37:$E$52,"receipts",$D$37:$D$52,">="&46357,$D$37:$D$52,"<="&46387))*0.35 -> 176,035
C84: receipts Dec 26 | D84: 2026-12-28 | E84: receipts | F84: =('Working capital'!P12-SUMIFS($F$37:$F$52,$E$37:$E$52,"receipts",$D$37:$D$52,">="&46357,$D$37:$D$52,"<="&46387))*0.65 -> 326,923
C85: supplierPayments Dec 26 | D85: 2026-12-12 | E85: supplierPayments | F85: =('Working capital'!P17-SUMIFS($F$37:$F$52,$E$37:$E$52,"supplierPayments",$D$37:$D$52,">="&46357,$D$37:$D$52,"<="&46387))*0.45 -> (131,920)
C86: supplierPayments Dec 26 | D86: 2026-12-26 | E86: supplierPayments | F86: =('Working capital'!P17-SUMIFS($F$37:$F$52,$E$37:$E$52,"supplierPayments",$D$37:$D$52,">="&46357,$D$37:$D$52,"<="&46387))*0.55 -> (161,236)
C87: payroll Dec 26 | D87: 2026-12-25 | E87: payroll | F87: =('Working capital'!P23-SUMIFS($F$37:$F$52,$E$37:$E$52,"payroll",$D$37:$D$52,">="&46357,$D$37:$D$52,"<="&46387))*1 -> (132,050)
C88: overheads Dec 26 | D88: 2026-12-10 | E88: overheads | F88: =('Working capital'!P24-SUMIFS($F$37:$F$52,$E$37:$E$52,"overheads",$D$37:$D$52,">="&46357,$D$37:$D$52,"<="&46387))*1 -> (17,000)
C89: tax Dec 26 | D89: 2026-12-21 | E89: tax | F89: =('Working capital'!P25-SUMIFS($F$37:$F$52,$E$37:$E$52,"tax",$D$37:$D$52,">="&46357,$D$37:$D$52,"<="&46387))*1 -> (16,000)
C90: interest Dec 26 | D90: 2026-12-28 | E90: interest | F90: =('Working capital'!P26-SUMIFS($F$37:$F$52,$E$37:$E$52,"interest",$D$37:$D$52,">="&46357,$D$37:$D$52,"<="&46387))*1 -> (910)
C91: capex Dec 26 | D91: 2026-12-08 | E91: capex | F91: =('Working capital'!P27-SUMIFS($F$37:$F$52,$E$37:$E$52,"capex",$D$37:$D$52,">="&46357,$D$37:$D$52,"<="&46387))*1 -> (8,000)
C92: debt Dec 26 | D92: 2026-12-28 | E92: debt | F92: =('Working capital'!P28-SUMIFS($F$37:$F$52,$E$37:$E$52,"debt",$D$37:$D$52,">="&46357,$D$37:$D$52,"<="&46387))*1 -> (6,500)
C108: Daily scheduled cash
C110: Date | D110: Opening | E110: Receipts | F110: Payments | G110: Net change | H110: Closing | I110: Reserve | J110: Headroom
C112: 2026-09-01 | D112: ='Balance sheet'!L8 -> 298,008 | E112: =SUMIFS($F$37:$F$92,$D$37:$D$92,C112,$F$37:$F$92,">0") -> 0 | F112: =SUMIFS($F$37:$F$92,$D$37:$D$92,C112,$F$37:$F$92,"<0") -> 0 | G112: =SUM(E112:F112) -> 0 | H112: =D112+G112 -> 298,008 | I112: ='Assumptions'!$E$148 -> 125,000 | J112: =H112-I112 -> 173,008
C113: 2026-09-02 | D113: =H112 -> 298,008 | E113: =SUMIFS($F$37:$F$92,$D$37:$D$92,C113,$F$37:$F$92,">0") -> 0 | F113: =SUMIFS($F$37:$F$92,$D$37:$D$92,C113,$F$37:$F$92,"<0") -> 0 | G113: =SUM(E113:F113) -> 0 | H113: =D113+G113 -> 298,008 | I113: ='Assumptions'!$E$148 -> 125,000 | J113: =H113-I113 -> 173,008
C114: 2026-09-03 | D114: =H113 -> 298,008 | E114: =SUMIFS($F$37:$F$92,$D$37:$D$92,C114,$F$37:$F$92,">0") -> 0 | F114: =SUMIFS($F$37:$F$92,$D$37:$D$92,C114,$F$37:$F$92,"<0") -> 0 | G114: =SUM(E114:F114) -> 0 | H114: =D114+G114 -> 298,008 | I114: ='Assumptions'!$E$148 -> 125,000 | J114: =H114-I114 -> 173,008
C115: 2026-09-04 | D115: =H114 -> 298,008 | E115: =SUMIFS($F$37:$F$92,$D$37:$D$92,C115,$F$37:$F$92,">0") -> 60,096 | F115: =SUMIFS($F$37:$F$92,$D$37:$D$92,C115,$F$37:$F$92,"<0") -> (33,112) | G115: =SUM(E115:F115) -> 26,984 | H115: =D115+G115 -> 324,992 | I115: ='Assumptions'!$E$148 -> 125,000 | J115: =H115-I115 -> 199,992
C116: 2026-09-05 | D116: =H115 -> 324,992 | E116: =SUMIFS($F$37:$F$92,$D$37:$D$92,C116,$F$37:$F$92,">0") -> 0 | F116: =SUMIFS($F$37:$F$92,$D$37:$D$92,C116,$F$37:$F$92,"<0") -> 0 | G116: =SUM(E116:F116) -> 0 | H116: =D116+G116 -> 324,992 | I116: ='Assumptions'!$E$148 -> 125,000 | J116: =H116-I116 -> 199,992
C117: 2026-09-06 | D117: =H116 -> 324,992 | E117: =SUMIFS($F$37:$F$92,$D$37:$D$92,C117,$F$37:$F$92,">0") -> 0 | F117: =SUMIFS($F$37:$F$92,$D$37:$D$92,C117,$F$37:$F$92,"<0") -> 0 | G117: =SUM(E117:F117) -> 0 | H117: =D117+G117 -> 324,992 | I117: ='Assumptions'!$E$148 -> 125,000 | J117: =H117-I117 -> 199,992
C118: 2026-09-07 | D118: =H117 -> 324,992 | E118: =SUMIFS($F$37:$F$92,$D$37:$D$92,C118,$F$37:$F$92,">0") -> 0 | F118: =SUMIFS($F$37:$F$92,$D$37:$D$92,C118,$F$37:$F$92,"<0") -> 0 | G118: =SUM(E118:F118) -> 0 | H118: =D118+G118 -> 324,992 | I118: ='Assumptions'!$E$148 -> 125,000 | J118: =H118-I118 -> 199,992
C119: 2026-09-08 | D119: =H118 -> 324,992 | E119: =SUMIFS($F$37:$F$92,$D$37:$D$92,C119,$F$37:$F$92,">0") -> 70,112 | F119: =SUMIFS($F$37:$F$92,$D$37:$D$92,C119,$F$37:$F$92,"<0") -> (42,000) | G119: =SUM(E119:F119) -> 28,112 | H119: =D119+G119 -> 353,104 | I119: ='Assumptions'!$E$148 -> 125,000 | J119: =H119-I119 -> 228,104
C120: 2026-09-09 | D120: =H119 -> 353,104 | E120: =SUMIFS($F$37:$F$92,$D$37:$D$92,C120,$F$37:$F$92,">0") -> 0 | F120: =SUMIFS($F$37:$F$92,$D$37:$D$92,C120,$F$37:$F$92,"<0") -> 0 | G120: =SUM(E120:F120) -> 0 | H120: =D120+G120 -> 353,104 | I120: ='Assumptions'!$E$148 -> 125,000 | J120: =H120-I120 -> 228,104
C121: 2026-09-10 | D121: =H120 -> 353,104 | E121: =SUMIFS($F$37:$F$92,$D$37:$D$92,C121,$F$37:$F$92,">0") -> 0 | F121: =SUMIFS($F$37:$F$92,$D$37:$D$92,C121,$F$37:$F$92,"<0") -> (17,000) | G121: =SUM(E121:F121) -> (17,000) | H121: =D121+G121 -> 336,104 | I121: ='Assumptions'!$E$148 -> 125,000 | J121: =H121-I121 -> 211,104
C122: 2026-09-11 | D122: =H121 -> 336,104 | E122: =SUMIFS($F$37:$F$92,$D$37:$D$92,C122,$F$37:$F$92,">0") -> 45,072 | F122: =SUMIFS($F$37:$F$92,$D$37:$D$92,C122,$F$37:$F$92,"<0") -> (38,206) | G122: =SUM(E122:F122) -> 6,866 | H122: =D122+G122 -> 342,970 | I122: ='Assumptions'!$E$148 -> 125,000 | J122: =H122-I122 -> 217,970
C123: 2026-09-12 | D123: =H122 -> 342,970 | E123: =SUMIFS($F$37:$F$92,$D$37:$D$92,C123,$F$37:$F$92,">0") -> 0 | F123: =SUMIFS($F$37:$F$92,$D$37:$D$92,C123,$F$37:$F$92,"<0") -> 0 | G123: =SUM(E123:F123) -> 0 | H123: =D123+G123 -> 342,970 | I123: ='Assumptions'!$E$148 -> 125,000 | J123: =H123-I123 -> 217,970
C124: 2026-09-13 | D124: =H123 -> 342,970 | E124: =SUMIFS($F$37:$F$92,$D$37:$D$92,C124,$F$37:$F$92,">0") -> 0 | F124: =SUMIFS($F$37:$F$92,$D$37:$D$92,C124,$F$37:$F$92,"<0") -> 0 | G124: =SUM(E124:F124) -> 0 | H124: =D124+G124 -> 342,970 | I124: ='Assumptions'!$E$148 -> 125,000 | J124: =H124-I124 -> 217,970
C125: 2026-09-14 | D125: =H124 -> 342,970 | E125: =SUMIFS($F$37:$F$92,$D$37:$D$92,C125,$F$37:$F$92,">0") -> 0 | F125: =SUMIFS($F$37:$F$92,$D$37:$D$92,C125,$F$37:$F$92,"<0") -> 0 | G125: =SUM(E125:F125) -> 0 | H125: =D125+G125 -> 342,970 | I125: ='Assumptions'!$E$148 -> 125,000 | J125: =H125-I125 -> 217,970
C126: 2026-09-15 | D126: =H125 -> 342,970 | E126: =SUMIFS($F$37:$F$92,$D$37:$D$92,C126,$F$37:$F$92,">0") -> 80,128 | F126: =SUMIFS($F$37:$F$92,$D$37:$D$92,C126,$F$37:$F$92,"<0") -> 0 | G126: =SUM(E126:F126) -> 80,128 | H126: =D126+G126 -> 423,098 | I126: ='Assumptions'!$E$148 -> 125,000 | J126: =H126-I126 -> 298,098
C127: 2026-09-16 | D127: =H126 -> 423,098 | E127: =SUMIFS($F$37:$F$92,$D$37:$D$92,C127,$F$37:$F$92,">0") -> 0 | F127: =SUMIFS($F$37:$F$92,$D$37:$D$92,C127,$F$37:$F$92,"<0") -> 0 | G127: =SUM(E127:F127) -> 0 | H127: =D127+G127 -> 423,098 | I127: ='Assumptions'!$E$148 -> 125,000 | J127: =H127-I127 -> 298,098
C128: 2026-09-17 | D128: =H127 -> 423,098 | E128: =SUMIFS($F$37:$F$92,$D$37:$D$92,C128,$F$37:$F$92,">0") -> 0 | F128: =SUMIFS($F$37:$F$92,$D$37:$D$92,C128,$F$37:$F$92,"<0") -> 0 | G128: =SUM(E128:F128) -> 0 | H128: =D128+G128 -> 423,098 | I128: ='Assumptions'!$E$148 -> 125,000 | J128: =H128-I128 -> 298,098
C129: 2026-09-18 | D129: =H128 -> 423,098 | E129: =SUMIFS($F$37:$F$92,$D$37:$D$92,C129,$F$37:$F$92,">0") -> 50,080 | F129: =SUMIFS($F$37:$F$92,$D$37:$D$92,C129,$F$37:$F$92,"<0") -> (40,754) | G129: =SUM(E129:F129) -> 9,327 | H129: =D129+G129 -> 432,425 | I129: ='Assumptions'!$E$148 -> 125,000 | J129: =H129-I129 -> 307,425
C130: 2026-09-19 | D130: =H129 -> 432,425 | E130: =SUMIFS($F$37:$F$92,$D$37:$D$92,C130,$F$37:$F$92,">0") -> 0 | F130: =SUMIFS($F$37:$F$92,$D$37:$D$92,C130,$F$37:$F$92,"<0") -> 0 | G130: =SUM(E130:F130) -> 0 | H130: =D130+G130 -> 432,425 | I130: ='Assumptions'!$E$148 -> 125,000 | J130: =H130-I130 -> 307,425
C131: 2026-09-20 | D131: =H130 -> 432,425 | E131: =SUMIFS($F$37:$F$92,$D$37:$D$92,C131,$F$37:$F$92,">0") -> 0 | F131: =SUMIFS($F$37:$F$92,$D$37:$D$92,C131,$F$37:$F$92,"<0") -> 0 | G131: =SUM(E131:F131) -> 0 | H131: =D131+G131 -> 432,425 | I131: ='Assumptions'!$E$148 -> 125,000 | J131: =H131-I131 -> 307,425
C132: 2026-09-21 | D132: =H131 -> 432,425 | E132: =SUMIFS($F$37:$F$92,$D$37:$D$92,C132,$F$37:$F$92,">0") -> 0 | F132: =SUMIFS($F$37:$F$92,$D$37:$D$92,C132,$F$37:$F$92,"<0") -> (18,000) | G132: =SUM(E132:F132) -> (18,000) | H132: =D132+G132 -> 414,425 | I132: ='Assumptions'!$E$148 -> 125,000 | J132: =H132-I132 -> 289,425
C133: 2026-09-22 | D133: =H132 -> 414,425 | E133: =SUMIFS($F$37:$F$92,$D$37:$D$92,C133,$F$37:$F$92,">0") -> 65,104 | F133: =SUMIFS($F$37:$F$92,$D$37:$D$92,C133,$F$37:$F$92,"<0") -> (30,565) | G133: =SUM(E133:F133) -> 34,539 | H133: =D133+G133 -> 448,964 | I133: ='Assumptions'!$E$148 -> 125,000 | J133: =H133-I133 -> 323,964
C134: 2026-09-23 | D134: =H133 -> 448,964 | E134: =SUMIFS($F$37:$F$92,$D$37:$D$92,C134,$F$37:$F$92,">0") -> 0 | F134: =SUMIFS($F$37:$F$92,$D$37:$D$92,C134,$F$37:$F$92,"<0") -> 0 | G134: =SUM(E134:F134) -> 0 | H134: =D134+G134 -> 448,964 | I134: ='Assumptions'!$E$148 -> 125,000 | J134: =H134-I134 -> 323,964
C135: 2026-09-24 | D135: =H134 -> 448,964 | E135: =SUMIFS($F$37:$F$92,$D$37:$D$92,C135,$F$37:$F$92,">0") -> 0 | F135: =SUMIFS($F$37:$F$92,$D$37:$D$92,C135,$F$37:$F$92,"<0") -> 0 | G135: =SUM(E135:F135) -> 0 | H135: =D135+G135 -> 448,964 | I135: ='Assumptions'!$E$148 -> 125,000 | J135: =H135-I135 -> 323,964
C136: 2026-09-25 | D136: =H135 -> 448,964 | E136: =SUMIFS($F$37:$F$92,$D$37:$D$92,C136,$F$37:$F$92,">0") -> 55,088 | F136: =SUMIFS($F$37:$F$92,$D$37:$D$92,C136,$F$37:$F$92,"<0") -> (151,218) | G136: =SUM(E136:F136) -> (96,130) | H136: =D136+G136 -> 352,834 | I136: ='Assumptions'!$E$148 -> 125,000 | J136: =H136-I136 -> 227,834
C137: 2026-09-26 | D137: =H136 -> 352,834 | E137: =SUMIFS($F$37:$F$92,$D$37:$D$92,C137,$F$37:$F$92,">0") -> 0 | F137: =SUMIFS($F$37:$F$92,$D$37:$D$92,C137,$F$37:$F$92,"<0") -> 0 | G137: =SUM(E137:F137) -> 0 | H137: =D137+G137 -> 352,834 | I137: ='Assumptions'!$E$148 -> 125,000 | J137: =H137-I137 -> 227,834
C138: 2026-09-27 | D138: =H137 -> 352,834 | E138: =SUMIFS($F$37:$F$92,$D$37:$D$92,C138,$F$37:$F$92,">0") -> 0 | F138: =SUMIFS($F$37:$F$92,$D$37:$D$92,C138,$F$37:$F$92,"<0") -> 0 | G138: =SUM(E138:F138) -> 0 | H138: =D138+G138 -> 352,834 | I138: ='Assumptions'!$E$148 -> 125,000 | J138: =H138-I138 -> 227,834
C139: 2026-09-28 | D139: =H138 -> 352,834 | E139: =SUMIFS($F$37:$F$92,$D$37:$D$92,C139,$F$37:$F$92,">0") -> 0 | F139: =SUMIFS($F$37:$F$92,$D$37:$D$92,C139,$F$37:$F$92,"<0") -> (7,499) | G139: =SUM(E139:F139) -> (7,499) | H139: =D139+G139 -> 345,334 | I139: ='Assumptions'!$E$148 -> 125,000 | J139: =H139-I139 -> 220,334
C140: 2026-09-29 | D140: =H139 -> 345,334 | E140: =SUMIFS($F$37:$F$92,$D$37:$D$92,C140,$F$37:$F$92,">0") -> 0 | F140: =SUMIFS($F$37:$F$92,$D$37:$D$92,C140,$F$37:$F$92,"<0") -> 0 | G140: =SUM(E140:F140) -> 0 | H140: =D140+G140 -> 345,334 | I140: ='Assumptions'!$E$148 -> 125,000 | J140: =H140-I140 -> 220,334
C141: 2026-09-30 | D141: =H140 -> 345,334 | E141: =SUMIFS($F$37:$F$92,$D$37:$D$92,C141,$F$37:$F$92,">0") -> 0 | F141: =SUMIFS($F$37:$F$92,$D$37:$D$92,C141,$F$37:$F$92,"<0") -> 0 | G141: =SUM(E141:F141) -> 0 | H141: =D141+G141 -> 345,334 | I141: ='Assumptions'!$E$148 -> 125,000 | J141: =H141-I141 -> 220,334
C142: 2026-10-01 | D142: =H141 -> 345,334 | E142: =SUMIFS($F$37:$F$92,$D$37:$D$92,C142,$F$37:$F$92,">0") -> 0 | F142: =SUMIFS($F$37:$F$92,$D$37:$D$92,C142,$F$37:$F$92,"<0") -> 0 | G142: =SUM(E142:F142) -> 0 | H142: =D142+G142 -> 345,334 | I142: ='Assumptions'!$E$148 -> 125,000 | J142: =H142-I142 -> 220,334
C143: 2026-10-02 | D143: =H142 -> 345,334 | E143: =SUMIFS($F$37:$F$92,$D$37:$D$92,C143,$F$37:$F$92,">0") -> 75,120 | F143: =SUMIFS($F$37:$F$92,$D$37:$D$92,C143,$F$37:$F$92,"<0") -> (35,659) | G143: =SUM(E143:F143) -> 39,461 | H143: =D143+G143 -> 384,795 | I143: ='Assumptions'!$E$148 -> 125,000 | J143: =H143-I143 -> 259,795
C144: 2026-10-03 | D144: =H143 -> 384,795 | E144: =SUMIFS($F$37:$F$92,$D$37:$D$92,C144,$F$37:$F$92,">0") -> 0 | F144: =SUMIFS($F$37:$F$92,$D$37:$D$92,C144,$F$37:$F$92,"<0") -> 0 | G144: =SUM(E144:F144) -> 0 | H144: =D144+G144 -> 384,795 | I144: ='Assumptions'!$E$148 -> 125,000 | J144: =H144-I144 -> 259,795
C145: 2026-10-04 | D145: =H144 -> 384,795 | E145: =SUMIFS($F$37:$F$92,$D$37:$D$92,C145,$F$37:$F$92,">0") -> 0 | F145: =SUMIFS($F$37:$F$92,$D$37:$D$92,C145,$F$37:$F$92,"<0") -> 0 | G145: =SUM(E145:F145) -> 0 | H145: =D145+G145 -> 384,795 | I145: ='Assumptions'!$E$148 -> 125,000 | J145: =H145-I145 -> 259,795
C146: 2026-10-05 | D146: =H145 -> 384,795 | E146: =SUMIFS($F$37:$F$92,$D$37:$D$92,C146,$F$37:$F$92,">0") -> 0 | F146: =SUMIFS($F$37:$F$92,$D$37:$D$92,C146,$F$37:$F$92,"<0") -> 0 | G146: =SUM(E146:F146) -> 0 | H146: =D146+G146 -> 384,795 | I146: ='Assumptions'!$E$148 -> 125,000 | J146: =H146-I146 -> 259,795
C147: 2026-10-06 | D147: =H146 -> 384,795 | E147: =SUMIFS($F$37:$F$92,$D$37:$D$92,C147,$F$37:$F$92,">0") -> 0 | F147: =SUMIFS($F$37:$F$92,$D$37:$D$92,C147,$F$37:$F$92,"<0") -> 0 | G147: =SUM(E147:F147) -> 0 | H147: =D147+G147 -> 384,795 | I147: ='Assumptions'!$E$148 -> 125,000 | J147: =H147-I147 -> 259,795
C148: 2026-10-07 | D148: =H147 -> 384,795 | E148: =SUMIFS($F$37:$F$92,$D$37:$D$92,C148,$F$37:$F$92,">0") -> 0 | F148: =SUMIFS($F$37:$F$92,$D$37:$D$92,C148,$F$37:$F$92,"<0") -> 0 | G148: =SUM(E148:F148) -> 0 | H148: =D148+G148 -> 384,795 | I148: ='Assumptions'!$E$148 -> 125,000 | J148: =H148-I148 -> 259,795
C149: 2026-10-08 | D149: =H148 -> 384,795 | E149: =SUMIFS($F$37:$F$92,$D$37:$D$92,C149,$F$37:$F$92,">0") -> 0 | F149: =SUMIFS($F$37:$F$92,$D$37:$D$92,C149,$F$37:$F$92,"<0") -> (9,000) | G149: =SUM(E149:F149) -> (9,000) | H149: =D149+G149 -> 375,795 | I149: ='Assumptions'!$E$148 -> 125,000 | J149: =H149-I149 -> 250,795
C150: 2026-10-09 | D150: =H149 -> 375,795 | E150: =SUMIFS($F$37:$F$92,$D$37:$D$92,C150,$F$37:$F$92,">0") -> 0 | F150: =SUMIFS($F$37:$F$92,$D$37:$D$92,C150,$F$37:$F$92,"<0") -> 0 | G150: =SUM(E150:F150) -> 0 | H150: =D150+G150 -> 375,795 | I150: ='Assumptions'!$E$148 -> 125,000 | J150: =H150-I150 -> 250,795
C151: 2026-10-10 | D151: =H150 -> 375,795 | E151: =SUMIFS($F$37:$F$92,$D$37:$D$92,C151,$F$37:$F$92,">0") -> 0 | F151: =SUMIFS($F$37:$F$92,$D$37:$D$92,C151,$F$37:$F$92,"<0") -> (17,000) | G151: =SUM(E151:F151) -> (17,000) | H151: =D151+G151 -> 358,795 | I151: ='Assumptions'!$E$148 -> 125,000 | J151: =H151-I151 -> 233,795
C152: 2026-10-11 | D152: =H151 -> 358,795 | E152: =SUMIFS($F$37:$F$92,$D$37:$D$92,C152,$F$37:$F$92,">0") -> 0 | F152: =SUMIFS($F$37:$F$92,$D$37:$D$92,C152,$F$37:$F$92,"<0") -> 0 | G152: =SUM(E152:F152) -> 0 | H152: =D152+G152 -> 358,795 | I152: ='Assumptions'!$E$148 -> 125,000 | J152: =H152-I152 -> 233,795
C153: 2026-10-12 | D153: =H152 -> 358,795 | E153: =SUMIFS($F$37:$F$92,$D$37:$D$92,C153,$F$37:$F$92,">0") -> 0 | F153: =SUMIFS($F$37:$F$92,$D$37:$D$92,C153,$F$37:$F$92,"<0") -> (127,462) | G153: =SUM(E153:F153) -> (127,462) | H153: =D153+G153 -> 231,333 | I153: ='Assumptions'!$E$148 -> 125,000 | J153: =H153-I153 -> 106,333
C154: 2026-10-13 | D154: =H153 -> 231,333 | E154: =SUMIFS($F$37:$F$92,$D$37:$D$92,C154,$F$37:$F$92,">0") -> 0 | F154: =SUMIFS($F$37:$F$92,$D$37:$D$92,C154,$F$37:$F$92,"<0") -> 0 | G154: =SUM(E154:F154) -> 0 | H154: =D154+G154 -> 231,333 | I154: ='Assumptions'!$E$148 -> 125,000 | J154: =H154-I154 -> 106,333
C155: 2026-10-14 | D155: =H154 -> 231,333 | E155: =SUMIFS($F$37:$F$92,$D$37:$D$92,C155,$F$37:$F$92,">0") -> 0 | F155: =SUMIFS($F$37:$F$92,$D$37:$D$92,C155,$F$37:$F$92,"<0") -> 0 | G155: =SUM(E155:F155) -> 0 | H155: =D155+G155 -> 231,333 | I155: ='Assumptions'!$E$148 -> 125,000 | J155: =H155-I155 -> 106,333
C156: 2026-10-15 | D156: =H155 -> 231,333 | E156: =SUMIFS($F$37:$F$92,$D$37:$D$92,C156,$F$37:$F$92,">0") -> 145,999 | F156: =SUMIFS($F$37:$F$92,$D$37:$D$92,C156,$F$37:$F$92,"<0") -> 0 | G156: =SUM(E156:F156) -> 145,999 | H156: =D156+G156 -> 377,333 | I156: ='Assumptions'!$E$148 -> 125,000 | J156: =H156-I156 -> 252,333
C157: 2026-10-16 | D157: =H156 -> 377,333 | E157: =SUMIFS($F$37:$F$92,$D$37:$D$92,C157,$F$37:$F$92,">0") -> 0 | F157: =SUMIFS($F$37:$F$92,$D$37:$D$92,C157,$F$37:$F$92,"<0") -> 0 | G157: =SUM(E157:F157) -> 0 | H157: =D157+G157 -> 377,333 | I157: ='Assumptions'!$E$148 -> 125,000 | J157: =H157-I157 -> 252,333
C158: 2026-10-17 | D158: =H157 -> 377,333 | E158: =SUMIFS($F$37:$F$92,$D$37:$D$92,C158,$F$37:$F$92,">0") -> 0 | F158: =SUMIFS($F$37:$F$92,$D$37:$D$92,C158,$F$37:$F$92,"<0") -> 0 | G158: =SUM(E158:F158) -> 0 | H158: =D158+G158 -> 377,333 | I158: ='Assumptions'!$E$148 -> 125,000 | J158: =H158-I158 -> 252,333
C159: 2026-10-18 | D159: =H158 -> 377,333 | E159: =SUMIFS($F$37:$F$92,$D$37:$D$92,C159,$F$37:$F$92,">0") -> 0 | F159: =SUMIFS($F$37:$F$92,$D$37:$D$92,C159,$F$37:$F$92,"<0") -> 0 | G159: =SUM(E159:F159) -> 0 | H159: =D159+G159 -> 377,333 | I159: ='Assumptions'!$E$148 -> 125,000 | J159: =H159-I159 -> 252,333
C160: 2026-10-19 | D160: =H159 -> 377,333 | E160: =SUMIFS($F$37:$F$92,$D$37:$D$92,C160,$F$37:$F$92,">0") -> 0 | F160: =SUMIFS($F$37:$F$92,$D$37:$D$92,C160,$F$37:$F$92,"<0") -> 0 | G160: =SUM(E160:F160) -> 0 | H160: =D160+G160 -> 377,333 | I160: ='Assumptions'!$E$148 -> 125,000 | J160: =H160-I160 -> 252,333
C161: 2026-10-20 | D161: =H160 -> 377,333 | E161: =SUMIFS($F$37:$F$92,$D$37:$D$92,C161,$F$37:$F$92,">0") -> 0 | F161: =SUMIFS($F$37:$F$92,$D$37:$D$92,C161,$F$37:$F$92,"<0") -> 0 | G161: =SUM(E161:F161) -> 0 | H161: =D161+G161 -> 377,333 | I161: ='Assumptions'!$E$148 -> 125,000 | J161: =H161-I161 -> 252,333
C162: 2026-10-21 | D162: =H161 -> 377,333 | E162: =SUMIFS($F$37:$F$92,$D$37:$D$92,C162,$F$37:$F$92,">0") -> 0 | F162: =SUMIFS($F$37:$F$92,$D$37:$D$92,C162,$F$37:$F$92,"<0") -> 0 | G162: =SUM(E162:F162) -> 0 | H162: =D162+G162 -> 377,333 | I162: ='Assumptions'!$E$148 -> 125,000 | J162: =H162-I162 -> 252,333
C163: 2026-10-22 | D163: =H162 -> 377,333 | E163: =SUMIFS($F$37:$F$92,$D$37:$D$92,C163,$F$37:$F$92,">0") -> 0 | F163: =SUMIFS($F$37:$F$92,$D$37:$D$92,C163,$F$37:$F$92,"<0") -> 0 | G163: =SUM(E163:F163) -> 0 | H163: =D163+G163 -> 377,333 | I163: ='Assumptions'!$E$148 -> 125,000 | J163: =H163-I163 -> 252,333
C164: 2026-10-23 | D164: =H163 -> 377,333 | E164: =SUMIFS($F$37:$F$92,$D$37:$D$92,C164,$F$37:$F$92,">0") -> 0 | F164: =SUMIFS($F$37:$F$92,$D$37:$D$92,C164,$F$37:$F$92,"<0") -> 0 | G164: =SUM(E164:F164) -> 0 | H164: =D164+G164 -> 377,333 | I164: ='Assumptions'!$E$148 -> 125,000 | J164: =H164-I164 -> 252,333
C165: 2026-10-24 | D165: =H164 -> 377,333 | E165: =SUMIFS($F$37:$F$92,$D$37:$D$92,C165,$F$37:$F$92,">0") -> 0 | F165: =SUMIFS($F$37:$F$92,$D$37:$D$92,C165,$F$37:$F$92,"<0") -> 0 | G165: =SUM(E165:F165) -> 0 | H165: =D165+G165 -> 377,333 | I165: ='Assumptions'!$E$148 -> 125,000 | J165: =H165-I165 -> 252,333
C166: 2026-10-25 | D166: =H165 -> 377,333 | E166: =SUMIFS($F$37:$F$92,$D$37:$D$92,C166,$F$37:$F$92,">0") -> 0 | F166: =SUMIFS($F$37:$F$92,$D$37:$D$92,C166,$F$37:$F$92,"<0") -> (125,600) | G166: =SUM(E166:F166) -> (125,600) | H166: =D166+G166 -> 251,733 | I166: ='Assumptions'!$E$148 -> 125,000 | J166: =H166-I166 -> 126,733
C167: 2026-10-26 | D167: =H166 -> 251,733 | E167: =SUMIFS($F$37:$F$92,$D$37:$D$92,C167,$F$37:$F$92,">0") -> 0 | F167: =SUMIFS($F$37:$F$92,$D$37:$D$92,C167,$F$37:$F$92,"<0") -> (155,787) | G167: =SUM(E167:F167) -> (155,787) | H167: =D167+G167 -> 95,946 | I167: ='Assumptions'!$E$148 -> 125,000 | J167: =H167-I167 -> (29,054)
C168: 2026-10-27 | D168: =H167 -> 95,946 | E168: =SUMIFS($F$37:$F$92,$D$37:$D$92,C168,$F$37:$F$92,">0") -> 0 | F168: =SUMIFS($F$37:$F$92,$D$37:$D$92,C168,$F$37:$F$92,"<0") -> 0 | G168: =SUM(E168:F168) -> 0 | H168: =D168+G168 -> 95,946 | I168: ='Assumptions'!$E$148 -> 125,000 | J168: =H168-I168 -> (29,054)
C169: 2026-10-28 | D169: =H168 -> 95,946 | E169: =SUMIFS($F$37:$F$92,$D$37:$D$92,C169,$F$37:$F$92,">0") -> 271,142 | F169: =SUMIFS($F$37:$F$92,$D$37:$D$92,C169,$F$37:$F$92,"<0") -> (7,469) | G169: =SUM(E169:F169) -> 263,673 | H169: =D169+G169 -> 359,619 | I169: ='Assumptions'!$E$148 -> 125,000 | J169: =H169-I169 -> 234,619
C170: 2026-10-29 | D170: =H169 -> 359,619 | E170: =SUMIFS($F$37:$F$92,$D$37:$D$92,C170,$F$37:$F$92,">0") -> 0 | F170: =SUMIFS($F$37:$F$92,$D$37:$D$92,C170,$F$37:$F$92,"<0") -> 0 | G170: =SUM(E170:F170) -> 0 | H170: =D170+G170 -> 359,619 | I170: ='Assumptions'!$E$148 -> 125,000 | J170: =H170-I170 -> 234,619
C171: 2026-10-30 | D171: =H170 -> 359,619 | E171: =SUMIFS($F$37:$F$92,$D$37:$D$92,C171,$F$37:$F$92,">0") -> 0 | F171: =SUMIFS($F$37:$F$92,$D$37:$D$92,C171,$F$37:$F$92,"<0") -> 0 | G171: =SUM(E171:F171) -> 0 | H171: =D171+G171 -> 359,619 | I171: ='Assumptions'!$E$148 -> 125,000 | J171: =H171-I171 -> 234,619
C172: 2026-10-31 | D172: =H171 -> 359,619 | E172: =SUMIFS($F$37:$F$92,$D$37:$D$92,C172,$F$37:$F$92,">0") -> 0 | F172: =SUMIFS($F$37:$F$92,$D$37:$D$92,C172,$F$37:$F$92,"<0") -> 0 | G172: =SUM(E172:F172) -> 0 | H172: =D172+G172 -> 359,619 | I172: ='Assumptions'!$E$148 -> 125,000 | J172: =H172-I172 -> 234,619
C173: 2026-11-01 | D173: =H172 -> 359,619 | E173: =SUMIFS($F$37:$F$92,$D$37:$D$92,C173,$F$37:$F$92,">0") -> 0 | F173: =SUMIFS($F$37:$F$92,$D$37:$D$92,C173,$F$37:$F$92,"<0") -> 0 | G173: =SUM(E173:F173) -> 0 | H173: =D173+G173 -> 359,619 | I173: ='Assumptions'!$E$148 -> 125,000 | J173: =H173-I173 -> 234,619
C174: 2026-11-02 | D174: =H173 -> 359,619 | E174: =SUMIFS($F$37:$F$92,$D$37:$D$92,C174,$F$37:$F$92,">0") -> 0 | F174: =SUMIFS($F$37:$F$92,$D$37:$D$92,C174,$F$37:$F$92,"<0") -> 0 | G174: =SUM(E174:F174) -> 0 | H174: =D174+G174 -> 359,619 | I174: ='Assumptions'!$E$148 -> 125,000 | J174: =H174-I174 -> 234,619
C175: 2026-11-03 | D175: =H174 -> 359,619 | E175: =SUMIFS($F$37:$F$92,$D$37:$D$92,C175,$F$37:$F$92,">0") -> 0 | F175: =SUMIFS($F$37:$F$92,$D$37:$D$92,C175,$F$37:$F$92,"<0") -> 0 | G175: =SUM(E175:F175) -> 0 | H175: =D175+G175 -> 359,619 | I175: ='Assumptions'!$E$148 -> 125,000 | J175: =H175-I175 -> 234,619
C176: 2026-11-04 | D176: =H175 -> 359,619 | E176: =SUMIFS($F$37:$F$92,$D$37:$D$92,C176,$F$37:$F$92,">0") -> 0 | F176: =SUMIFS($F$37:$F$92,$D$37:$D$92,C176,$F$37:$F$92,"<0") -> 0 | G176: =SUM(E176:F176) -> 0 | H176: =D176+G176 -> 359,619 | I176: ='Assumptions'!$E$148 -> 125,000 | J176: =H176-I176 -> 234,619
C177: 2026-11-05 | D177: =H176 -> 359,619 | E177: =SUMIFS($F$37:$F$92,$D$37:$D$92,C177,$F$37:$F$92,">0") -> 0 | F177: =SUMIFS($F$37:$F$92,$D$37:$D$92,C177,$F$37:$F$92,"<0") -> 0 | G177: =SUM(E177:F177) -> 0 | H177: =D177+G177 -> 359,619 | I177: ='Assumptions'!$E$148 -> 125,000 | J177: =H177-I177 -> 234,619
C178: 2026-11-06 | D178: =H177 -> 359,619 | E178: =SUMIFS($F$37:$F$92,$D$37:$D$92,C178,$F$37:$F$92,">0") -> 0 | F178: =SUMIFS($F$37:$F$92,$D$37:$D$92,C178,$F$37:$F$92,"<0") -> 0 | G178: =SUM(E178:F178) -> 0 | H178: =D178+G178 -> 359,619 | I178: ='Assumptions'!$E$148 -> 125,000 | J178: =H178-I178 -> 234,619
C179: 2026-11-07 | D179: =H178 -> 359,619 | E179: =SUMIFS($F$37:$F$92,$D$37:$D$92,C179,$F$37:$F$92,">0") -> 0 | F179: =SUMIFS($F$37:$F$92,$D$37:$D$92,C179,$F$37:$F$92,"<0") -> 0 | G179: =SUM(E179:F179) -> 0 | H179: =D179+G179 -> 359,619 | I179: ='Assumptions'!$E$148 -> 125,000 | J179: =H179-I179 -> 234,619
C180: 2026-11-08 | D180: =H179 -> 359,619 | E180: =SUMIFS($F$37:$F$92,$D$37:$D$92,C180,$F$37:$F$92,">0") -> 0 | F180: =SUMIFS($F$37:$F$92,$D$37:$D$92,C180,$F$37:$F$92,"<0") -> (12,000) | G180: =SUM(E180:F180) -> (12,000) | H180: =D180+G180 -> 347,619 | I180: ='Assumptions'!$E$148 -> 125,000 | J180: =H180-I180 -> 222,619
C181: 2026-11-09 | D181: =H180 -> 347,619 | E181: =SUMIFS($F$37:$F$92,$D$37:$D$92,C181,$F$37:$F$92,">0") -> 0 | F181: =SUMIFS($F$37:$F$92,$D$37:$D$92,C181,$F$37:$F$92,"<0") -> 0 | G181: =SUM(E181:F181) -> 0 | H181: =D181+G181 -> 347,619 | I181: ='Assumptions'!$E$148 -> 125,000 | J181: =H181-I181 -> 222,619
C182: 2026-11-10 | D182: =H181 -> 347,619 | E182: =SUMIFS($F$37:$F$92,$D$37:$D$92,C182,$F$37:$F$92,">0") -> 0 | F182: =SUMIFS($F$37:$F$92,$D$37:$D$92,C182,$F$37:$F$92,"<0") -> (17,000) | G182: =SUM(E182:F182) -> (17,000) | H182: =D182+G182 -> 330,619 | I182: ='Assumptions'!$E$148 -> 125,000 | J182: =H182-I182 -> 205,619
C183: 2026-11-11 | D183: =H182 -> 330,619 | E183: =SUMIFS($F$37:$F$92,$D$37:$D$92,C183,$F$37:$F$92,">0") -> 0 | F183: =SUMIFS($F$37:$F$92,$D$37:$D$92,C183,$F$37:$F$92,"<0") -> 0 | G183: =SUM(E183:F183) -> 0 | H183: =D183+G183 -> 330,619 | I183: ='Assumptions'!$E$148 -> 125,000 | J183: =H183-I183 -> 205,619
C184: 2026-11-12 | D184: =H183 -> 330,619 | E184: =SUMIFS($F$37:$F$92,$D$37:$D$92,C184,$F$37:$F$92,">0") -> 0 | F184: =SUMIFS($F$37:$F$92,$D$37:$D$92,C184,$F$37:$F$92,"<0") -> (120,803) | G184: =SUM(E184:F184) -> (120,803) | H184: =D184+G184 -> 209,816 | I184: ='Assumptions'!$E$148 -> 125,000 | J184: =H184-I184 -> 84,816
C185: 2026-11-13 | D185: =H184 -> 209,816 | E185: =SUMIFS($F$37:$F$92,$D$37:$D$92,C185,$F$37:$F$92,">0") -> 0 | F185: =SUMIFS($F$37:$F$92,$D$37:$D$92,C185,$F$37:$F$92,"<0") -> 0 | G185: =SUM(E185:F185) -> 0 | H185: =D185+G185 -> 209,816 | I185: ='Assumptions'!$E$148 -> 125,000 | J185: =H185-I185 -> 84,816
C186: 2026-11-14 | D186: =H185 -> 209,816 | E186: =SUMIFS($F$37:$F$92,$D$37:$D$92,C186,$F$37:$F$92,">0") -> 0 | F186: =SUMIFS($F$37:$F$92,$D$37:$D$92,C186,$F$37:$F$92,"<0") -> 0 | G186: =SUM(E186:F186) -> 0 | H186: =D186+G186 -> 209,816 | I186: ='Assumptions'!$E$148 -> 125,000 | J186: =H186-I186 -> 84,816
C187: 2026-11-15 | D187: =H186 -> 209,816 | E187: =SUMIFS($F$37:$F$92,$D$37:$D$92,C187,$F$37:$F$92,">0") -> 175,340 | F187: =SUMIFS($F$37:$F$92,$D$37:$D$92,C187,$F$37:$F$92,"<0") -> 0 | G187: =SUM(E187:F187) -> 175,340 | H187: =D187+G187 -> 385,156 | I187: ='Assumptions'!$E$148 -> 125,000 | J187: =H187-I187 -> 260,156
C188: 2026-11-16 | D188: =H187 -> 385,156 | E188: =SUMIFS($F$37:$F$92,$D$37:$D$92,C188,$F$37:$F$92,">0") -> 0 | F188: =SUMIFS($F$37:$F$92,$D$37:$D$92,C188,$F$37:$F$92,"<0") -> 0 | G188: =SUM(E188:F188) -> 0 | H188: =D188+G188 -> 385,156 | I188: ='Assumptions'!$E$148 -> 125,000 | J188: =H188-I188 -> 260,156
C189: 2026-11-17 | D189: =H188 -> 385,156 | E189: =SUMIFS($F$37:$F$92,$D$37:$D$92,C189,$F$37:$F$92,">0") -> 0 | F189: =SUMIFS($F$37:$F$92,$D$37:$D$92,C189,$F$37:$F$92,"<0") -> 0 | G189: =SUM(E189:F189) -> 0 | H189: =D189+G189 -> 385,156 | I189: ='Assumptions'!$E$148 -> 125,000 | J189: =H189-I189 -> 260,156
C190: 2026-11-18 | D190: =H189 -> 385,156 | E190: =SUMIFS($F$37:$F$92,$D$37:$D$92,C190,$F$37:$F$92,">0") -> 0 | F190: =SUMIFS($F$37:$F$92,$D$37:$D$92,C190,$F$37:$F$92,"<0") -> 0 | G190: =SUM(E190:F190) -> 0 | H190: =D190+G190 -> 385,156 | I190: ='Assumptions'!$E$148 -> 125,000 | J190: =H190-I190 -> 260,156
C191: 2026-11-19 | D191: =H190 -> 385,156 | E191: =SUMIFS($F$37:$F$92,$D$37:$D$92,C191,$F$37:$F$92,">0") -> 0 | F191: =SUMIFS($F$37:$F$92,$D$37:$D$92,C191,$F$37:$F$92,"<0") -> 0 | G191: =SUM(E191:F191) -> 0 | H191: =D191+G191 -> 385,156 | I191: ='Assumptions'!$E$148 -> 125,000 | J191: =H191-I191 -> 260,156
C192: 2026-11-20 | D192: =H191 -> 385,156 | E192: =SUMIFS($F$37:$F$92,$D$37:$D$92,C192,$F$37:$F$92,">0") -> 0 | F192: =SUMIFS($F$37:$F$92,$D$37:$D$92,C192,$F$37:$F$92,"<0") -> 0 | G192: =SUM(E192:F192) -> 0 | H192: =D192+G192 -> 385,156 | I192: ='Assumptions'!$E$148 -> 125,000 | J192: =H192-I192 -> 260,156
C193: 2026-11-21 | D193: =H192 -> 385,156 | E193: =SUMIFS($F$37:$F$92,$D$37:$D$92,C193,$F$37:$F$92,">0") -> 0 | F193: =SUMIFS($F$37:$F$92,$D$37:$D$92,C193,$F$37:$F$92,"<0") -> 0 | G193: =SUM(E193:F193) -> 0 | H193: =D193+G193 -> 385,156 | I193: ='Assumptions'!$E$148 -> 125,000 | J193: =H193-I193 -> 260,156
C194: 2026-11-22 | D194: =H193 -> 385,156 | E194: =SUMIFS($F$37:$F$92,$D$37:$D$92,C194,$F$37:$F$92,">0") -> 0 | F194: =SUMIFS($F$37:$F$92,$D$37:$D$92,C194,$F$37:$F$92,"<0") -> 0 | G194: =SUM(E194:F194) -> 0 | H194: =D194+G194 -> 385,156 | I194: ='Assumptions'!$E$148 -> 125,000 | J194: =H194-I194 -> 260,156
C195: 2026-11-23 | D195: =H194 -> 385,156 | E195: =SUMIFS($F$37:$F$92,$D$37:$D$92,C195,$F$37:$F$92,">0") -> 0 | F195: =SUMIFS($F$37:$F$92,$D$37:$D$92,C195,$F$37:$F$92,"<0") -> 0 | G195: =SUM(E195:F195) -> 0 | H195: =D195+G195 -> 385,156 | I195: ='Assumptions'!$E$148 -> 125,000 | J195: =H195-I195 -> 260,156
C196: 2026-11-24 | D196: =H195 -> 385,156 | E196: =SUMIFS($F$37:$F$92,$D$37:$D$92,C196,$F$37:$F$92,">0") -> 0 | F196: =SUMIFS($F$37:$F$92,$D$37:$D$92,C196,$F$37:$F$92,"<0") -> 0 | G196: =SUM(E196:F196) -> 0 | H196: =D196+G196 -> 385,156 | I196: ='Assumptions'!$E$148 -> 125,000 | J196: =H196-I196 -> 260,156
C197: 2026-11-25 | D197: =H196 -> 385,156 | E197: =SUMIFS($F$37:$F$92,$D$37:$D$92,C197,$F$37:$F$92,">0") -> 0 | F197: =SUMIFS($F$37:$F$92,$D$37:$D$92,C197,$F$37:$F$92,"<0") -> (130,100) | G197: =SUM(E197:F197) -> (130,100) | H197: =D197+G197 -> 255,056 | I197: ='Assumptions'!$E$148 -> 125,000 | J197: =H197-I197 -> 130,056
C198: 2026-11-26 | D198: =H197 -> 255,056 | E198: =SUMIFS($F$37:$F$92,$D$37:$D$92,C198,$F$37:$F$92,">0") -> 0 | F198: =SUMIFS($F$37:$F$92,$D$37:$D$92,C198,$F$37:$F$92,"<0") -> (147,648) | G198: =SUM(E198:F198) -> (147,648) | H198: =D198+G198 -> 107,408 | I198: ='Assumptions'!$E$148 -> 125,000 | J198: =H198-I198 -> (17,592)
C199: 2026-11-27 | D199: =H198 -> 107,408 | E199: =SUMIFS($F$37:$F$92,$D$37:$D$92,C199,$F$37:$F$92,">0") -> 0 | F199: =SUMIFS($F$37:$F$92,$D$37:$D$92,C199,$F$37:$F$92,"<0") -> 0 | G199: =SUM(E199:F199) -> 0 | H199: =D199+G199 -> 107,408 | I199: ='Assumptions'!$E$148 -> 125,000 | J199: =H199-I199 -> (17,592)
C200: 2026-11-28 | D200: =H199 -> 107,408 | E200: =SUMIFS($F$37:$F$92,$D$37:$D$92,C200,$F$37:$F$92,">0") -> 325,632 | F200: =SUMIFS($F$37:$F$92,$D$37:$D$92,C200,$F$37:$F$92,"<0") -> (7,440) | G200: =SUM(E200:F200) -> 318,193 | H200: =D200+G200 -> 425,600 | I200: ='Assumptions'!$E$148 -> 125,000 | J200: =H200-I200 -> 300,600
C201: 2026-11-29 | D201: =H200 -> 425,600 | E201: =SUMIFS($F$37:$F$92,$D$37:$D$92,C201,$F$37:$F$92,">0") -> 0 | F201: =SUMIFS($F$37:$F$92,$D$37:$D$92,C201,$F$37:$F$92,"<0") -> 0 | G201: =SUM(E201:F201) -> 0 | H201: =D201+G201 -> 425,600 | I201: ='Assumptions'!$E$148 -> 125,000 | J201: =H201-I201 -> 300,600

Sheet Projects
C2: Projects
C4: Selected case | E4: ='Assumptions'!$G$4 -> Base | H4: EUR. Entirely fictional.
E6: Actual | F6: Actual | G6: Actual | H6: Actual | I6: Actual | J6: Actual | K6: Actual | L6: Actual | M6: Forecast | N6: Forecast | O6: Forecast | P6: Forecast
E7: 2026-01-01 | F7: 2026-02-01 | G7: 2026-03-01 | H7: 2026-04-01 | I7: 2026-05-01 | J7: 2026-06-01 | K7: 2026-07-01 | L7: 2026-08-01 | M7: 2026-09-01 | N7: 2026-10-01 | O7: 2026-11-01 | P7: 2026-12-01
C8: CW-01 Residential refurbishment
C9: Cost incurred | E9: ='Assumptions'!E35 -> 25,000 | F9: ='Assumptions'!F35 -> 25,000 | G9: ='Assumptions'!G35 -> 25,000 | H9: ='Assumptions'!H35 -> 25,000 | I9: ='Assumptions'!I35 -> 25,000 | J9: ='Assumptions'!J35 -> 25,000 | K9: ='Assumptions'!K35 -> 25,000 | L9: ='Assumptions'!L35 -> 25,000 | M9: ='Assumptions'!M35 -> 25,000 | N9: ='Assumptions'!N35 -> 25,000 | O9: ='Assumptions'!O35 -> 25,000 | P9: ='Assumptions'!P35 -> 25,000
C10: Estimated total cost | E10: ='Assumptions'!E38 -> 300,000 | F10: ='Assumptions'!F38 -> 300,000 | G10: ='Assumptions'!G38 -> 300,000 | H10: ='Assumptions'!H38 -> 300,000 | I10: ='Assumptions'!I38 -> 300,000 | J10: ='Assumptions'!J38 -> 300,000 | K10: ='Assumptions'!K38 -> 300,000 | L10: ='Assumptions'!L38 -> 300,000 | M10: ='Assumptions'!M38 -> 300,000 | N10: ='Assumptions'!N38 -> 300,000 | O10: ='Assumptions'!O38 -> 300,000 | P10: ='Assumptions'!P38 -> 300,000
C11: Approved variations to date | E11: ='Assumptions'!E41 -> 0 | F11: ='Assumptions'!F41 -> 0 | G11: ='Assumptions'!G41 -> 0 | H11: ='Assumptions'!H41 -> 0 | I11: ='Assumptions'!I41 -> 0 | J11: ='Assumptions'!J41 -> 5,600 | K11: ='Assumptions'!K41 -> 5,600 | L11: ='Assumptions'!L41 -> 5,600 | M11: ='Assumptions'!M41 -> 14,000 | N11: ='Assumptions'!N41 -> 14,000 | O11: ='Assumptions'!O41 -> 14,000 | P11: ='Assumptions'!P41 -> 14,000
C12: Approved contract value | E12: ='Project register'!$E$8+E11 -> 420,000 | F12: ='Project register'!$E$8+F11 -> 420,000 | G12: ='Project register'!$E$8+G11 -> 420,000 | H12: ='Project register'!$E$8+H11 -> 420,000 | I12: ='Project register'!$E$8+I11 -> 420,000 | J12: ='Project register'!$E$8+J11 -> 425,600 | K12: ='Project register'!$E$8+K11 -> 425,600 | L12: ='Project register'!$E$8+L11 -> 425,600 | M12: ='Project register'!$E$8+M11 -> 434,000 | N12: ='Project register'!$E$8+N11 -> 434,000 | O12: ='Project register'!$E$8+O11 -> 434,000 | P12: ='Project register'!$E$8+P11 -> 434,000
C13: Cumulative cost incurred | E13: =0+E9 -> 25,000 | F13: =E13+F9 -> 50,000 | G13: =F13+G9 -> 75,000 | H13: =G13+H9 -> 100,000 | I13: =H13+I9 -> 125,000 | J13: =I13+J9 -> 150,000 | K13: =J13+K9 -> 175,000 | L13: =K13+L9 -> 200,000 | M13: =L13+M9 -> 225,000 | N13: =M13+N9 -> 250,000 | O13: =N13+O9 -> 275,000 | P13: =O13+P9 -> 300,000
C14: Cost-to-cost progress | E14: =E13/E10 -> 8.3% | F14: =F13/F10 -> 16.7% | G14: =G13/G10 -> 25.0% | H14: =H13/H10 -> 33.3% | I14: =I13/I10 -> 41.7% | J14: =J13/J10 -> 50.0% | K14: =K13/K10 -> 58.3% | L14: =L13/L10 -> 66.7% | M14: =M13/M10 -> 75.0% | N14: =N13/N10 -> 83.3% | O14: =O13/O10 -> 91.7% | P14: =P13/P10 -> 100.0%
C15: Cumulative earned revenue | E15: =E12*MIN(1,E14) -> 35,000 | F15: =F12*MIN(1,F14) -> 70,000 | G15: =G12*MIN(1,G14) -> 105,000 | H15: =H12*MIN(1,H14) -> 140,000 | I15: =I12*MIN(1,I14) -> 175,000 | J15: =J12*MIN(1,J14) -> 212,800 | K15: =K12*MIN(1,K14) -> 248,267 | L15: =L12*MIN(1,L14) -> 283,733 | M15: =M12*MIN(1,M14) -> 325,500 | N15: =N12*MIN(1,N14) -> 361,667 | O15: =O12*MIN(1,O14) -> 397,833 | P15: =P12*MIN(1,P14) -> 434,000
C16: Revenue recognised | E16: =E15-0 -> €35,000 | F16: =F15-E15 -> €35,000 | G16: =G15-F15 -> €35,000 | H16: =H15-G15 -> €35,000 | I16: =I15-H15 -> €35,000 | J16: =J15-I15 -> €37,800 | K16: =K15-J15 -> €35,467 | L16: =L15-K15 -> €35,467 | M16: =M15-L15 -> €41,767 | N16: =N15-M15 -> €36,167 | O16: =O15-N15 -> €36,167 | P16: =P15-O15 -> €36,167
C17: Gross invoices issued | E17: ='Assumptions'!E44 -> 30,450 | F17: ='Assumptions'!F44 -> 30,450 | G17: ='Assumptions'!G44 -> 30,450 | H17: ='Assumptions'!H44 -> 30,450 | I17: ='Assumptions'!I44 -> 30,450 | J17: ='Assumptions'!J44 -> 30,856 | K17: ='Assumptions'!K44 -> 30,856 | L17: ='Assumptions'!L44 -> 30,856 | M17: ='Assumptions'!M44 -> 37,975 | N17: ='Assumptions'!N44 -> 37,975 | O17: ='Assumptions'!O44 -> 37,975 | P17: ='Assumptions'!P44 -> 75,257
C18: Cumulative invoices issued | E18: =0+E17 -> 30,450 | F18: =E18+F17 -> 60,900 | G18: =F18+G17 -> 91,350 | H18: =G18+H17 -> 121,800 | I18: =H18+I17 -> 152,250 | J18: =I18+J17 -> 183,106 | K18: =J18+K17 -> 213,962 | L18: =K18+L17 -> 244,818 | M18: =L18+M17 -> 282,793 | N18: =M18+N17 -> 320,768 | O18: =N18+O17 -> 358,743 | P18: =O18+P17 -> 434,000
C19: Contract asset | E19: =MAX(0,E15-E18) -> €4,550 | F19: =MAX(0,F15-F18) -> €9,100 | G19: =MAX(0,G15-G18) -> €13,650 | H19: =MAX(0,H15-H18) -> €18,200 | I19: =MAX(0,I15-I18) -> €22,750 | J19: =MAX(0,J15-J18) -> €29,694 | K19: =MAX(0,K15-K18) -> €34,305 | L19: =MAX(0,L15-L18) -> €38,915 | M19: =MAX(0,M15-M18) -> €42,707 | N19: =MAX(0,N15-N18) -> €40,899 | O19: =MAX(0,O15-O18) -> €39,090 | P19: =MAX(0,P15-P18) -> 0
C20: Customer advances / contract liability | E20: =MAX(0,E18-E15) -> 0 | F20: =MAX(0,F18-F15) -> 0 | G20: =MAX(0,G18-G15) -> 0 | H20: =MAX(0,H18-H15) -> 0 | I20: =MAX(0,I18-I15) -> 0 | J20: =MAX(0,J18-J15) -> 0 | K20: =MAX(0,K18-K15) -> 0 | L20: =MAX(0,L18-L15) -> 0 | M20: =MAX(0,M18-M15) -> 0 | N20: =MAX(0,N18-N15) -> 0 | O20: =MAX(0,O18-O15) -> 0 | P20: =MAX(0,P18-P15) -> 0
C21: Retention withheld on billing | E21: =E17*'Project register'!$J$8 -> 1,523 | F21: =F17*'Project register'!$J$8 -> 1,523 | G21: =G17*'Project register'!$J$8 -> 1,523 | H21: =H17*'Project register'!$J$8 -> 1,523 | I21: =I17*'Project register'!$J$8 -> 1,523 | J21: =J17*'Project register'!$J$8 -> 1,543 | K21: =K17*'Project register'!$J$8 -> 1,543 | L21: =L17*'Project register'!$J$8 -> 1,543 | M21: =M17*'Project register'!$J$8 -> 1,899 | N21: =N17*'Project register'!$J$8 -> 1,899 | O21: =O17*'Project register'!$J$8 -> 1,899 | P21: =P17*'Project register'!$J$8 -> 3,763
C22: Retention released | E22: =MIN(0+E21,'Assumptions'!E47) -> 0 | F22: =MIN(E23+F21,'Assumptions'!F47) -> 0 | G22: =MIN(F23+G21,'Assumptions'!G47) -> 0 | H22: =MIN(G23+H21,'Assumptions'!H47) -> 0 | I22: =MIN(H23+I21,'Assumptions'!I47) -> 0 | J22: =MIN(I23+J21,'Assumptions'!J47) -> 0 | K22: =MIN(J23+K21,'Assumptions'!K47) -> 0 | L22: =MIN(K23+L21,'Assumptions'!L47) -> 0 | M22: =MIN(L23+M21,'Assumptions'!M47) -> 0 | N22: =MIN(M23+N21,'Assumptions'!N47) -> 0 | O22: =MIN(N23+O21,'Assumptions'!O47) -> 0 | P22: =MIN(O23+P21,'Assumptions'!P47) -> 0
C23: Retention receivable | E23: =0+E21-E22 -> 1,523 | F23: =E23+F21-F22 -> 3,045 | G23: =F23+G21-G22 -> 4,568 | H23: =G23+H21-H22 -> 6,090 | I23: =H23+I21-I22 -> 7,613 | J23: =I23+J21-J22 -> 9,155 | K23: =J23+K21-K22 -> 10,698 | L23: =K23+L21-L22 -> 12,241 | M23: =L23+M21-M22 -> 14,140 | N23: =M23+N21-N22 -> 16,038 | O23: =N23+O21-O22 -> 17,937 | P23: =O23+P21-P22 -> 21,700
C24: Ordinary trade invoices including releases | E24: =E17-E21+E22 -> 28,928 | F24: =F17-F21+F22 -> 28,928 | G24: =G17-G21+G22 -> 28,928 | H24: =H17-H21+H22 -> 28,928 | I24: =I17-I21+I22 -> 28,928 | J24: =J17-J21+J22 -> 29,313 | K24: =K17-K21+K22 -> 29,313 | L24: =L17-L21+L22 -> 29,313 | M24: =M17-M21+M22 -> 36,076 | N24: =N17-N21+N22 -> 36,076 | O24: =O17-O21+O22 -> 36,076 | P24: =P17-P21+P22 -> 71,494
C25: Cost to complete | E25: =MAX(0,E10-E13) -> 275,000 | F25: =MAX(0,F10-F13) -> 250,000 | G25: =MAX(0,G10-G13) -> 225,000 | H25: =MAX(0,H10-H13) -> 200,000 | I25: =MAX(0,I10-I13) -> 175,000 | J25: =MAX(0,J10-J13) -> 150,000 | K25: =MAX(0,K10-K13) -> 125,000 | L25: =MAX(0,L10-L13) -> 100,000 | M25: =MAX(0,M10-M13) -> 75,000 | N25: =MAX(0,N10-N13) -> 50,000 | O25: =MAX(0,O10-O13) -> 25,000 | P25: =MAX(0,P10-P13) -> 0
C26: Open commitments within cost to complete | E26: =E25*'Assumptions'!E50 -> 198,000 | F26: =F25*'Assumptions'!F50 -> 180,000 | G26: =G25*'Assumptions'!G50 -> 162,000 | H26: =H25*'Assumptions'!H50 -> 144,000 | I26: =I25*'Assumptions'!I50 -> 126,000 | J26: =J25*'Assumptions'!J50 -> 108,000 | K26: =K25*'Assumptions'!K50 -> 90,000 | L26: =L25*'Assumptions'!L50 -> 72,000 | M26: =M25*'Assumptions'!M50 -> 58,500 | N26: =N25*'Assumptions'!N50 -> 39,000 | O26: =O25*'Assumptions'!O50 -> 19,500 | P26: =P25*'Assumptions'!P50 -> 0
C27: Uncommitted cost to complete | E27: =E25-E26 -> 77,000 | F27: =F25-F26 -> 70,000 | G27: =G25-G26 -> 63,000 | H27: =H25-H26 -> 56,000 | I27: =I25-I26 -> 49,000 | J27: =J25-J26 -> 42,000 | K27: =K25-K26 -> 35,000 | L27: =L25-L26 -> 28,000 | M27: =M25-M26 -> 16,500 | N27: =N25-N26 -> 11,000 | O27: =O25-O26 -> 5,500 | P27: =P25-P26 -> 0
C28: Expected lifetime project margin | E28: =E12-E10 -> 120,000 | F28: =F12-F10 -> 120,000 | G28: =G12-G10 -> 120,000 | H28: =H12-H10 -> 120,000 | I28: =I12-I10 -> 120,000 | J28: =J12-J10 -> 125,600 | K28: =K12-K10 -> 125,600 | L28: =L12-L10 -> 125,600 | M28: =M12-M10 -> 134,000 | N28: =N12-N10 -> 134,000 | O28: =O12-O10 -> 134,000 | P28: =P12-P10 -> 134,000
C29: Recognised project margin | E29: =E16-E9 -> €10,000 | F29: =F16-F9 -> €10,000 | G29: =G16-G9 -> €10,000 | H29: =H16-H9 -> €10,000 | I29: =I16-I9 -> €10,000 | J29: =J16-J9 -> €12,800 | K29: =K16-K9 -> €10,467 | L29: =L16-L9 -> €10,467 | M29: =M16-M9 -> €16,767 | N29: =N16-N9 -> €11,167 | O29: =O16-O9 -> €11,167 | P29: =P16-P9 -> €11,167
C30: Direct payroll cost | E30: =E9*'Project register'!$H$8 -> 6,500 | F30: =F9*'Project register'!$H$8 -> 6,500 | G30: =G9*'Project register'!$H$8 -> 6,500 | H30: =H9*'Project register'!$H$8 -> 6,500 | I30: =I9*'Project register'!$H$8 -> 6,500 | J30: =J9*'Project register'!$H$8 -> 6,500 | K30: =K9*'Project register'!$H$8 -> 6,500 | L30: =L9*'Project register'!$H$8 -> 6,500 | M30: =M9*'Project register'!$H$8 -> 6,500 | N30: =N9*'Project register'!$H$8 -> 6,500 | O30: =O9*'Project register'!$H$8 -> 6,500 | P30: =P9*'Project register'!$H$8 -> 6,500
C31: Materials cost | E31: =E9*'Project register'!$I$8 -> 10,500 | F31: =F9*'Project register'!$I$8 -> 10,500 | G31: =G9*'Project register'!$I$8 -> 10,500 | H31: =H9*'Project register'!$I$8 -> 10,500 | I31: =I9*'Project register'!$I$8 -> 10,500 | J31: =J9*'Project register'!$I$8 -> 10,500 | K31: =K9*'Project register'!$I$8 -> 10,500 | L31: =L9*'Project register'!$I$8 -> 10,500 | M31: =M9*'Project register'!$I$8 -> 10,500 | N31: =N9*'Project register'!$I$8 -> 10,500 | O31: =O9*'Project register'!$I$8 -> 10,500 | P31: =P9*'Project register'!$I$8 -> 10,500
C32: Subcontractor cost | E32: =E9-E30-E31 -> 8,000 | F32: =F9-F30-F31 -> 8,000 | G32: =G9-G30-G31 -> 8,000 | H32: =H9-H30-H31 -> 8,000 | I32: =I9-I30-I31 -> 8,000 | J32: =J9-J30-J31 -> 8,000 | K32: =K9-K30-K31 -> 8,000 | L32: =L9-L30-L31 -> 8,000 | M32: =M9-M30-M31 -> 8,000 | N32: =N9-N30-N31 -> 8,000 | O32: =O9-O30-O31 -> 8,000 | P32: =P9-P30-P31 -> 8,000
C34: CW-02 Retail fit-out
C35: Cost incurred | E35: ='Assumptions'!E53 -> 0 | F35: ='Assumptions'!F53 -> 0 | G35: ='Assumptions'!G53 -> 45,000 | H35: ='Assumptions'!H53 -> 55,000 | I35: ='Assumptions'!I53 -> 60,000 | J35: ='Assumptions'!J53 -> 65,000 | K35: ='Assumptions'!K53 -> 70,000 | L35: ='Assumptions'!L53 -> 65,000 | M35: ='Assumptions'!M53 -> 60,000 | N35: ='Assumptions'!N53 -> 60,000 | O35: ='Assumptions'!O53 -> 50,000 | P35: ='Assumptions'!P53 -> 50,000
C36: Estimated total cost | E36: ='Assumptions'!E56 -> 580,000 | F36: ='Assumptions'!F56 -> 580,000 | G36: ='Assumptions'!G56 -> 580,000 | H36: ='Assumptions'!H56 -> 580,000 | I36: ='Assumptions'!I56 -> 580,000 | J36: ='Assumptions'!J56 -> 580,000 | K36: ='Assumptions'!K56 -> 580,000 | L36: ='Assumptions'!L56 -> 580,000 | M36: ='Assumptions'!M56 -> 580,000 | N36: ='Assumptions'!N56 -> 580,000 | O36: ='Assumptions'!O56 -> 580,000 | P36: ='Assumptions'!P56 -> 580,000
C37: Approved variations to date | E37: ='Assumptions'!E59 -> 0 | F37: ='Assumptions'!F59 -> 0 | G37: ='Assumptions'!G59 -> 0 | H37: ='Assumptions'!H59 -> 0 | I37: ='Assumptions'!I59 -> 0 | J37: ='Assumptions'!J59 -> 12,000 | K37: ='Assumptions'!K59 -> 12,000 | L37: ='Assumptions'!L59 -> 12,000 | M37: ='Assumptions'!M59 -> 30,000 | N37: ='Assumptions'!N59 -> 30,000 | O37: ='Assumptions'!O59 -> 30,000 | P37: ='Assumptions'!P59 -> 30,000
C38: Approved contract value | E38: ='Project register'!$E$9+E37 -> 850,000 | F38: ='Project register'!$E$9+F37 -> 850,000 | G38: ='Project register'!$E$9+G37 -> 850,000 | H38: ='Project register'!$E$9+H37 -> 850,000 | I38: ='Project register'!$E$9+I37 -> 850,000 | J38: ='Project register'!$E$9+J37 -> 862,000 | K38: ='Project register'!$E$9+K37 -> 862,000 | L38: ='Project register'!$E$9+L37 -> 862,000 | M38: ='Project register'!$E$9+M37 -> 880,000 | N38: ='Project register'!$E$9+N37 -> 880,000 | O38: ='Project register'!$E$9+O37 -> 880,000 | P38: ='Project register'!$E$9+P37 -> 880,000
C39: Cumulative cost incurred | E39: =0+E35 -> 0 | F39: =E39+F35 -> 0 | G39: =F39+G35 -> 45,000 | H39: =G39+H35 -> 100,000 | I39: =H39+I35 -> 160,000 | J39: =I39+J35 -> 225,000 | K39: =J39+K35 -> 295,000 | L39: =K39+L35 -> 360,000 | M39: =L39+M35 -> 420,000 | N39: =M39+N35 -> 480,000 | O39: =N39+O35 -> 530,000 | P39: =O39+P35 -> 580,000
C40: Cost-to-cost progress | E40: =E39/E36 -> 0 | F40: =F39/F36 -> 0 | G40: =G39/G36 -> 7.8% | H40: =H39/H36 -> 17.2% | I40: =I39/I36 -> 27.6% | J40: =J39/J36 -> 38.8% | K40: =K39/K36 -> 50.9% | L40: =L39/L36 -> 62.1% | M40: =M39/M36 -> 72.4% | N40: =N39/N36 -> 82.8% | O40: =O39/O36 -> 91.4% | P40: =P39/P36 -> 100.0%
C41: Cumulative earned revenue | E41: =E38*MIN(1,E40) -> 0 | F41: =F38*MIN(1,F40) -> 0 | G41: =G38*MIN(1,G40) -> 65,948 | H41: =H38*MIN(1,H40) -> 146,552 | I41: =I38*MIN(1,I40) -> 234,483 | J41: =J38*MIN(1,J40) -> 334,397 | K41: =K38*MIN(1,K40) -> 438,431 | L41: =L38*MIN(1,L40) -> 535,034 | M41: =M38*MIN(1,M40) -> 637,241 | N41: =N38*MIN(1,N40) -> 728,276 | O41: =O38*MIN(1,O40) -> 804,138 | P41: =P38*MIN(1,P40) -> 880,000
C42: Revenue recognised | E42: =E41-0 -> 0 | F42: =F41-E41 -> 0 | G42: =G41-F41 -> €65,948 | H42: =H41-G41 -> €80,603 | I42: =I41-H41 -> €87,931 | J42: =J41-I41 -> €99,914 | K42: =K41-J41 -> €104,034 | L42: =L41-K41 -> €96,603 | M42: =M41-L41 -> €102,207 | N42: =N41-M41 -> €91,034 | O42: =O41-N41 -> €75,862 | P42: =P41-O41 -> €75,862
C43: Gross invoices issued | E43: ='Assumptions'!E62 -> 0 | F43: ='Assumptions'!F62 -> 0 | G43: ='Assumptions'!G62 -> 57,375 | H43: ='Assumptions'!H62 -> 70,125 | I43: ='Assumptions'!I62 -> 76,500 | J43: ='Assumptions'!J62 -> 84,045 | K43: ='Assumptions'!K62 -> 90,510 | L43: ='Assumptions'!L62 -> 84,045 | M43: ='Assumptions'!M62 -> 95,586 | N43: ='Assumptions'!N62 -> 95,586 | O43: ='Assumptions'!O62 -> 79,655 | P43: ='Assumptions'!P62 -> 146,572
C44: Cumulative invoices issued | E44: =0+E43 -> 0 | F44: =E44+F43 -> 0 | G44: =F44+G43 -> 57,375 | H44: =G44+H43 -> 127,500 | I44: =H44+I43 -> 204,000 | J44: =I44+J43 -> 288,045 | K44: =J44+K43 -> 378,555 | L44: =K44+L43 -> 462,600 | M44: =L44+M43 -> 558,186 | N44: =M44+N43 -> 653,772 | O44: =N44+O43 -> 733,428 | P44: =O44+P43 -> 880,000
C45: Contract asset | E45: =MAX(0,E41-E44) -> 0 | F45: =MAX(0,F41-F44) -> 0 | G45: =MAX(0,G41-G44) -> €8,573 | H45: =MAX(0,H41-H44) -> €19,052 | I45: =MAX(0,I41-I44) -> €30,483 | J45: =MAX(0,J41-J44) -> €46,352 | K45: =MAX(0,K41-K44) -> €59,876 | L45: =MAX(0,L41-L44) -> €72,434 | M45: =MAX(0,M41-M44) -> €79,055 | N45: =MAX(0,N41-N44) -> €74,503 | O45: =MAX(0,O41-O44) -> €70,710 | P45: =MAX(0,P41-P44) -> 0
C46: Customer advances / contract liability | E46: =MAX(0,E44-E41) -> 0 | F46: =MAX(0,F44-F41) -> 0 | G46: =MAX(0,G44-G41) -> 0 | H46: =MAX(0,H44-H41) -> 0 | I46: =MAX(0,I44-I41) -> 0 | J46: =MAX(0,J44-J41) -> 0 | K46: =MAX(0,K44-K41) -> 0 | L46: =MAX(0,L44-L41) -> 0 | M46: =MAX(0,M44-M41) -> 0 | N46: =MAX(0,N44-N41) -> 0 | O46: =MAX(0,O44-O41) -> 0 | P46: =MAX(0,P44-P41) -> 0
C47: Retention withheld on billing | E47: =E43*'Project register'!$J$9 -> 0 | F47: =F43*'Project register'!$J$9 -> 0 | G47: =G43*'Project register'!$J$9 -> 2,869 | H47: =H43*'Project register'!$J$9 -> 3,506 | I47: =I43*'Project register'!$J$9 -> 3,825 | J47: =J43*'Project register'!$J$9 -> 4,202 | K47: =K43*'Project register'!$J$9 -> 4,526 | L47: =L43*'Project register'!$J$9 -> 4,202 | M47: =M43*'Project register'!$J$9 -> 4,779 | N47: =N43*'Project register'!$J$9 -> 4,779 | O47: =O43*'Project register'!$J$9 -> 3,983 | P47: =P43*'Project register'!$J$9 -> 7,329
C48: Retention released | E48: =MIN(0+E47,'Assumptions'!E65) -> 0 | F48: =MIN(E49+F47,'Assumptions'!F65) -> 0 | G48: =MIN(F49+G47,'Assumptions'!G65) -> 0 | H48: =MIN(G49+H47,'Assumptions'!H65) -> 0 | I48: =MIN(H49+I47,'Assumptions'!I65) -> 0 | J48: =MIN(I49+J47,'Assumptions'!J65) -> 0 | K48: =MIN(J49+K47,'Assumptions'!K65) -> 0 | L48: =MIN(K49+L47,'Assumptions'!L65) -> 0 | M48: =MIN(L49+M47,'Assumptions'!M65) -> 0 | N48: =MIN(M49+N47,'Assumptions'!N65) -> 0 | O48: =MIN(N49+O47,'Assumptions'!O65) -> 0 | P48: =MIN(O49+P47,'Assumptions'!P65) -> 0
C49: Retention receivable | E49: =0+E47-E48 -> 0 | F49: =E49+F47-F48 -> 0 | G49: =F49+G47-G48 -> 2,869 | H49: =G49+H47-H48 -> 6,375 | I49: =H49+I47-I48 -> 10,200 | J49: =I49+J47-J48 -> 14,402 | K49: =J49+K47-K48 -> 18,928 | L49: =K49+L47-L48 -> 23,130 | M49: =L49+M47-M48 -> 27,909 | N49: =M49+N47-N48 -> 32,689 | O49: =N49+O47-O48 -> 36,671 | P49: =O49+P47-P48 -> 44,000
C50: Ordinary trade invoices including releases | E50: =E43-E47+E48 -> 0 | F50: =F43-F47+F48 -> 0 | G50: =G43-G47+G48 -> 54,506 | H50: =H43-H47+H48 -> 66,619 | I50: =I43-I47+I48 -> 72,675 | J50: =J43-J47+J48 -> 79,843 | K50: =K43-K47+K48 -> 85,985 | L50: =L43-L47+L48 -> 79,843 | M50: =M43-M47+M48 -> 90,807 | N50: =N43-N47+N48 -> 90,807 | O50: =O43-O47+O48 -> 75,672 | P50: =P43-P47+P48 -> 139,244
C51: Cost to complete | E51: =MAX(0,E36-E39) -> 580,000 | F51: =MAX(0,F36-F39) -> 580,000 | G51: =MAX(0,G36-G39) -> 535,000 | H51: =MAX(0,H36-H39) -> 480,000 | I51: =MAX(0,I36-I39) -> 420,000 | J51: =MAX(0,J36-J39) -> 355,000 | K51: =MAX(0,K36-K39) -> 285,000 | L51: =MAX(0,L36-L39) -> 220,000 | M51: =MAX(0,M36-M39) -> 160,000 | N51: =MAX(0,N36-N39) -> 100,000 | O51: =MAX(0,O36-O39) -> 50,000 | P51: =MAX(0,P36-P39) -> 0
C52: Open commitments within cost to complete | E52: =E51*'Assumptions'!E68 -> 417,600 | F52: =F51*'Assumptions'!F68 -> 417,600 | G52: =G51*'Assumptions'!G68 -> 385,200 | H52: =H51*'Assumptions'!H68 -> 345,600 | I52: =I51*'Assumptions'!I68 -> 302,400 | J52: =J51*'Assumptions'!J68 -> 255,600 | K52: =K51*'Assumptions'!K68 -> 205,200 | L52: =L51*'Assumptions'!L68 -> 158,400 | M52: =M51*'Assumptions'!M68 -> 124,800 | N52: =N51*'Assumptions'!N68 -> 78,000 | O52: =O51*'Assumptions'!O68 -> 39,000 | P52: =P51*'Assumptions'!P68 -> 0
C53: Uncommitted cost to complete | E53: =E51-E52 -> 162,400 | F53: =F51-F52 -> 162,400 | G53: =G51-G52 -> 149,800 | H53: =H51-H52 -> 134,400 | I53: =I51-I52 -> 117,600 | J53: =J51-J52 -> 99,400 | K53: =K51-K52 -> 79,800 | L53: =L51-L52 -> 61,600 | M53: =M51-M52 -> 35,200 | N53: =N51-N52 -> 22,000 | O53: =O51-O52 -> 11,000 | P53: =P51-P52 -> 0
C54: Expected lifetime project margin | E54: =E38-E36 -> 270,000 | F54: =F38-F36 -> 270,000 | G54: =G38-G36 -> 270,000 | H54: =H38-H36 -> 270,000 | I54: =I38-I36 -> 270,000 | J54: =J38-J36 -> 282,000 | K54: =K38-K36 -> 282,000 | L54: =L38-L36 -> 282,000 | M54: =M38-M36 -> 300,000 | N54: =N38-N36 -> 300,000 | O54: =O38-O36 -> 300,000 | P54: =P38-P36 -> 300,000
C55: Recognised project margin | E55: =E42-E35 -> 0 | F55: =F42-F35 -> 0 | G55: =G42-G35 -> €20,948 | H55: =H42-H35 -> €25,603 | I55: =I42-I35 -> €27,931 | J55: =J42-J35 -> €34,914 | K55: =K42-K35 -> €34,034 | L55: =L42-L35 -> €31,603 | M55: =M42-M35 -> €42,207 | N55: =N42-N35 -> €31,034 | O55: =O42-O35 -> €25,862 | P55: =P42-P35 -> €25,862
C56: Direct payroll cost | E56: =E35*'Project register'!$H$9 -> 0 | F56: =F35*'Project register'!$H$9 -> 0 | G56: =G35*'Project register'!$H$9 -> 10,350 | H56: =H35*'Project register'!$H$9 -> 12,650 | I56: =I35*'Project register'!$H$9 -> 13,800 | J56: =J35*'Project register'!$H$9 -> 14,950 | K56: =K35*'Project register'!$H$9 -> 16,100 | L56: =L35*'Project register'!$H$9 -> 14,950 | M56: =M35*'Project register'!$H$9 -> 13,800 | N56: =N35*'Project register'!$H$9 -> 13,800 | O56: =O35*'Project register'!$H$9 -> 11,500 | P56: =P35*'Project register'!$H$9 -> 11,500
C57: Materials cost | E57: =E35*'Project register'!$I$9 -> 0 | F57: =F35*'Project register'!$I$9 -> 0 | G57: =G35*'Project register'!$I$9 -> 20,700 | H57: =H35*'Project register'!$I$9 -> 25,300 | I57: =I35*'Project register'!$I$9 -> 27,600 | J57: =J35*'Project register'!$I$9 -> 29,900 | K57: =K35*'Project register'!$I$9 -> 32,200 | L57: =L35*'Project register'!$I$9 -> 29,900 | M57: =M35*'Project register'!$I$9 -> 27,600 | N57: =N35*'Project register'!$I$9 -> 27,600 | O57: =O35*'Project register'!$I$9 -> 23,000 | P57: =P35*'Project register'!$I$9 -> 23,000
C58: Subcontractor cost | E58: =E35-E56-E57 -> 0 | F58: =F35-F56-F57 -> 0 | G58: =G35-G56-G57 -> 13,950 | H58: =H35-H56-H57 -> 17,050 | I58: =I35-I56-I57 -> 18,600 | J58: =J35-J56-J57 -> 20,150 | K58: =K35-K56-K57 -> 21,700 | L58: =L35-L56-L57 -> 20,150 | M58: =M35-M56-M57 -> 18,600 | N58: =N35-N56-N57 -> 18,600 | O58: =O35-O56-O57 -> 15,500 | P58: =P35-P56-P57 -> 15,500
C60: CW-03 Workplace redevelopment
C61: Cost incurred | E61: ='Assumptions'!E71 -> 70,000 | F61: ='Assumptions'!F71 -> 80,000 | G61: ='Assumptions'!G71 -> 85,000 | H61: ='Assumptions'!H71 -> 90,000 | I61: ='Assumptions'!I71 -> 90,000 | J61: ='Assumptions'!J71 -> 90,000 | K61: ='Assumptions'!K71 -> 85,000 | L61: ='Assumptions'!L71 -> 80,000 | M61: ='Assumptions'!M71 -> 70,000 | N61: ='Assumptions'!N71 -> 65,000 | O61: ='Assumptions'!O71 -> 55,000 | P61: ='Assumptions'!P71 -> 40,000
C62: Estimated total cost | E62: ='Assumptions'!E74 -> 900,000 | F62: ='Assumptions'!F74 -> 900,000 | G62: ='Assumptions'!G74 -> 900,000 | H62: ='Assumptions'!H74 -> 900,000 | I62: ='Assumptions'!I74 -> 900,000 | J62: ='Assumptions'!J74 -> 900,000 | K62: ='Assumptions'!K74 -> 900,000 | L62: ='Assumptions'!L74 -> 900,000 | M62: ='Assumptions'!M74 -> 900,000 | N62: ='Assumptions'!N74 -> 900,000 | O62: ='Assumptions'!O74 -> 900,000 | P62: ='Assumptions'!P74 -> 900,000
C63: Approved variations to date | E63: ='Assumptions'!E77 -> 0 | F63: ='Assumptions'!F77 -> 0 | G63: ='Assumptions'!G77 -> 0 | H63: ='Assumptions'!H77 -> 0 | I63: ='Assumptions'!I77 -> 0 | J63: ='Assumptions'!J77 -> 19,200 | K63: ='Assumptions'!K77 -> 19,200 | L63: ='Assumptions'!L77 -> 19,200 | M63: ='Assumptions'!M77 -> 48,000 | N63: ='Assumptions'!N77 -> 48,000 | O63: ='Assumptions'!O77 -> 48,000 | P63: ='Assumptions'!P77 -> 48,000
C64: Approved contract value | E64: ='Project register'!$E$10+E63 -> 1,180,000 | F64: ='Project register'!$E$10+F63 -> 1,180,000 | G64: ='Project register'!$E$10+G63 -> 1,180,000 | H64: ='Project register'!$E$10+H63 -> 1,180,000 | I64: ='Project register'!$E$10+I63 -> 1,180,000 | J64: ='Project register'!$E$10+J63 -> 1,199,200 | K64: ='Project register'!$E$10+K63 -> 1,199,200 | L64: ='Project register'!$E$10+L63 -> 1,199,200 | M64: ='Project register'!$E$10+M63 -> 1,228,000 | N64: ='Project register'!$E$10+N63 -> 1,228,000 | O64: ='Project register'!$E$10+O63 -> 1,228,000 | P64: ='Project register'!$E$10+P63 -> 1,228,000
C65: Cumulative cost incurred | E65: =0+E61 -> 70,000 | F65: =E65+F61 -> 150,000 | G65: =F65+G61 -> 235,000 | H65: =G65+H61 -> 325,000 | I65: =H65+I61 -> 415,000 | J65: =I65+J61 -> 505,000 | K65: =J65+K61 -> 590,000 | L65: =K65+L61 -> 670,000 | M65: =L65+M61 -> 740,000 | N65: =M65+N61 -> 805,000 | O65: =N65+O61 -> 860,000 | P65: =O65+P61 -> 900,000
C66: Cost-to-cost progress | E66: =E65/E62 -> 7.8% | F66: =F65/F62 -> 16.7% | G66: =G65/G62 -> 26.1% | H66: =H65/H62 -> 36.1% | I66: =I65/I62 -> 46.1% | J66: =J65/J62 -> 56.1% | K66: =K65/K62 -> 65.6% | L66: =L65/L62 -> 74.4% | M66: =M65/M62 -> 82.2% | N66: =N65/N62 -> 89.4% | O66: =O65/O62 -> 95.6% | P66: =P65/P62 -> 100.0%
C67: Cumulative earned revenue | E67: =E64*MIN(1,E66) -> 91,778 | F67: =F64*MIN(1,F66) -> 196,667 | G67: =G64*MIN(1,G66) -> 308,111 | H67: =H64*MIN(1,H66) -> 426,111 | I67: =I64*MIN(1,I66) -> 544,111 | J67: =J64*MIN(1,J66) -> 672,884 | K67: =K64*MIN(1,K66) -> 786,142 | L67: =L64*MIN(1,L66) -> 892,738 | M67: =M64*MIN(1,M66) -> 1,009,689 | N67: =N64*MIN(1,N66) -> 1,098,378 | O67: =O64*MIN(1,O66) -> 1,173,422 | P67: =P64*MIN(1,P66) -> 1,228,000
C68: Revenue recognised | E68: =E67-0 -> €91,778 | F68: =F67-E67 -> €104,889 | G68: =G67-F67 -> €111,444 | H68: =H67-G67 -> €118,000 | I68: =I67-H67 -> €118,000 | J68: =J67-I67 -> €128,773 | K68: =K67-J67 -> €113,258 | L68: =L67-K67 -> €106,596 | M68: =M67-L67 -> €116,951 | N68: =N67-M67 -> €88,689 | O68: =O67-N67 -> €75,044 | P68: =P67-O67 -> €54,578
C69: Gross invoices issued | E69: ='Assumptions'!E80 -> 79,847 | F69: ='Assumptions'!F80 -> 91,253 | G69: ='Assumptions'!G80 -> 96,957 | H69: ='Assumptions'!H80 -> 102,660 | I69: ='Assumptions'!I80 -> 102,660 | J69: ='Assumptions'!J80 -> 104,330 | K69: ='Assumptions'!K80 -> 98,534 | L69: ='Assumptions'!L80 -> 92,738 | M69: ='Assumptions'!M80 -> 100,287 | N69: ='Assumptions'!N80 -> 93,123 | O69: ='Assumptions'!O80 -> 78,797 | P69: ='Assumptions'!P80 -> 186,814
C70: Cumulative invoices issued | E70: =0+E69 -> 79,847 | F70: =E70+F69 -> 171,100 | G70: =F70+G69 -> 268,057 | H70: =G70+H69 -> 370,717 | I70: =H70+I69 -> 473,377 | J70: =I70+J69 -> 577,707 | K70: =J70+K69 -> 676,241 | L70: =K70+L69 -> 768,979 | M70: =L70+M69 -> 869,266 | N70: =M70+N69 -> 962,389 | O70: =N70+O69 -> 1,041,186 | P70: =O70+P69 -> 1,228,000
C71: Contract asset | E71: =MAX(0,E67-E70) -> €11,931 | F71: =MAX(0,F67-F70) -> €25,567 | G71: =MAX(0,G67-G70) -> €40,054 | H71: =MAX(0,H67-H70) -> €55,394 | I71: =MAX(0,I67-I70) -> €70,734 | J71: =MAX(0,J67-J70) -> €95,177 | K71: =MAX(0,K67-K70) -> €109,901 | L71: =MAX(0,L67-L70) -> €123,758 | M71: =MAX(0,M67-M70) -> €140,423 | N71: =MAX(0,N67-N70) -> €135,988 | O71: =MAX(0,O67-O70) -> €132,236 | P71: =MAX(0,P67-P70) -> 0
C72: Customer advances / contract liability | E72: =MAX(0,E70-E67) -> 0 | F72: =MAX(0,F70-F67) -> 0 | G72: =MAX(0,G70-G67) -> 0 | H72: =MAX(0,H70-H67) -> 0 | I72: =MAX(0,I70-I67) -> 0 | J72: =MAX(0,J70-J67) -> 0 | K72: =MAX(0,K70-K67) -> 0 | L72: =MAX(0,L70-L67) -> 0 | M72: =MAX(0,M70-M67) -> 0 | N72: =MAX(0,N70-N67) -> 0 | O72: =MAX(0,O70-O67) -> 0 | P72: =MAX(0,P70-P67) -> 0
C73: Retention withheld on billing | E73: =E69*'Project register'!$J$10 -> 3,992 | F73: =F69*'Project register'!$J$10 -> 4,563 | G73: =G69*'Project register'!$J$10 -> 4,848 | H73: =H69*'Project register'!$J$10 -> 5,133 | I73: =I69*'Project register'!$J$10 -> 5,133 | J73: =J69*'Project register'!$J$10 -> 5,217 | K73: =K69*'Project register'!$J$10 -> 4,927 | L73: =L69*'Project register'!$J$10 -> 4,637 | M73: =M69*'Project register'!$J$10 -> 5,014 | N73: =N69*'Project register'!$J$10 -> 4,656 | O73: =O69*'Project register'!$J$10 -> 3,940 | P73: =P69*'Project register'!$J$10 -> 9,341
C74: Retention released | E74: =MIN(0+E73,'Assumptions'!E83) -> 0 | F74: =MIN(E75+F73,'Assumptions'!F83) -> 0 | G74: =MIN(F75+G73,'Assumptions'!G83) -> 0 | H74: =MIN(G75+H73,'Assumptions'!H83) -> 0 | I74: =MIN(H75+I73,'Assumptions'!I83) -> 0 | J74: =MIN(I75+J73,'Assumptions'!J83) -> 0 | K74: =MIN(J75+K73,'Assumptions'!K83) -> 0 | L74: =MIN(K75+L73,'Assumptions'!L83) -> 0 | M74: =MIN(L75+M73,'Assumptions'!M83) -> 0 | N74: =MIN(M75+N73,'Assumptions'!N83) -> 0 | O74: =MIN(N75+O73,'Assumptions'!O83) -> 0 | P74: =MIN(O75+P73,'Assumptions'!P83) -> 0
C75: Retention receivable | E75: =0+E73-E74 -> 3,992 | F75: =E75+F73-F74 -> 8,555 | G75: =F75+G73-G74 -> 13,403 | H75: =G75+H73-H74 -> 18,536 | I75: =H75+I73-I74 -> 23,669 | J75: =I75+J73-J74 -> 28,885 | K75: =J75+K73-K74 -> 33,812 | L75: =K75+L73-L74 -> 38,449 | M75: =L75+M73-M74 -> 43,463 | N75: =M75+N73-N74 -> 48,119 | O75: =N75+O73-O74 -> 52,059 | P75: =O75+P73-P74 -> 61,400
C76: Ordinary trade invoices including releases | E76: =E69-E73+E74 -> 75,854 | F76: =F69-F73+F74 -> 86,691 | G76: =G69-G73+G74 -> 92,109 | H76: =H69-H73+H74 -> 97,527 | I76: =I69-I73+I74 -> 97,527 | J76: =J69-J73+J74 -> 99,114 | K76: =K69-K73+K74 -> 93,608 | L76: =L69-L73+L74 -> 88,101 | M76: =M69-M73+M74 -> 95,272 | N76: =N69-N73+N74 -> 88,467 | O76: =O69-O73+O74 -> 74,857 | P76: =P69-P73+P74 -> 177,473
C77: Cost to complete | E77: =MAX(0,E62-E65) -> 830,000 | F77: =MAX(0,F62-F65) -> 750,000 | G77: =MAX(0,G62-G65) -> 665,000 | H77: =MAX(0,H62-H65) -> 575,000 | I77: =MAX(0,I62-I65) -> 485,000 | J77: =MAX(0,J62-J65) -> 395,000 | K77: =MAX(0,K62-K65) -> 310,000 | L77: =MAX(0,L62-L65) -> 230,000 | M77: =MAX(0,M62-M65) -> 160,000 | N77: =MAX(0,N62-N65) -> 95,000 | O77: =MAX(0,O62-O65) -> 40,000 | P77: =MAX(0,P62-P65) -> 0
C78: Open commitments within cost to complete | E78: =E77*'Assumptions'!E86 -> 597,600 | F78: =F77*'Assumptions'!F86 -> 540,000 | G78: =G77*'Assumptions'!G86 -> 478,800 | H78: =H77*'Assumptions'!H86 -> 414,000 | I78: =I77*'Assumptions'!I86 -> 349,200 | J78: =J77*'Assumptions'!J86 -> 284,400 | K78: =K77*'Assumptions'!K86 -> 223,200 | L78: =L77*'Assumptions'!L86 -> 165,600 | M78: =M77*'Assumptions'!M86 -> 124,800 | N78: =N77*'Assumptions'!N86 -> 74,100 | O78: =O77*'Assumptions'!O86 -> 31,200 | P78: =P77*'Assumptions'!P86 -> 0
C79: Uncommitted cost to complete | E79: =E77-E78 -> 232,400 | F79: =F77-F78 -> 210,000 | G79: =G77-G78 -> 186,200 | H79: =H77-H78 -> 161,000 | I79: =I77-I78 -> 135,800 | J79: =J77-J78 -> 110,600 | K79: =K77-K78 -> 86,800 | L79: =L77-L78 -> 64,400 | M79: =M77-M78 -> 35,200 | N79: =N77-N78 -> 20,900 | O79: =O77-O78 -> 8,800 | P79: =P77-P78 -> 0
C80: Expected lifetime project margin | E80: =E64-E62 -> 280,000 | F80: =F64-F62 -> 280,000 | G80: =G64-G62 -> 280,000 | H80: =H64-H62 -> 280,000 | I80: =I64-I62 -> 280,000 | J80: =J64-J62 -> 299,200 | K80: =K64-K62 -> 299,200 | L80: =L64-L62 -> 299,200 | M80: =M64-M62 -> 328,000 | N80: =N64-N62 -> 328,000 | O80: =O64-O62 -> 328,000 | P80: =P64-P62 -> 328,000
C81: Recognised project margin | E81: =E68-E61 -> €21,778 | F81: =F68-F61 -> €24,889 | G81: =G68-G61 -> €26,444 | H81: =H68-H61 -> €28,000 | I81: =I68-I61 -> €28,000 | J81: =J68-J61 -> €38,773 | K81: =K68-K61 -> €28,258 | L81: =L68-L61 -> €26,596 | M81: =M68-M61 -> €46,951 | N81: =N68-N61 -> €23,689 | O81: =O68-O61 -> €20,044 | P81: =P68-P61 -> €14,578
C82: Direct payroll cost | E82: =E61*'Project register'!$H$10 -> 15,400 | F82: =F61*'Project register'!$H$10 -> 17,600 | G82: =G61*'Project register'!$H$10 -> 18,700 | H82: =H61*'Project register'!$H$10 -> 19,800 | I82: =I61*'Project register'!$H$10 -> 19,800 | J82: =J61*'Project register'!$H$10 -> 19,800 | K82: =K61*'Project register'!$H$10 -> 18,700 | L82: =L61*'Project register'!$H$10 -> 17,600 | M82: =M61*'Project register'!$H$10 -> 15,400 | N82: =N61*'Project register'!$H$10 -> 14,300 | O82: =O61*'Project register'!$H$10 -> 12,100 | P82: =P61*'Project register'!$H$10 -> 8,800
C83: Materials cost | E83: =E61*'Project register'!$I$10 -> 33,600 | F83: =F61*'Project register'!$I$10 -> 38,400 | G83: =G61*'Project register'!$I$10 -> 40,800 | H83: =H61*'Project register'!$I$10 -> 43,200 | I83: =I61*'Project register'!$I$10 -> 43,200 | J83: =J61*'Project register'!$I$10 -> 43,200 | K83: =K61*'Project register'!$I$10 -> 40,800 | L83: =L61*'Project register'!$I$10 -> 38,400 | M83: =M61*'Project register'!$I$10 -> 33,600 | N83: =N61*'Project register'!$I$10 -> 31,200 | O83: =O61*'Project register'!$I$10 -> 26,400 | P83: =P61*'Project register'!$I$10 -> 19,200
C84: Subcontractor cost | E84: =E61-E82-E83 -> 21,000 | F84: =F61-F82-F83 -> 24,000 | G84: =G61-G82-G83 -> 25,500 | H84: =H61-H82-H83 -> 27,000 | I84: =I61-I82-I83 -> 27,000 | J84: =J61-J82-J83 -> 27,000 | K84: =K61-K82-K83 -> 25,500 | L84: =L61-L82-L83 -> 24,000 | M84: =M61-M82-M83 -> 21,000 | N84: =N61-N82-N83 -> 19,500 | O84: =O61-O82-O83 -> 16,500 | P84: =P61-P82-P83 -> 12,000
C86: CW-04 Hospitality renovation
C87: Cost incurred | E87: ='Assumptions'!E89 -> 0 | F87: ='Assumptions'!F89 -> 0 | G87: ='Assumptions'!G89 -> 0 | H87: ='Assumptions'!H89 -> 0 | I87: ='Assumptions'!I89 -> 35,000 | J87: ='Assumptions'!J89 -> 45,000 | K87: ='Assumptions'!K89 -> 50,000 | L87: ='Assumptions'!L89 -> 55,000 | M87: ='Assumptions'!M89 -> 60,000 | N87: ='Assumptions'!N89 -> 60,000 | O87: ='Assumptions'!O89 -> 60,000 | P87: ='Assumptions'!P89 -> 55,000
C88: Estimated total cost | E88: ='Assumptions'!E92 -> 420,000 | F88: ='Assumptions'!F92 -> 420,000 | G88: ='Assumptions'!G92 -> 420,000 | H88: ='Assumptions'!H92 -> 420,000 | I88: ='Assumptions'!I92 -> 420,000 | J88: ='Assumptions'!J92 -> 420,000 | K88: ='Assumptions'!K92 -> 420,000 | L88: ='Assumptions'!L92 -> 420,000 | M88: ='Assumptions'!M92 -> 420,000 | N88: ='Assumptions'!N92 -> 420,000 | O88: ='Assumptions'!O92 -> 420,000 | P88: ='Assumptions'!P92 -> 420,000
C89: Approved variations to date | E89: ='Assumptions'!E95 -> 0 | F89: ='Assumptions'!F95 -> 0 | G89: ='Assumptions'!G95 -> 0 | H89: ='Assumptions'!H95 -> 0 | I89: ='Assumptions'!I95 -> 0 | J89: ='Assumptions'!J95 -> 7,200 | K89: ='Assumptions'!K95 -> 7,200 | L89: ='Assumptions'!L95 -> 7,200 | M89: ='Assumptions'!M95 -> 18,000 | N89: ='Assumptions'!N95 -> 18,000 | O89: ='Assumptions'!O95 -> 18,000 | P89: ='Assumptions'!P95 -> 18,000
C90: Approved contract value | E90: ='Project register'!$E$11+E89 -> 560,000 | F90: ='Project register'!$E$11+F89 -> 560,000 | G90: ='Project register'!$E$11+G89 -> 560,000 | H90: ='Project register'!$E$11+H89 -> 560,000 | I90: ='Project register'!$E$11+I89 -> 560,000 | J90: ='Project register'!$E$11+J89 -> 567,200 | K90: ='Project register'!$E$11+K89 -> 567,200 | L90: ='Project register'!$E$11+L89 -> 567,200 | M90: ='Project register'!$E$11+M89 -> 578,000 | N90: ='Project register'!$E$11+N89 -> 578,000 | O90: ='Project register'!$E$11+O89 -> 578,000 | P90: ='Project register'!$E$11+P89 -> 578,000
C91: Cumulative cost incurred | E91: =0+E87 -> 0 | F91: =E91+F87 -> 0 | G91: =F91+G87 -> 0 | H91: =G91+H87 -> 0 | I91: =H91+I87 -> 35,000 | J91: =I91+J87 -> 80,000 | K91: =J91+K87 -> 130,000 | L91: =K91+L87 -> 185,000 | M91: =L91+M87 -> 245,000 | N91: =M91+N87 -> 305,000 | O91: =N91+O87 -> 365,000 | P91: =O91+P87 -> 420,000
C92: Cost-to-cost progress | E92: =E91/E88 -> 0 | F92: =F91/F88 -> 0 | G92: =G91/G88 -> 0 | H92: =H91/H88 -> 0 | I92: =I91/I88 -> 8.3% | J92: =J91/J88 -> 19.0% | K92: =K91/K88 -> 31.0% | L92: =L91/L88 -> 44.0% | M92: =M91/M88 -> 58.3% | N92: =N91/N88 -> 72.6% | O92: =O91/O88 -> 86.9% | P92: =P91/P88 -> 100.0%
C93: Cumulative earned revenue | E93: =E90*MIN(1,E92) -> 0 | F93: =F90*MIN(1,F92) -> 0 | G93: =G90*MIN(1,G92) -> 0 | H93: =H90*MIN(1,H92) -> 0 | I93: =I90*MIN(1,I92) -> 46,667 | J93: =J90*MIN(1,J92) -> 108,038 | K93: =K90*MIN(1,K92) -> 175,562 | L93: =L90*MIN(1,L92) -> 249,838 | M93: =M90*MIN(1,M92) -> 337,167 | N93: =N90*MIN(1,N92) -> 419,738 | O93: =O90*MIN(1,O92) -> 502,310 | P93: =P90*MIN(1,P92) -> 578,000
C94: Revenue recognised | E94: =E93-0 -> 0 | F94: =F93-E93 -> 0 | G94: =G93-F93 -> 0 | H94: =H93-G93 -> 0 | I94: =I93-H93 -> €46,667 | J94: =J93-I93 -> €61,371 | K94: =K93-J93 -> €67,524 | L94: =L93-K93 -> €74,276 | M94: =M93-L93 -> €87,329 | N94: =N93-M93 -> €82,571 | O94: =O93-N93 -> €82,571 | P94: =P93-O93 -> €75,690
C95: Gross invoices issued | E95: ='Assumptions'!E98 -> 0 | F95: ='Assumptions'!F98 -> 0 | G95: ='Assumptions'!G98 -> 0 | H95: ='Assumptions'!H98 -> 0 | I95: ='Assumptions'!I98 -> 40,600 | J95: ='Assumptions'!J98 -> 52,871 | K95: ='Assumptions'!K98 -> 58,746 | L95: ='Assumptions'!L98 -> 64,620 | M95: ='Assumptions'!M98 -> 86,700 | N95: ='Assumptions'!N98 -> 86,700 | O95: ='Assumptions'!O98 -> 86,700 | P95: ='Assumptions'!P98 -> 101,063
C96: Cumulative invoices issued | E96: =0+E95 -> 0 | F96: =E96+F95 -> 0 | G96: =F96+G95 -> 0 | H96: =G96+H95 -> 0 | I96: =H96+I95 -> 40,600 | J96: =I96+J95 -> 93,471 | K96: =J96+K95 -> 152,217 | L96: =K96+L95 -> 216,837 | M96: =L96+M95 -> 303,537 | N96: =M96+N95 -> 390,237 | O96: =N96+O95 -> 476,937 | P96: =O96+P95 -> 578,000
C97: Contract asset | E97: =MAX(0,E93-E96) -> 0 | F97: =MAX(0,F93-F96) -> 0 | G97: =MAX(0,G93-G96) -> 0 | H97: =MAX(0,H93-H96) -> 0 | I97: =MAX(0,I93-I96) -> €6,067 | J97: =MAX(0,J93-J96) -> €14,567 | K97: =MAX(0,K93-K96) -> €23,345 | L97: =MAX(0,L93-L96) -> €33,001 | M97: =MAX(0,M93-M96) -> €33,630 | N97: =MAX(0,N93-N96) -> €29,501 | O97: =MAX(0,O93-O96) -> €25,372 | P97: =MAX(0,P93-P96) -> 0
C98: Customer advances / contract liability | E98: =MAX(0,E96-E93) -> 0 | F98: =MAX(0,F96-F93) -> 0 | G98: =MAX(0,G96-G93) -> 0 | H98: =MAX(0,H96-H93) -> 0 | I98: =MAX(0,I96-I93) -> 0 | J98: =MAX(0,J96-J93) -> 0 | K98: =MAX(0,K96-K93) -> 0 | L98: =MAX(0,L96-L93) -> 0 | M98: =MAX(0,M96-M93) -> 0 | N98: =MAX(0,N96-N93) -> 0 | O98: =MAX(0,O96-O93) -> 0 | P98: =MAX(0,P96-P93) -> 0
C99: Retention withheld on billing | E99: =E95*'Project register'!$J$11 -> 0 | F99: =F95*'Project register'!$J$11 -> 0 | G99: =G95*'Project register'!$J$11 -> 0 | H99: =H95*'Project register'!$J$11 -> 0 | I99: =I95*'Project register'!$J$11 -> 2,030 | J99: =J95*'Project register'!$J$11 -> 2,644 | K99: =K95*'Project register'!$J$11 -> 2,937 | L99: =L95*'Project register'!$J$11 -> 3,231 | M99: =M95*'Project register'!$J$11 -> 4,335 | N99: =N95*'Project register'!$J$11 -> 4,335 | O99: =O95*'Project register'!$J$11 -> 4,335 | P99: =P95*'Project register'!$J$11 -> 5,053
C100: Retention released | E100: =MIN(0+E99,'Assumptions'!E101) -> 0 | F100: =MIN(E101+F99,'Assumptions'!F101) -> 0 | G100: =MIN(F101+G99,'Assumptions'!G101) -> 0 | H100: =MIN(G101+H99,'Assumptions'!H101) -> 0 | I100: =MIN(H101+I99,'Assumptions'!I101) -> 0 | J100: =MIN(I101+J99,'Assumptions'!J101) -> 0 | K100: =MIN(J101+K99,'Assumptions'!K101) -> 0 | L100: =MIN(K101+L99,'Assumptions'!L101) -> 0 | M100: =MIN(L101+M99,'Assumptions'!M101) -> 0 | N100: =MIN(M101+N99,'Assumptions'!N101) -> 0 | O100: =MIN(N101+O99,'Assumptions'!O101) -> 0 | P100: =MIN(O101+P99,'Assumptions'!P101) -> 0
C101: Retention receivable | E101: =0+E99-E100 -> 0 | F101: =E101+F99-F100 -> 0 | G101: =F101+G99-G100 -> 0 | H101: =G101+H99-H100 -> 0 | I101: =H101+I99-I100 -> 2,030 | J101: =I101+J99-J100 -> 4,674 | K101: =J101+K99-K100 -> 7,611 | L101: =K101+L99-L100 -> 10,842 | M101: =L101+M99-M100 -> 15,177 | N101: =M101+N99-N100 -> 19,512 | O101: =N101+O99-O100 -> 23,847 | P101: =O101+P99-P100 -> 28,900
C102: Ordinary trade invoices including releases | E102: =E95-E99+E100 -> 0 | F102: =F95-F99+F100 -> 0 | G102: =G95-G99+G100 -> 0 | H102: =H95-H99+H100 -> 0 | I102: =I95-I99+I100 -> 38,570 | J102: =J95-J99+J100 -> 50,228 | K102: =K95-K99+K100 -> 55,808 | L102: =L95-L99+L100 -> 61,389 | M102: =M95-M99+M100 -> 82,365 | N102: =N95-N99+N100 -> 82,365 | O102: =O95-O99+O100 -> 82,365 | P102: =P95-P99+P100 -> 96,010
C103: Cost to complete | E103: =MAX(0,E88-E91) -> 420,000 | F103: =MAX(0,F88-F91) -> 420,000 | G103: =MAX(0,G88-G91) -> 420,000 | H103: =MAX(0,H88-H91) -> 420,000 | I103: =MAX(0,I88-I91) -> 385,000 | J103: =MAX(0,J88-J91) -> 340,000 | K103: =MAX(0,K88-K91) -> 290,000 | L103: =MAX(0,L88-L91) -> 235,000 | M103: =MAX(0,M88-M91) -> 175,000 | N103: =MAX(0,N88-N91) -> 115,000 | O103: =MAX(0,O88-O91) -> 55,000 | P103: =MAX(0,P88-P91) -> 0
C104: Open commitments within cost to complete | E104: =E103*'Assumptions'!E104 -> 302,400 | F104: =F103*'Assumptions'!F104 -> 302,400 | G104: =G103*'Assumptions'!G104 -> 302,400 | H104: =H103*'Assumptions'!H104 -> 302,400 | I104: =I103*'Assumptions'!I104 -> 277,200 | J104: =J103*'Assumptions'!J104 -> 244,800 | K104: =K103*'Assumptions'!K104 -> 208,800 | L104: =L103*'Assumptions'!L104 -> 169,200 | M104: =M103*'Assumptions'!M104 -> 136,500 | N104: =N103*'Assumptions'!N104 -> 89,700 | O104: =O103*'Assumptions'!O104 -> 42,900 | P104: =P103*'Assumptions'!P104 -> 0
C105: Uncommitted cost to complete | E105: =E103-E104 -> 117,600 | F105: =F103-F104 -> 117,600 | G105: =G103-G104 -> 117,600 | H105: =H103-H104 -> 117,600 | I105: =I103-I104 -> 107,800 | J105: =J103-J104 -> 95,200 | K105: =K103-K104 -> 81,200 | L105: =L103-L104 -> 65,800 | M105: =M103-M104 -> 38,500 | N105: =N103-N104 -> 25,300 | O105: =O103-O104 -> 12,100 | P105: =P103-P104 -> 0
C106: Expected lifetime project margin | E106: =E90-E88 -> 140,000 | F106: =F90-F88 -> 140,000 | G106: =G90-G88 -> 140,000 | H106: =H90-H88 -> 140,000 | I106: =I90-I88 -> 140,000 | J106: =J90-J88 -> 147,200 | K106: =K90-K88 -> 147,200 | L106: =L90-L88 -> 147,200 | M106: =M90-M88 -> 158,000 | N106: =N90-N88 -> 158,000 | O106: =O90-O88 -> 158,000 | P106: =P90-P88 -> 158,000
C107: Recognised project margin | E107: =E94-E87 -> 0 | F107: =F94-F87 -> 0 | G107: =G94-G87 -> 0 | H107: =H94-H87 -> 0 | I107: =I94-I87 -> €11,667 | J107: =J94-J87 -> €16,371 | K107: =K94-K87 -> €17,524 | L107: =L94-L87 -> €19,276 | M107: =M94-M87 -> €27,329 | N107: =N94-N87 -> €22,571 | O107: =O94-O87 -> €22,571 | P107: =P94-P87 -> €20,690
C108: Direct payroll cost | E108: =E87*'Project register'!$H$11 -> 0 | F108: =F87*'Project register'!$H$11 -> 0 | G108: =G87*'Project register'!$H$11 -> 0 | H108: =H87*'Project register'!$H$11 -> 0 | I108: =I87*'Project register'!$H$11 -> 8,750 | J108: =J87*'Project register'!$H$11 -> 11,250 | K108: =K87*'Project register'!$H$11 -> 12,500 | L108: =L87*'Project register'!$H$11 -> 13,750 | M108: =M87*'Project register'!$H$11 -> 15,000 | N108: =N87*'Project register'!$H$11 -> 15,000 | O108: =O87*'Project register'!$H$11 -> 15,000 | P108: =P87*'Project register'!$H$11 -> 13,750
C109: Materials cost | E109: =E87*'Project register'!$I$11 -> 0 | F109: =F87*'Project register'!$I$11 -> 0 | G109: =G87*'Project register'!$I$11 -> 0 | H109: =H87*'Project register'!$I$11 -> 0 | I109: =I87*'Project register'!$I$11 -> 14,000 | J109: =J87*'Project register'!$I$11 -> 18,000 | K109: =K87*'Project register'!$I$11 -> 20,000 | L109: =L87*'Project register'!$I$11 -> 22,000 | M109: =M87*'Project register'!$I$11 -> 24,000 | N109: =N87*'Project register'!$I$11 -> 24,000 | O109: =O87*'Project register'!$I$11 -> 24,000 | P109: =P87*'Project register'!$I$11 -> 22,000
C110: Subcontractor cost | E110: =E87-E108-E109 -> 0 | F110: =F87-F108-F109 -> 0 | G110: =G87-G108-G109 -> 0 | H110: =H87-H108-H109 -> 0 | I110: =I87-I108-I109 -> 12,250 | J110: =J87-J108-J109 -> 15,750 | K110: =K87-K108-K109 -> 17,500 | L110: =L87-L108-L109 -> 19,250 | M110: =M87-M108-M109 -> 21,000 | N110: =N87-N108-N109 -> 21,000 | O110: =O87-O108-O109 -> 21,000 | P110: =P87-P108-P109 -> 19,250
C112: CW-05 Residential extension
C113: Cost incurred | E113: ='Assumptions'!E107 -> 0 | F113: ='Assumptions'!F107 -> 0 | G113: ='Assumptions'!G107 -> 0 | H113: ='Assumptions'!H107 -> 0 | I113: ='Assumptions'!I107 -> 0 | J113: ='Assumptions'!J107 -> 0 | K113: ='Assumptions'!K107 -> 40,000 | L113: ='Assumptions'!L107 -> 55,000 | M113: ='Assumptions'!M107 -> 70,000 | N113: ='Assumptions'!N107 -> 80,000 | O113: ='Assumptions'!O107 -> 100,000 | P113: ='Assumptions'!P107 -> 115,000
C114: Estimated total cost | E114: ='Assumptions'!E110 -> 460,000 | F114: ='Assumptions'!F110 -> 460,000 | G114: ='Assumptions'!G110 -> 460,000 | H114: ='Assumptions'!H110 -> 460,000 | I114: ='Assumptions'!I110 -> 460,000 | J114: ='Assumptions'!J110 -> 460,000 | K114: ='Assumptions'!K110 -> 460,000 | L114: ='Assumptions'!L110 -> 460,000 | M114: ='Assumptions'!M110 -> 460,000 | N114: ='Assumptions'!N110 -> 460,000 | O114: ='Assumptions'!O110 -> 460,000 | P114: ='Assumptions'!P110 -> 460,000
C115: Approved variations to date | E115: ='Assumptions'!E113 -> 0 | F115: ='Assumptions'!F113 -> 0 | G115: ='Assumptions'!G113 -> 0 | H115: ='Assumptions'!H113 -> 0 | I115: ='Assumptions'!I113 -> 0 | J115: ='Assumptions'!J113 -> 8,800 | K115: ='Assumptions'!K113 -> 8,800 | L115: ='Assumptions'!L113 -> 8,800 | M115: ='Assumptions'!M113 -> 22,000 | N115: ='Assumptions'!N113 -> 22,000 | O115: ='Assumptions'!O113 -> 22,000 | P115: ='Assumptions'!P113 -> 22,000
C116: Approved contract value | E116: ='Project register'!$E$12+E115 -> 620,000 | F116: ='Project register'!$E$12+F115 -> 620,000 | G116: ='Project register'!$E$12+G115 -> 620,000 | H116: ='Project register'!$E$12+H115 -> 620,000 | I116: ='Project register'!$E$12+I115 -> 620,000 | J116: ='Project register'!$E$12+J115 -> 628,800 | K116: ='Project register'!$E$12+K115 -> 628,800 | L116: ='Project register'!$E$12+L115 -> 628,800 | M116: ='Project register'!$E$12+M115 -> 642,000 | N116: ='Project register'!$E$12+N115 -> 642,000 | O116: ='Project register'!$E$12+O115 -> 642,000 | P116: ='Project register'!$E$12+P115 -> 642,000
C117: Cumulative cost incurred | E117: =0+E113 -> 0 | F117: =E117+F113 -> 0 | G117: =F117+G113 -> 0 | H117: =G117+H113 -> 0 | I117: =H117+I113 -> 0 | J117: =I117+J113 -> 0 | K117: =J117+K113 -> 40,000 | L117: =K117+L113 -> 95,000 | M117: =L117+M113 -> 165,000 | N117: =M117+N113 -> 245,000 | O117: =N117+O113 -> 345,000 | P117: =O117+P113 -> 460,000
C118: Cost-to-cost progress | E118: =E117/E114 -> 0 | F118: =F117/F114 -> 0 | G118: =G117/G114 -> 0 | H118: =H117/H114 -> 0 | I118: =I117/I114 -> 0 | J118: =J117/J114 -> 0 | K118: =K117/K114 -> 8.7% | L118: =L117/L114 -> 20.7% | M118: =M117/M114 -> 35.9% | N118: =N117/N114 -> 53.3% | O118: =O117/O114 -> 75.0% | P118: =P117/P114 -> 100.0%
C119: Cumulative earned revenue | E119: =E116*MIN(1,E118) -> 0 | F119: =F116*MIN(1,F118) -> 0 | G119: =G116*MIN(1,G118) -> 0 | H119: =H116*MIN(1,H118) -> 0 | I119: =I116*MIN(1,I118) -> 0 | J119: =J116*MIN(1,J118) -> 0 | K119: =K116*MIN(1,K118) -> 54,678 | L119: =L116*MIN(1,L118) -> 129,861 | M119: =M116*MIN(1,M118) -> 230,283 | N119: =N116*MIN(1,N118) -> 341,935 | O119: =O116*MIN(1,O118) -> 481,500 | P119: =P116*MIN(1,P118) -> 642,000
C120: Revenue recognised | E120: =E119-0 -> 0 | F120: =F119-E119 -> 0 | G120: =G119-F119 -> 0 | H120: =H119-G119 -> 0 | I120: =I119-H119 -> 0 | J120: =J119-I119 -> 0 | K120: =K119-J119 -> €54,678 | L120: =L119-K119 -> €75,183 | M120: =M119-L119 -> €100,422 | N120: =N119-M119 -> €111,652 | O120: =O119-N119 -> €139,565 | P120: =P119-O119 -> €160,500
C121: Gross invoices issued | E121: ='Assumptions'!E116 -> 0 | F121: ='Assumptions'!F116 -> 0 | G121: ='Assumptions'!G116 -> 0 | H121: ='Assumptions'!H116 -> 0 | I121: ='Assumptions'!I116 -> 0 | J121: ='Assumptions'!J116 -> 0 | K121: ='Assumptions'!K116 -> 47,570 | L121: ='Assumptions'!L116 -> 65,409 | M121: ='Assumptions'!M116 -> 102,580 | N121: ='Assumptions'!N116 -> 117,235 | O121: ='Assumptions'!O116 -> 146,543 | P121: ='Assumptions'!P116 -> 162,662
C122: Cumulative invoices issued | E122: =0+E121 -> 0 | F122: =E122+F121 -> 0 | G122: =F122+G121 -> 0 | H122: =G122+H121 -> 0 | I122: =H122+I121 -> 0 | J122: =I122+J121 -> 0 | K122: =J122+K121 -> 47,570 | L122: =K122+L121 -> 112,979 | M122: =L122+M121 -> 215,559 | N122: =M122+N121 -> 332,794 | O122: =N122+O121 -> 479,338 | P122: =O122+P121 -> 642,000
C123: Contract asset | E123: =MAX(0,E119-E122) -> 0 | F123: =MAX(0,F119-F122) -> 0 | G123: =MAX(0,G119-G122) -> 0 | H123: =MAX(0,H119-H122) -> 0 | I123: =MAX(0,I119-I122) -> 0 | J123: =MAX(0,J119-J122) -> 0 | K123: =MAX(0,K119-K122) -> €7,108 | L123: =MAX(0,L119-L122) -> €16,882 | M123: =MAX(0,M119-M122) -> €14,723 | N123: =MAX(0,N119-N122) -> €9,141 | O123: =MAX(0,O119-O122) -> €2,162 | P123: =MAX(0,P119-P122) -> 0
C124: Customer advances / contract liability | E124: =MAX(0,E122-E119) -> 0 | F124: =MAX(0,F122-F119) -> 0 | G124: =MAX(0,G122-G119) -> 0 | H124: =MAX(0,H122-H119) -> 0 | I124: =MAX(0,I122-I119) -> 0 | J124: =MAX(0,J122-J119) -> 0 | K124: =MAX(0,K122-K119) -> 0 | L124: =MAX(0,L122-L119) -> 0 | M124: =MAX(0,M122-M119) -> 0 | N124: =MAX(0,N122-N119) -> 0 | O124: =MAX(0,O122-O119) -> 0 | P124: =MAX(0,P122-P119) -> 0
C125: Retention withheld on billing | E125: =E121*'Project register'!$J$12 -> 0 | F125: =F121*'Project register'!$J$12 -> 0 | G125: =G121*'Project register'!$J$12 -> 0 | H125: =H121*'Project register'!$J$12 -> 0 | I125: =I121*'Project register'!$J$12 -> 0 | J125: =J121*'Project register'!$J$12 -> 0 | K125: =K121*'Project register'!$J$12 -> 2,379 | L125: =L121*'Project register'!$J$12 -> 3,270 | M125: =M121*'Project register'!$J$12 -> 5,129 | N125: =N121*'Project register'!$J$12 -> 5,862 | O125: =O121*'Project register'!$J$12 -> 7,327 | P125: =P121*'Project register'!$J$12 -> 8,133
C126: Retention released | E126: =MIN(0+E125,'Assumptions'!E119) -> 0 | F126: =MIN(E127+F125,'Assumptions'!F119) -> 0 | G126: =MIN(F127+G125,'Assumptions'!G119) -> 0 | H126: =MIN(G127+H125,'Assumptions'!H119) -> 0 | I126: =MIN(H127+I125,'Assumptions'!I119) -> 0 | J126: =MIN(I127+J125,'Assumptions'!J119) -> 0 | K126: =MIN(J127+K125,'Assumptions'!K119) -> 0 | L126: =MIN(K127+L125,'Assumptions'!L119) -> 0 | M126: =MIN(L127+M125,'Assumptions'!M119) -> 0 | N126: =MIN(M127+N125,'Assumptions'!N119) -> 0 | O126: =MIN(N127+O125,'Assumptions'!O119) -> 0 | P126: =MIN(O127+P125,'Assumptions'!P119) -> 0
C127: Retention receivable | E127: =0+E125-E126 -> 0 | F127: =E127+F125-F126 -> 0 | G127: =F127+G125-G126 -> 0 | H127: =G127+H125-H126 -> 0 | I127: =H127+I125-I126 -> 0 | J127: =I127+J125-J126 -> 0 | K127: =J127+K125-K126 -> 2,379 | L127: =K127+L125-L126 -> 5,649 | M127: =L127+M125-M126 -> 10,778 | N127: =M127+N125-N126 -> 16,640 | O127: =N127+O125-O126 -> 23,967 | P127: =O127+P125-P126 -> 32,100
C128: Ordinary trade invoices including releases | E128: =E121-E125+E126 -> 0 | F128: =F121-F125+F126 -> 0 | G128: =G121-G125+G126 -> 0 | H128: =H121-H125+H126 -> 0 | I128: =I121-I125+I126 -> 0 | J128: =J121-J125+J126 -> 0 | K128: =K121-K125+K126 -> 45,192 | L128: =L121-L125+L126 -> 62,138 | M128: =M121-M125+M126 -> 97,451 | N128: =N121-N125+N126 -> 111,373 | O128: =O121-O125+O126 -> 139,216 | P128: =P121-P125+P126 -> 154,529
C129: Cost to complete | E129: =MAX(0,E114-E117) -> 460,000 | F129: =MAX(0,F114-F117) -> 460,000 | G129: =MAX(0,G114-G117) -> 460,000 | H129: =MAX(0,H114-H117) -> 460,000 | I129: =MAX(0,I114-I117) -> 460,000 | J129: =MAX(0,J114-J117) -> 460,000 | K129: =MAX(0,K114-K117) -> 420,000 | L129: =MAX(0,L114-L117) -> 365,000 | M129: =MAX(0,M114-M117) -> 295,000 | N129: =MAX(0,N114-N117) -> 215,000 | O129: =MAX(0,O114-O117) -> 115,000 | P129: =MAX(0,P114-P117) -> 0
C130: Open commitments within cost to complete | E130: =E129*'Assumptions'!E122 -> 331,200 | F130: =F129*'Assumptions'!F122 -> 331,200 | G130: =G129*'Assumptions'!G122 -> 331,200 | H130: =H129*'Assumptions'!H122 -> 331,200 | I130: =I129*'Assumptions'!I122 -> 331,200 | J130: =J129*'Assumptions'!J122 -> 331,200 | K130: =K129*'Assumptions'!K122 -> 302,400 | L130: =L129*'Assumptions'!L122 -> 262,800 | M130: =M129*'Assumptions'!M122 -> 230,100 | N130: =N129*'Assumptions'!N122 -> 167,700 | O130: =O129*'Assumptions'!O122 -> 89,700 | P130: =P129*'Assumptions'!P122 -> 0
C131: Uncommitted cost to complete | E131: =E129-E130 -> 128,800 | F131: =F129-F130 -> 128,800 | G131: =G129-G130 -> 128,800 | H131: =H129-H130 -> 128,800 | I131: =I129-I130 -> 128,800 | J131: =J129-J130 -> 128,800 | K131: =K129-K130 -> 117,600 | L131: =L129-L130 -> 102,200 | M131: =M129-M130 -> 64,900 | N131: =N129-N130 -> 47,300 | O131: =O129-O130 -> 25,300 | P131: =P129-P130 -> 0
C132: Expected lifetime project margin | E132: =E116-E114 -> 160,000 | F132: =F116-F114 -> 160,000 | G132: =G116-G114 -> 160,000 | H132: =H116-H114 -> 160,000 | I132: =I116-I114 -> 160,000 | J132: =J116-J114 -> 168,800 | K132: =K116-K114 -> 168,800 | L132: =L116-L114 -> 168,800 | M132: =M116-M114 -> 182,000 | N132: =N116-N114 -> 182,000 | O132: =O116-O114 -> 182,000 | P132: =P116-P114 -> 182,000
C133: Recognised project margin | E133: =E120-E113 -> 0 | F133: =F120-F113 -> 0 | G133: =G120-G113 -> 0 | H133: =H120-H113 -> 0 | I133: =I120-I113 -> 0 | J133: =J120-J113 -> 0 | K133: =K120-K113 -> €14,678 | L133: =L120-L113 -> €20,183 | M133: =M120-M113 -> €30,422 | N133: =N120-N113 -> €31,652 | O133: =O120-O113 -> €39,565 | P133: =P120-P113 -> €45,500
C134: Direct payroll cost | E134: =E113*'Project register'!$H$12 -> 0 | F134: =F113*'Project register'!$H$12 -> 0 | G134: =G113*'Project register'!$H$12 -> 0 | H134: =H113*'Project register'!$H$12 -> 0 | I134: =I113*'Project register'!$H$12 -> 0 | J134: =J113*'Project register'!$H$12 -> 0 | K134: =K113*'Project register'!$H$12 -> 12,000 | L134: =L113*'Project register'!$H$12 -> 16,500 | M134: =M113*'Project register'!$H$12 -> 21,000 | N134: =N113*'Project register'!$H$12 -> 24,000 | O134: =O113*'Project register'!$H$12 -> 30,000 | P134: =P113*'Project register'!$H$12 -> 34,500
C135: Materials cost | E135: =E113*'Project register'!$I$12 -> 0 | F135: =F113*'Project register'!$I$12 -> 0 | G135: =G113*'Project register'!$I$12 -> 0 | H135: =H113*'Project register'!$I$12 -> 0 | I135: =I113*'Project register'!$I$12 -> 0 | J135: =J113*'Project register'!$I$12 -> 0 | K135: =K113*'Project register'!$I$12 -> 15,200 | L135: =L113*'Project register'!$I$12 -> 20,900 | M135: =M113*'Project register'!$I$12 -> 26,600 | N135: =N113*'Project register'!$I$12 -> 30,400 | O135: =O113*'Project register'!$I$12 -> 38,000 | P135: =P113*'Project register'!$I$12 -> 43,700
C136: Subcontractor cost | E136: =E113-E134-E135 -> 0 | F136: =F113-F134-F135 -> 0 | G136: =G113-G134-G135 -> 0 | H136: =H113-H134-H135 -> 0 | I136: =I113-I134-I135 -> 0 | J136: =J113-J134-J135 -> 0 | K136: =K113-K134-K135 -> 12,800 | L136: =L113-L134-L135 -> 17,600 | M136: =M113-M134-M135 -> 22,400 | N136: =N113-N134-N135 -> 25,600 | O136: =O113-O134-O135 -> 32,000 | P136: =P113-P134-P135 -> 36,800
C138: CW-06 Commercial energy upgrade
C139: Cost incurred | E139: ='Assumptions'!E125 -> 0 | F139: ='Assumptions'!F125 -> 0 | G139: ='Assumptions'!G125 -> 0 | H139: ='Assumptions'!H125 -> 40,000 | I139: ='Assumptions'!I125 -> 45,000 | J139: ='Assumptions'!J125 -> 50,000 | K139: ='Assumptions'!K125 -> 55,000 | L139: ='Assumptions'!L125 -> 60,000 | M139: ='Assumptions'!M125 -> 70,000 | N139: ='Assumptions'!N125 -> 70,000 | O139: ='Assumptions'!O125 -> 80,000 | P139: ='Assumptions'!P125 -> 90,000
C140: Estimated total cost | E140: ='Assumptions'!E128 -> 560,000 | F140: ='Assumptions'!F128 -> 560,000 | G140: ='Assumptions'!G128 -> 560,000 | H140: ='Assumptions'!H128 -> 560,000 | I140: ='Assumptions'!I128 -> 560,000 | J140: ='Assumptions'!J128 -> 560,000 | K140: ='Assumptions'!K128 -> 560,000 | L140: ='Assumptions'!L128 -> 560,000 | M140: ='Assumptions'!M128 -> 560,000 | N140: ='Assumptions'!N128 -> 560,000 | O140: ='Assumptions'!O128 -> 560,000 | P140: ='Assumptions'!P128 -> 560,000
C141: Approved variations to date | E141: ='Assumptions'!E131 -> 0 | F141: ='Assumptions'!F131 -> 0 | G141: ='Assumptions'!G131 -> 0 | H141: ='Assumptions'!H131 -> 0 | I141: ='Assumptions'!I131 -> 0 | J141: ='Assumptions'!J131 -> 10,400 | K141: ='Assumptions'!K131 -> 10,400 | L141: ='Assumptions'!L131 -> 10,400 | M141: ='Assumptions'!M131 -> 26,000 | N141: ='Assumptions'!N131 -> 26,000 | O141: ='Assumptions'!O131 -> 26,000 | P141: ='Assumptions'!P131 -> 26,000
C142: Approved contract value | E142: ='Project register'!$E$13+E141 -> 750,000 | F142: ='Project register'!$E$13+F141 -> 750,000 | G142: ='Project register'!$E$13+G141 -> 750,000 | H142: ='Project register'!$E$13+H141 -> 750,000 | I142: ='Project register'!$E$13+I141 -> 750,000 | J142: ='Project register'!$E$13+J141 -> 760,400 | K142: ='Project register'!$E$13+K141 -> 760,400 | L142: ='Project register'!$E$13+L141 -> 760,400 | M142: ='Project register'!$E$13+M141 -> 776,000 | N142: ='Project register'!$E$13+N141 -> 776,000 | O142: ='Project register'!$E$13+O141 -> 776,000 | P142: ='Project register'!$E$13+P141 -> 776,000
C143: Cumulative cost incurred | E143: =0+E139 -> 0 | F143: =E143+F139 -> 0 | G143: =F143+G139 -> 0 | H143: =G143+H139 -> 40,000 | I143: =H143+I139 -> 85,000 | J143: =I143+J139 -> 135,000 | K143: =J143+K139 -> 190,000 | L143: =K143+L139 -> 250,000 | M143: =L143+M139 -> 320,000 | N143: =M143+N139 -> 390,000 | O143: =N143+O139 -> 470,000 | P143: =O143+P139 -> 560,000
C144: Cost-to-cost progress | E144: =E143/E140 -> 0 | F144: =F143/F140 -> 0 | G144: =G143/G140 -> 0 | H144: =H143/H140 -> 7.1% | I144: =I143/I140 -> 15.2% | J144: =J143/J140 -> 24.1% | K144: =K143/K140 -> 33.9% | L144: =L143/L140 -> 44.6% | M144: =M143/M140 -> 57.1% | N144: =N143/N140 -> 69.6% | O144: =O143/O140 -> 83.9% | P144: =P143/P140 -> 100.0%
C145: Cumulative earned revenue | E145: =E142*MIN(1,E144) -> 0 | F145: =F142*MIN(1,F144) -> 0 | G145: =G142*MIN(1,G144) -> 0 | H145: =H142*MIN(1,H144) -> 53,571 | I145: =I142*MIN(1,I144) -> 113,839 | J145: =J142*MIN(1,J144) -> 183,311 | K145: =K142*MIN(1,K144) -> 257,993 | L145: =L142*MIN(1,L144) -> 339,464 | M145: =M142*MIN(1,M144) -> 443,429 | N145: =N142*MIN(1,N144) -> 540,429 | O145: =O142*MIN(1,O144) -> 651,286 | P145: =P142*MIN(1,P144) -> 776,000
C146: Revenue recognised | E146: =E145-0 -> 0 | F146: =F145-E145 -> 0 | G146: =G145-F145 -> 0 | H146: =H145-G145 -> €53,571 | I146: =I145-H145 -> €60,268 | J146: =J145-I145 -> €69,471 | K146: =K145-J145 -> €74,682 | L146: =L145-K145 -> €81,471 | M146: =M145-L145 -> €103,964 | N146: =N145-M145 -> €97,000 | O146: =O145-N145 -> €110,857 | P146: =P145-O145 -> €124,714
C147: Gross invoices issued | E147: ='Assumptions'!E134 -> 0 | F147: ='Assumptions'!F134 -> 0 | G147: ='Assumptions'!G134 -> 0 | H147: ='Assumptions'!H134 -> 46,607 | I147: ='Assumptions'!I134 -> 52,433 | J147: ='Assumptions'!J134 -> 59,067 | K147: ='Assumptions'!K134 -> 64,973 | L147: ='Assumptions'!L134 -> 70,880 | M147: ='Assumptions'!M134 -> 101,850 | N147: ='Assumptions'!N134 -> 101,850 | O147: ='Assumptions'!O134 -> 116,400 | P147: ='Assumptions'!P134 -> 161,939
C148: Cumulative invoices issued | E148: =0+E147 -> 0 | F148: =E148+F147 -> 0 | G148: =F148+G147 -> 0 | H148: =G148+H147 -> 46,607 | I148: =H148+I147 -> 99,040 | J148: =I148+J147 -> 158,107 | K148: =J148+K147 -> 223,080 | L148: =K148+L147 -> 293,961 | M148: =L148+M147 -> 395,811 | N148: =M148+N147 -> 497,661 | O148: =N148+O147 -> 614,061 | P148: =O148+P147 -> 776,000
C149: Contract asset | E149: =MAX(0,E145-E148) -> 0 | F149: =MAX(0,F145-F148) -> 0 | G149: =MAX(0,G145-G148) -> 0 | H149: =MAX(0,H145-H148) -> €6,964 | I149: =MAX(0,I145-I148) -> €14,799 | J149: =MAX(0,J145-J148) -> €25,204 | K149: =MAX(0,K145-K148) -> €34,912 | L149: =MAX(0,L145-L148) -> €45,504 | M149: =MAX(0,M145-M148) -> €47,618 | N149: =MAX(0,N145-N148) -> €42,768 | O149: =MAX(0,O145-O148) -> €37,225 | P149: =MAX(0,P145-P148) -> 0
C150: Customer advances / contract liability | E150: =MAX(0,E148-E145) -> 0 | F150: =MAX(0,F148-F145) -> 0 | G150: =MAX(0,G148-G145) -> 0 | H150: =MAX(0,H148-H145) -> 0 | I150: =MAX(0,I148-I145) -> 0 | J150: =MAX(0,J148-J145) -> 0 | K150: =MAX(0,K148-K145) -> 0 | L150: =MAX(0,L148-L145) -> 0 | M150: =MAX(0,M148-M145) -> 0 | N150: =MAX(0,N148-N145) -> 0 | O150: =MAX(0,O148-O145) -> 0 | P150: =MAX(0,P148-P145) -> 0
C151: Retention withheld on billing | E151: =E147*'Project register'!$J$13 -> 0 | F151: =F147*'Project register'!$J$13 -> 0 | G151: =G147*'Project register'!$J$13 -> 0 | H151: =H147*'Project register'!$J$13 -> 2,330 | I151: =I147*'Project register'!$J$13 -> 2,622 | J151: =J147*'Project register'!$J$13 -> 2,953 | K151: =K147*'Project register'!$J$13 -> 3,249 | L151: =L147*'Project register'!$J$13 -> 3,544 | M151: =M147*'Project register'!$J$13 -> 5,093 | N151: =N147*'Project register'!$J$13 -> 5,093 | O151: =O147*'Project register'!$J$13 -> 5,820 | P151: =P147*'Project register'!$J$13 -> 8,097
C152: Retention released | E152: =MIN(0+E151,'Assumptions'!E137) -> 0 | F152: =MIN(E153+F151,'Assumptions'!F137) -> 0 | G152: =MIN(F153+G151,'Assumptions'!G137) -> 0 | H152: =MIN(G153+H151,'Assumptions'!H137) -> 0 | I152: =MIN(H153+I151,'Assumptions'!I137) -> 0 | J152: =MIN(I153+J151,'Assumptions'!J137) -> 0 | K152: =MIN(J153+K151,'Assumptions'!K137) -> 0 | L152: =MIN(K153+L151,'Assumptions'!L137) -> 0 | M152: =MIN(L153+M151,'Assumptions'!M137) -> 0 | N152: =MIN(M153+N151,'Assumptions'!N137) -> 0 | O152: =MIN(N153+O151,'Assumptions'!O137) -> 0 | P152: =MIN(O153+P151,'Assumptions'!P137) -> 0
C153: Retention receivable | E153: =0+E151-E152 -> 0 | F153: =E153+F151-F152 -> 0 | G153: =F153+G151-G152 -> 0 | H153: =G153+H151-H152 -> 2,330 | I153: =H153+I151-I152 -> 4,952 | J153: =I153+J151-J152 -> 7,905 | K153: =J153+K151-K152 -> 11,154 | L153: =K153+L151-L152 -> 14,698 | M153: =L153+M151-M152 -> 19,791 | N153: =M153+N151-N152 -> 24,883 | O153: =N153+O151-O152 -> 30,703 | P153: =O153+P151-P152 -> 38,800
C154: Ordinary trade invoices including releases | E154: =E147-E151+E152 -> 0 | F154: =F147-F151+F152 -> 0 | G154: =G147-G151+G152 -> 0 | H154: =H147-H151+H152 -> 44,277 | I154: =I147-I151+I152 -> 49,811 | J154: =J147-J151+J152 -> 56,113 | K154: =K147-K151+K152 -> 61,725 | L154: =L147-L151+L152 -> 67,336 | M154: =M147-M151+M152 -> 96,758 | N154: =N147-N151+N152 -> 96,758 | O154: =O147-O151+O152 -> 110,580 | P154: =P147-P151+P152 -> 153,842
C155: Cost to complete | E155: =MAX(0,E140-E143) -> 560,000 | F155: =MAX(0,F140-F143) -> 560,000 | G155: =MAX(0,G140-G143) -> 560,000 | H155: =MAX(0,H140-H143) -> 520,000 | I155: =MAX(0,I140-I143) -> 475,000 | J155: =MAX(0,J140-J143) -> 425,000 | K155: =MAX(0,K140-K143) -> 370,000 | L155: =MAX(0,L140-L143) -> 310,000 | M155: =MAX(0,M140-M143) -> 240,000 | N155: =MAX(0,N140-N143) -> 170,000 | O155: =MAX(0,O140-O143) -> 90,000 | P155: =MAX(0,P140-P143) -> 0
C156: Open commitments within cost to complete | E156: =E155*'Assumptions'!E140 -> 403,200 | F156: =F155*'Assumptions'!F140 -> 403,200 | G156: =G155*'Assumptions'!G140 -> 403,200 | H156: =H155*'Assumptions'!H140 -> 374,400 | I156: =I155*'Assumptions'!I140 -> 342,000 | J156: =J155*'Assumptions'!J140 -> 306,000 | K156: =K155*'Assumptions'!K140 -> 266,400 | L156: =L155*'Assumptions'!L140 -> 223,200 | M156: =M155*'Assumptions'!M140 -> 187,200 | N156: =N155*'Assumptions'!N140 -> 132,600 | O156: =O155*'Assumptions'!O140 -> 70,200 | P156: =P155*'Assumptions'!P140 -> 0
C157: Uncommitted cost to complete | E157: =E155-E156 -> 156,800 | F157: =F155-F156 -> 156,800 | G157: =G155-G156 -> 156,800 | H157: =H155-H156 -> 145,600 | I157: =I155-I156 -> 133,000 | J157: =J155-J156 -> 119,000 | K157: =K155-K156 -> 103,600 | L157: =L155-L156 -> 86,800 | M157: =M155-M156 -> 52,800 | N157: =N155-N156 -> 37,400 | O157: =O155-O156 -> 19,800 | P157: =P155-P156 -> 0
C158: Expected lifetime project margin | E158: =E142-E140 -> 190,000 | F158: =F142-F140 -> 190,000 | G158: =G142-G140 -> 190,000 | H158: =H142-H140 -> 190,000 | I158: =I142-I140 -> 190,000 | J158: =J142-J140 -> 200,400 | K158: =K142-K140 -> 200,400 | L158: =L142-L140 -> 200,400 | M158: =M142-M140 -> 216,000 | N158: =N142-N140 -> 216,000 | O158: =O142-O140 -> 216,000 | P158: =P142-P140 -> 216,000
C159: Recognised project margin | E159: =E146-E139 -> 0 | F159: =F146-F139 -> 0 | G159: =G146-G139 -> 0 | H159: =H146-H139 -> €13,571 | I159: =I146-I139 -> €15,268 | J159: =J146-J139 -> €19,471 | K159: =K146-K139 -> €19,682 | L159: =L146-L139 -> €21,471 | M159: =M146-M139 -> €33,964 | N159: =N146-N139 -> €27,000 | O159: =O146-O139 -> €30,857 | P159: =P146-P139 -> €34,714
C160: Direct payroll cost | E160: =E139*'Project register'!$H$13 -> 0 | F160: =F139*'Project register'!$H$13 -> 0 | G160: =G139*'Project register'!$H$13 -> 0 | H160: =H139*'Project register'!$H$13 -> 8,000 | I160: =I139*'Project register'!$H$13 -> 9,000 | J160: =J139*'Project register'!$H$13 -> 10,000 | K160: =K139*'Project register'!$H$13 -> 11,000 | L160: =L139*'Project register'!$H$13 -> 12,000 | M160: =M139*'Project register'!$H$13 -> 14,000 | N160: =N139*'Project register'!$H$13 -> 14,000 | O160: =O139*'Project register'!$H$13 -> 16,000 | P160: =P139*'Project register'!$H$13 -> 18,000
C161: Materials cost | E161: =E139*'Project register'!$I$13 -> 0 | F161: =F139*'Project register'!$I$13 -> 0 | G161: =G139*'Project register'!$I$13 -> 0 | H161: =H139*'Project register'!$I$13 -> 20,000 | I161: =I139*'Project register'!$I$13 -> 22,500 | J161: =J139*'Project register'!$I$13 -> 25,000 | K161: =K139*'Project register'!$I$13 -> 27,500 | L161: =L139*'Project register'!$I$13 -> 30,000 | M161: =M139*'Project register'!$I$13 -> 35,000 | N161: =N139*'Project register'!$I$13 -> 35,000 | O161: =O139*'Project register'!$I$13 -> 40,000 | P161: =P139*'Project register'!$I$13 -> 45,000
C162: Subcontractor cost | E162: =E139-E160-E161 -> 0 | F162: =F139-F160-F161 -> 0 | G162: =G139-G160-G161 -> 0 | H162: =H139-H160-H161 -> 12,000 | I162: =I139-I160-I161 -> 13,500 | J162: =J139-J160-J161 -> 15,000 | K162: =K139-K160-K161 -> 16,500 | L162: =L139-L160-L161 -> 18,000 | M162: =M139-M160-M161 -> 21,000 | N162: =N139-N160-N161 -> 21,000 | O162: =O139-O160-O161 -> 24,000 | P162: =P139-P160-P161 -> 27,000
C164: Portfolio totals
C165: Cost incurred | E165: =SUM(E9,E35,E61,E87,E113,E139) -> 95,000 | F165: =SUM(F9,F35,F61,F87,F113,F139) -> 105,000 | G165: =SUM(G9,G35,G61,G87,G113,G139) -> 155,000 | H165: =SUM(H9,H35,H61,H87,H113,H139) -> 210,000 | I165: =SUM(I9,I35,I61,I87,I113,I139) -> 255,000 | J165: =SUM(J9,J35,J61,J87,J113,J139) -> 275,000 | K165: =SUM(K9,K35,K61,K87,K113,K139) -> 325,000 | L165: =SUM(L9,L35,L61,L87,L113,L139) -> 340,000 | M165: =SUM(M9,M35,M61,M87,M113,M139) -> 355,000 | N165: =SUM(N9,N35,N61,N87,N113,N139) -> 360,000 | O165: =SUM(O9,O35,O61,O87,O113,O139) -> 370,000 | P165: =SUM(P9,P35,P61,P87,P113,P139) -> 375,000
C166: Estimated total cost | E166: =SUM(E10,E36,E62,E88,E114,E140) -> 3,220,000 | F166: =SUM(F10,F36,F62,F88,F114,F140) -> 3,220,000 | G166: =SUM(G10,G36,G62,G88,G114,G140) -> 3,220,000 | H166: =SUM(H10,H36,H62,H88,H114,H140) -> 3,220,000 | I166: =SUM(I10,I36,I62,I88,I114,I140) -> 3,220,000 | J166: =SUM(J10,J36,J62,J88,J114,J140) -> 3,220,000 | K166: =SUM(K10,K36,K62,K88,K114,K140) -> 3,220,000 | L166: =SUM(L10,L36,L62,L88,L114,L140) -> 3,220,000 | M166: =SUM(M10,M36,M62,M88,M114,M140) -> 3,220,000 | N166: =SUM(N10,N36,N62,N88,N114,N140) -> 3,220,000 | O166: =SUM(O10,O36,O62,O88,O114,O140) -> 3,220,000 | P166: =SUM(P10,P36,P62,P88,P114,P140) -> 3,220,000
C167: Approved variations to date | E167: =SUM(E11,E37,E63,E89,E115,E141) -> 0 | F167: =SUM(F11,F37,F63,F89,F115,F141) -> 0 | G167: =SUM(G11,G37,G63,G89,G115,G141) -> 0 | H167: =SUM(H11,H37,H63,H89,H115,H141) -> 0 | I167: =SUM(I11,I37,I63,I89,I115,I141) -> 0 | J167: =SUM(J11,J37,J63,J89,J115,J141) -> 63,200 | K167: =SUM(K11,K37,K63,K89,K115,K141) -> 63,200 | L167: =SUM(L11,L37,L63,L89,L115,L141) -> 63,200 | M167: =SUM(M11,M37,M63,M89,M115,M141) -> 158,000 | N167: =SUM(N11,N37,N63,N89,N115,N141) -> 158,000 | O167: =SUM(O11,O37,O63,O89,O115,O141) -> 158,000 | P167: =SUM(P11,P37,P63,P89,P115,P141) -> 158,000
C168: Approved contract value | E168: =SUM(E12,E38,E64,E90,E116,E142) -> 4,380,000 | F168: =SUM(F12,F38,F64,F90,F116,F142) -> 4,380,000 | G168: =SUM(G12,G38,G64,G90,G116,G142) -> 4,380,000 | H168: =SUM(H12,H38,H64,H90,H116,H142) -> 4,380,000 | I168: =SUM(I12,I38,I64,I90,I116,I142) -> 4,380,000 | J168: =SUM(J12,J38,J64,J90,J116,J142) -> 4,443,200 | K168: =SUM(K12,K38,K64,K90,K116,K142) -> 4,443,200 | L168: =SUM(L12,L38,L64,L90,L116,L142) -> 4,443,200 | M168: =SUM(M12,M38,M64,M90,M116,M142) -> 4,538,000 | N168: =SUM(N12,N38,N64,N90,N116,N142) -> 4,538,000 | O168: =SUM(O12,O38,O64,O90,O116,O142) -> 4,538,000 | P168: =SUM(P12,P38,P64,P90,P116,P142) -> 4,538,000
C169: Cumulative cost incurred | E169: =SUM(E13,E39,E65,E91,E117,E143) -> 95,000 | F169: =SUM(F13,F39,F65,F91,F117,F143) -> 200,000 | G169: =SUM(G13,G39,G65,G91,G117,G143) -> 355,000 | H169: =SUM(H13,H39,H65,H91,H117,H143) -> 565,000 | I169: =SUM(I13,I39,I65,I91,I117,I143) -> 820,000 | J169: =SUM(J13,J39,J65,J91,J117,J143) -> 1,095,000 | K169: =SUM(K13,K39,K65,K91,K117,K143) -> 1,420,000 | L169: =SUM(L13,L39,L65,L91,L117,L143) -> 1,760,000 | M169: =SUM(M13,M39,M65,M91,M117,M143) -> 2,115,000 | N169: =SUM(N13,N39,N65,N91,N117,N143) -> 2,475,000 | O169: =SUM(O13,O39,O65,O91,O117,O143) -> 2,845,000 | P169: =SUM(P13,P39,P65,P91,P117,P143) -> 3,220,000
C170: Cumulative earned revenue | E170: =SUM(E15,E41,E67,E93,E119,E145) -> 126,778 | F170: =SUM(F15,F41,F67,F93,F119,F145) -> 266,667 | G170: =SUM(G15,G41,G67,G93,G119,G145) -> 479,059 | H170: =SUM(H15,H41,H67,H93,H119,H145) -> 766,234 | I170: =SUM(I15,I41,I67,I93,I119,I145) -> 1,114,100 | J170: =SUM(J15,J41,J67,J93,J119,J145) -> 1,511,430 | K170: =SUM(K15,K41,K67,K93,K119,K145) -> 1,961,073 | L170: =SUM(L15,L41,L67,L93,L119,L145) -> 2,430,669 | M170: =SUM(M15,M41,M67,M93,M119,M145) -> 2,983,308 | N170: =SUM(N15,N41,N67,N93,N119,N145) -> 3,490,422 | O170: =SUM(O15,O41,O67,O93,O119,O145) -> 4,010,489 | P170: =SUM(P15,P41,P67,P93,P119,P145) -> 4,538,000
C171: Revenue recognised | E171: =SUM(E16,E42,E68,E94,E120,E146) -> 126,778 | F171: =SUM(F16,F42,F68,F94,F120,F146) -> 139,889 | G171: =SUM(G16,G42,G68,G94,G120,G146) -> 212,393 | H171: =SUM(H16,H42,H68,H94,H120,H146) -> 287,175 | I171: =SUM(I16,I42,I68,I94,I120,I146) -> 347,866 | J171: =SUM(J16,J42,J68,J94,J120,J146) -> 397,330 | K171: =SUM(K16,K42,K68,K94,K120,K146) -> 449,643 | L171: =SUM(L16,L42,L68,L94,L120,L146) -> 469,596 | M171: =SUM(M16,M42,M68,M94,M120,M146) -> 552,639 | N171: =SUM(N16,N42,N68,N94,N120,N146) -> 507,114 | O171: =SUM(O16,O42,O68,O94,O120,O146) -> 520,067 | P171: =SUM(P16,P42,P68,P94,P120,P146) -> 527,511
C172: Gross invoices issued | E172: =SUM(E17,E43,E69,E95,E121,E147) -> 110,297 | F172: =SUM(F17,F43,F69,F95,F121,F147) -> 121,703 | G172: =SUM(G17,G43,G69,G95,G121,G147) -> 184,782 | H172: =SUM(H17,H43,H69,H95,H121,H147) -> 249,842 | I172: =SUM(I17,I43,I69,I95,I121,I147) -> 302,643 | J172: =SUM(J17,J43,J69,J95,J121,J147) -> 331,169 | K172: =SUM(K17,K43,K69,K95,K121,K147) -> 391,190 | L172: =SUM(L17,L43,L69,L95,L121,L147) -> 408,548 | M172: =SUM(M17,M43,M69,M95,M121,M147) -> 524,978 | N172: =SUM(N17,N43,N69,N95,N121,N147) -> 532,469 | O172: =SUM(O17,O43,O69,O95,O121,O147) -> 546,070 | P172: =SUM(P17,P43,P69,P95,P121,P147) -> 834,308
C173: Cumulative invoices issued | E173: =SUM(E18,E44,E70,E96,E122,E148) -> 110,297 | F173: =SUM(F18,F44,F70,F96,F122,F148) -> 232,000 | G173: =SUM(G18,G44,G70,G96,G122,G148) -> 416,782 | H173: =SUM(H18,H44,H70,H96,H122,H148) -> 666,624 | I173: =SUM(I18,I44,I70,I96,I122,I148) -> 969,267 | J173: =SUM(J18,J44,J70,J96,J122,J148) -> 1,300,436 | K173: =SUM(K18,K44,K70,K96,K122,K148) -> 1,691,626 | L173: =SUM(L18,L44,L70,L96,L122,L148) -> 2,100,174 | M173: =SUM(M18,M44,M70,M96,M122,M148) -> 2,625,152 | N173: =SUM(N18,N44,N70,N96,N122,N148) -> 3,157,622 | O173: =SUM(O18,O44,O70,O96,O122,O148) -> 3,703,692 | P173: =SUM(P18,P44,P70,P96,P122,P148) -> 4,538,000
C174: Contract asset | E174: =SUM(E19,E45,E71,E97,E123,E149) -> 16,481 | F174: =SUM(F19,F45,F71,F97,F123,F149) -> 34,667 | G174: =SUM(G19,G45,G71,G97,G123,G149) -> 62,278 | H174: =SUM(H19,H45,H71,H97,H123,H149) -> 99,610 | I174: =SUM(I19,I45,I71,I97,I123,I149) -> 144,833 | J174: =SUM(J19,J45,J71,J97,J123,J149) -> 210,994 | K174: =SUM(K19,K45,K71,K97,K123,K149) -> 269,447 | L174: =SUM(L19,L45,L71,L97,L123,L149) -> 330,495 | M174: =SUM(M19,M45,M71,M97,M123,M149) -> 358,156 | N174: =SUM(N19,N45,N71,N97,N123,N149) -> 332,800 | O174: =SUM(O19,O45,O71,O97,O123,O149) -> 306,797 | P174: =SUM(P19,P45,P71,P97,P123,P149) -> 0
C175: Customer advances / contract liability | E175: =SUM(E20,E46,E72,E98,E124,E150) -> 0 | F175: =SUM(F20,F46,F72,F98,F124,F150) -> 0 | G175: =SUM(G20,G46,G72,G98,G124,G150) -> 0 | H175: =SUM(H20,H46,H72,H98,H124,H150) -> 0 | I175: =SUM(I20,I46,I72,I98,I124,I150) -> 0 | J175: =SUM(J20,J46,J72,J98,J124,J150) -> 0 | K175: =SUM(K20,K46,K72,K98,K124,K150) -> 0 | L175: =SUM(L20,L46,L72,L98,L124,L150) -> 0 | M175: =SUM(M20,M46,M72,M98,M124,M150) -> 0 | N175: =SUM(N20,N46,N72,N98,N124,N150) -> 0 | O175: =SUM(O20,O46,O72,O98,O124,O150) -> 0 | P175: =SUM(P20,P46,P72,P98,P124,P150) -> 0
C176: Retention withheld on billing | E176: =SUM(E21,E47,E73,E99,E125,E151) -> 5,515 | F176: =SUM(F21,F47,F73,F99,F125,F151) -> 6,085 | G176: =SUM(G21,G47,G73,G99,G125,G151) -> 9,239 | H176: =SUM(H21,H47,H73,H99,H125,H151) -> 12,492 | I176: =SUM(I21,I47,I73,I99,I125,I151) -> 15,132 | J176: =SUM(J21,J47,J73,J99,J125,J151) -> 16,558 | K176: =SUM(K21,K47,K73,K99,K125,K151) -> 19,559 | L176: =SUM(L21,L47,L73,L99,L125,L151) -> 20,427 | M176: =SUM(M21,M47,M73,M99,M125,M151) -> 26,249 | N176: =SUM(N21,N47,N73,N99,N125,N151) -> 26,623 | O176: =SUM(O21,O47,O73,O99,O125,O151) -> 27,304 | P176: =SUM(P21,P47,P73,P99,P125,P151) -> 41,715
C177: Retention released | E177: =SUM(E22,E48,E74,E100,E126,E152) -> 0 | F177: =SUM(F22,F48,F74,F100,F126,F152) -> 0 | G177: =SUM(G22,G48,G74,G100,G126,G152) -> 0 | H177: =SUM(H22,H48,H74,H100,H126,H152) -> 0 | I177: =SUM(I22,I48,I74,I100,I126,I152) -> 0 | J177: =SUM(J22,J48,J74,J100,J126,J152) -> 0 | K177: =SUM(K22,K48,K74,K100,K126,K152) -> 0 | L177: =SUM(L22,L48,L74,L100,L126,L152) -> 0 | M177: =SUM(M22,M48,M74,M100,M126,M152) -> 0 | N177: =SUM(N22,N48,N74,N100,N126,N152) -> 0 | O177: =SUM(O22,O48,O74,O100,O126,O152) -> 0 | P177: =SUM(P22,P48,P74,P100,P126,P152) -> 0
C178: Retention receivable | E178: =SUM(E23,E49,E75,E101,E127,E153) -> 5,515 | F178: =SUM(F23,F49,F75,F101,F127,F153) -> 11,600 | G178: =SUM(G23,G49,G75,G101,G127,G153) -> 20,839 | H178: =SUM(H23,H49,H75,H101,H127,H153) -> 33,331 | I178: =SUM(I23,I49,I75,I101,I127,I153) -> 48,463 | J178: =SUM(J23,J49,J75,J101,J127,J153) -> 65,022 | K178: =SUM(K23,K49,K75,K101,K127,K153) -> 84,581 | L178: =SUM(L23,L49,L75,L101,L127,L153) -> 105,009 | M178: =SUM(M23,M49,M75,M101,M127,M153) -> 131,258 | N178: =SUM(N23,N49,N75,N101,N127,N153) -> 157,881 | O178: =SUM(O23,O49,O75,O101,O127,O153) -> 185,185 | P178: =SUM(P23,P49,P75,P101,P127,P153) -> 226,900
C179: Ordinary trade invoices including releases | E179: =SUM(E24,E50,E76,E102,E128,E154) -> 104,782 | F179: =SUM(F24,F50,F76,F102,F128,F154) -> 115,618 | G179: =SUM(G24,G50,G76,G102,G128,G154) -> 175,543 | H179: =SUM(H24,H50,H76,H102,H128,H154) -> 237,350 | I179: =SUM(I24,I50,I76,I102,I128,I154) -> 287,511 | J179: =SUM(J24,J50,J76,J102,J128,J154) -> 314,611 | K179: =SUM(K24,K50,K76,K102,K128,K154) -> 371,630 | L179: =SUM(L24,L50,L76,L102,L128,L154) -> 388,121 | M179: =SUM(M24,M50,M76,M102,M128,M154) -> 498,729 | N179: =SUM(N24,N50,N76,N102,N128,N154) -> 505,846 | O179: =SUM(O24,O50,O76,O102,O128,O154) -> 518,767 | P179: =SUM(P24,P50,P76,P102,P128,P154) -> 792,593
C180: Cost to complete | E180: =SUM(E25,E51,E77,E103,E129,E155) -> 3,125,000 | F180: =SUM(F25,F51,F77,F103,F129,F155) -> 3,020,000 | G180: =SUM(G25,G51,G77,G103,G129,G155) -> 2,865,000 | H180: =SUM(H25,H51,H77,H103,H129,H155) -> 2,655,000 | I180: =SUM(I25,I51,I77,I103,I129,I155) -> 2,400,000 | J180: =SUM(J25,J51,J77,J103,J129,J155) -> 2,125,000 | K180: =SUM(K25,K51,K77,K103,K129,K155) -> 1,800,000 | L180: =SUM(L25,L51,L77,L103,L129,L155) -> 1,460,000 | M180: =SUM(M25,M51,M77,M103,M129,M155) -> 1,105,000 | N180: =SUM(N25,N51,N77,N103,N129,N155) -> 745,000 | O180: =SUM(O25,O51,O77,O103,O129,O155) -> 375,000 | P180: =SUM(P25,P51,P77,P103,P129,P155) -> 0
C181: Open commitments within cost to complete | E181: =SUM(E26,E52,E78,E104,E130,E156) -> 2,250,000 | F181: =SUM(F26,F52,F78,F104,F130,F156) -> 2,174,400 | G181: =SUM(G26,G52,G78,G104,G130,G156) -> 2,062,800 | H181: =SUM(H26,H52,H78,H104,H130,H156) -> 1,911,600 | I181: =SUM(I26,I52,I78,I104,I130,I156) -> 1,728,000 | J181: =SUM(J26,J52,J78,J104,J130,J156) -> 1,530,000 | K181: =SUM(K26,K52,K78,K104,K130,K156) -> 1,296,000 | L181: =SUM(L26,L52,L78,L104,L130,L156) -> 1,051,200 | M181: =SUM(M26,M52,M78,M104,M130,M156) -> 861,900 | N181: =SUM(N26,N52,N78,N104,N130,N156) -> 581,100 | O181: =SUM(O26,O52,O78,O104,O130,O156) -> 292,500 | P181: =SUM(P26,P52,P78,P104,P130,P156) -> 0
C182: Uncommitted cost to complete | E182: =SUM(E27,E53,E79,E105,E131,E157) -> 875,000 | F182: =SUM(F27,F53,F79,F105,F131,F157) -> 845,600 | G182: =SUM(G27,G53,G79,G105,G131,G157) -> 802,200 | H182: =SUM(H27,H53,H79,H105,H131,H157) -> 743,400 | I182: =SUM(I27,I53,I79,I105,I131,I157) -> 672,000 | J182: =SUM(J27,J53,J79,J105,J131,J157) -> 595,000 | K182: =SUM(K27,K53,K79,K105,K131,K157) -> 504,000 | L182: =SUM(L27,L53,L79,L105,L131,L157) -> 408,800 | M182: =SUM(M27,M53,M79,M105,M131,M157) -> 243,100 | N182: =SUM(N27,N53,N79,N105,N131,N157) -> 163,900 | O182: =SUM(O27,O53,O79,O105,O131,O157) -> 82,500 | P182: =SUM(P27,P53,P79,P105,P131,P157) -> 0
C183: Expected lifetime project margin | E183: =SUM(E28,E54,E80,E106,E132,E158) -> 1,160,000 | F183: =SUM(F28,F54,F80,F106,F132,F158) -> 1,160,000 | G183: =SUM(G28,G54,G80,G106,G132,G158) -> 1,160,000 | H183: =SUM(H28,H54,H80,H106,H132,H158) -> 1,160,000 | I183: =SUM(I28,I54,I80,I106,I132,I158) -> 1,160,000 | J183: =SUM(J28,J54,J80,J106,J132,J158) -> 1,223,200 | K183: =SUM(K28,K54,K80,K106,K132,K158) -> 1,223,200 | L183: =SUM(L28,L54,L80,L106,L132,L158) -> 1,223,200 | M183: =SUM(M28,M54,M80,M106,M132,M158) -> 1,318,000 | N183: =SUM(N28,N54,N80,N106,N132,N158) -> 1,318,000 | O183: =SUM(O28,O54,O80,O106,O132,O158) -> 1,318,000 | P183: =SUM(P28,P54,P80,P106,P132,P158) -> 1,318,000
C184: Recognised project margin | E184: =SUM(E29,E55,E81,E107,E133,E159) -> 31,778 | F184: =SUM(F29,F55,F81,F107,F133,F159) -> 34,889 | G184: =SUM(G29,G55,G81,G107,G133,G159) -> 57,393 | H184: =SUM(H29,H55,H81,H107,H133,H159) -> 77,175 | I184: =SUM(I29,I55,I81,I107,I133,I159) -> 92,866 | J184: =SUM(J29,J55,J81,J107,J133,J159) -> 122,330 | K184: =SUM(K29,K55,K81,K107,K133,K159) -> 124,643 | L184: =SUM(L29,L55,L81,L107,L133,L159) -> 129,596 | M184: =SUM(M29,M55,M81,M107,M133,M159) -> 197,639 | N184: =SUM(N29,N55,N81,N107,N133,N159) -> 147,114 | O184: =SUM(O29,O55,O81,O107,O133,O159) -> 150,067 | P184: =SUM(P29,P55,P81,P107,P133,P159) -> 152,511
C185: Direct payroll cost | E185: =SUM(E30,E56,E82,E108,E134,E160) -> 21,900 | F185: =SUM(F30,F56,F82,F108,F134,F160) -> 24,100 | G185: =SUM(G30,G56,G82,G108,G134,G160) -> 35,550 | H185: =SUM(H30,H56,H82,H108,H134,H160) -> 46,950 | I185: =SUM(I30,I56,I82,I108,I134,I160) -> 57,850 | J185: =SUM(J30,J56,J82,J108,J134,J160) -> 62,500 | K185: =SUM(K30,K56,K82,K108,K134,K160) -> 76,800 | L185: =SUM(L30,L56,L82,L108,L134,L160) -> 81,300 | M185: =SUM(M30,M56,M82,M108,M134,M160) -> 85,700 | N185: =SUM(N30,N56,N82,N108,N134,N160) -> 87,600 | O185: =SUM(O30,O56,O82,O108,O134,O160) -> 91,100 | P185: =SUM(P30,P56,P82,P108,P134,P160) -> 93,050
C186: Materials cost | E186: =SUM(E31,E57,E83,E109,E135,E161) -> 44,100 | F186: =SUM(F31,F57,F83,F109,F135,F161) -> 48,900 | G186: =SUM(G31,G57,G83,G109,G135,G161) -> 72,000 | H186: =SUM(H31,H57,H83,H109,H135,H161) -> 99,000 | I186: =SUM(I31,I57,I83,I109,I135,I161) -> 117,800 | J186: =SUM(J31,J57,J83,J109,J135,J161) -> 126,600 | K186: =SUM(K31,K57,K83,K109,K135,K161) -> 146,200 | L186: =SUM(L31,L57,L83,L109,L135,L161) -> 151,700 | M186: =SUM(M31,M57,M83,M109,M135,M161) -> 157,300 | N186: =SUM(N31,N57,N83,N109,N135,N161) -> 158,700 | O186: =SUM(O31,O57,O83,O109,O135,O161) -> 161,900 | P186: =SUM(P31,P57,P83,P109,P135,P161) -> 163,400
C187: Subcontractor cost | E187: =SUM(E32,E58,E84,E110,E136,E162) -> 29,000 | F187: =SUM(F32,F58,F84,F110,F136,F162) -> 32,000 | G187: =SUM(G32,G58,G84,G110,G136,G162) -> 47,450 | H187: =SUM(H32,H58,H84,H110,H136,H162) -> 64,050 | I187: =SUM(I32,I58,I84,I110,I136,I162) -> 79,350 | J187: =SUM(J32,J58,J84,J110,J136,J162) -> 85,900 | K187: =SUM(K32,K58,K84,K110,K136,K162) -> 102,000 | L187: =SUM(L32,L58,L84,L110,L136,L162) -> 107,000 | M187: =SUM(M32,M58,M84,M110,M136,M162) -> 112,000 | N187: =SUM(N32,N58,N84,N110,N136,N162) -> 113,700 | O187: =SUM(O32,O58,O84,O110,O136,O162) -> 117,000 | P187: =SUM(P32,P58,P84,P110,P136,P162) -> 118,550

Sheet Project register
C2: Project register
C4: Selected case | E4: ='Assumptions'!$G$4 -> Base | H4: EUR. Entirely fictional.
C7: Project | D7: Description | E7: Base contract | F7: Original cost budget | G7: Unapproved requests | H7: Labour share | I7: Materials share | J7: Retention rate | K7: Budget gross profit
C8: CW-01 | D8: Residential refurbishment | E8: 420,000 | F8: 300,000 | G8: 8,000 | H8: 26.0% | I8: 42.0% | J8: 5.0% | K8: =E8-F8 -> 120,000
C9: CW-02 | D9: Retail fit-out | E9: 850,000 | F9: 580,000 | G9: 24,000 | H9: 23.0% | I9: 46.0% | J9: 5.0% | K9: =E9-F9 -> 270,000
C10: CW-03 | D10: Workplace redevelopment | E10: 1,180,000 | F10: 900,000 | G10: 36,000 | H10: 22.0% | I10: 48.0% | J10: 5.0% | K10: =E10-F10 -> 280,000
C11: CW-04 | D11: Hospitality renovation | E11: 560,000 | F11: 420,000 | G11: 22,000 | H11: 25.0% | I11: 40.0% | J11: 5.0% | K11: =E11-F11 -> 140,000
C12: CW-05 | D12: Residential extension | E12: 620,000 | F12: 460,000 | G12: 15,000 | H12: 30.0% | I12: 38.0% | J12: 5.0% | K12: =E12-F12 -> 160,000
C13: CW-06 | D13: Commercial energy upgrade | E13: 750,000 | F13: 560,000 | G13: 28,000 | H13: 20.0% | I13: 50.0% | J13: 5.0% | K13: =E13-F13 -> 190,000
C17: Unapproved requests are excluded from revenue and contract value.
C19: Original cost budget stays fixed. Total forecast cost changes in Assumptions.

Sheet Working capital
C2: Working capital
C4: Selected case | E4: ='Assumptions'!$G$4 -> Base | H4: EUR. Entirely fictional.
E6: Actual | F6: Actual | G6: Actual | H6: Actual | I6: Actual | J6: Actual | K6: Actual | L6: Actual | M6: Forecast | N6: Forecast | O6: Forecast | P6: Forecast
E7: 2026-01-01 | F7: 2026-02-01 | G7: 2026-03-01 | H7: 2026-04-01 | I7: 2026-05-01 | J7: 2026-06-01 | K7: 2026-07-01 | L7: 2026-08-01 | M7: 2026-09-01 | N7: 2026-10-01 | O7: 2026-11-01 | P7: 2026-12-01
C8: Ordinary invoices issued | E8: ='Projects'!E179 -> 104,782 | F8: ='Projects'!F179 -> 115,618 | G8: ='Projects'!G179 -> 175,543 | H8: ='Projects'!H179 -> 237,350 | I8: ='Projects'!I179 -> 287,511 | J8: ='Projects'!J179 -> 314,611 | K8: ='Projects'!K179 -> 371,630 | L8: ='Projects'!L179 -> 388,121 | M8: ='Projects'!M179 -> 498,729 | N8: ='Projects'!N179 -> 505,846 | O8: ='Projects'!O179 -> 518,767 | P8: ='Projects'!P179 -> 792,593
C9: Scheduled opening invoice receipts | E9: =0 -> 0 | F9: =0 -> 0 | G9: =0 -> 0 | H9: =0 -> 0 | I9: =0 -> 0 | J9: =0 -> 0 | K9: =0 -> 0 | L9: =0 -> 0 | M9: =SUMIFS($L$42:$L$49,$I$42:$I$49,">="&46266,$I$42:$I$49,"<="&46295) -> 425,681 | N9: =SUMIFS($L$42:$L$49,$I$42:$I$49,">="&46296,$I$42:$I$49,"<="&46326) -> 75,120 | O9: =SUMIFS($L$42:$L$49,$I$42:$I$49,">="&46327,$I$42:$I$49,"<="&46356) -> 0 | P9: =SUMIFS($L$42:$L$49,$I$42:$I$49,">="&46357,$I$42:$I$49,"<="&46387) -> 0
C10: Unpaid opening receivables | E10: =0 -> 0 | F10: =0 -> 0 | G10: =0 -> 0 | H10: =0 -> 0 | I10: =0 -> 0 | J10: =0 -> 0 | K10: =0 -> 0 | L10: =0 -> 0 | M10: =SUMIFS($G$42:$G$49,$I$42:$I$49,">"&46295) -> 75,120 | N10: =SUMIFS($G$42:$G$49,$I$42:$I$49,">"&46326) -> 0 | O10: =SUMIFS($G$42:$G$49,$I$42:$I$49,">"&46356) -> 0 | P10: =SUMIFS($G$42:$G$49,$I$42:$I$49,">"&46387) -> 0
C11: Closing ordinary trade receivables | E11: =MIN('Actual inputs'!$E$58+E8,E8*'Assumptions'!E20/31) -> 104,782 | F11: =MIN(E11+F8,F8*'Assumptions'!F20/28) -> 165,169 | G11: =MIN(F11+G8,G8*'Assumptions'!G20/31) -> 226,507 | H11: =MIN(G11+H8,H8*'Assumptions'!H20/30) -> 316,467 | I11: =MIN(H11+I8,I8*'Assumptions'!I20/31) -> 370,982 | J11: =MIN(I11+J8,J8*'Assumptions'!J20/30) -> 419,481 | K11: =MIN(J11+K8,K8*'Assumptions'!K20/31) -> 479,523 | L11: =SUM($G$42:$G$49) -> 500,801 | M11: =MAX(M10,MIN(M8*'Assumptions'!M20/30,L11+M8-M9)) -> 573,850 | N11: =MAX(N10,MIN(N8*'Assumptions'!N20/31,M11+N8-N9)) -> 587,434 | O11: =MAX(O10,MIN(O8*'Assumptions'!O20/30,N11+O8-O9)) -> 605,228 | P11: =MAX(P10,MIN(P8*'Assumptions'!P20/31,O11+P8-P9)) -> 894,863
C12: Customer cash receipts | E12: =E8+'Actual inputs'!$E$58-E11 -> 0 | F12: =F8+E11-F11 -> 55,231 | G12: =G8+F11-G11 -> 114,205 | H12: =H8+G11-H11 -> 147,390 | I12: =I8+H11-I11 -> 232,996 | J12: =J8+I11-J11 -> 266,112 | K12: =K8+J11-K11 -> 311,589 | L12: =L8+K11-L11 -> 366,842 | M12: =M8+L11-M11 -> 425,681 | N12: =N8+M11-N11 -> 492,262 | O12: =O8+N11-O11 -> 500,973 | P12: =P8+O11-P11 -> 502,958
C14: Vendor expense incurred | E14: =-'P&L'!E10-'P&L'!E11-'P&L'!E12 -> 77,600 | F14: =-'P&L'!F10-'P&L'!F11-'P&L'!F12 -> 85,400 | G14: =-'P&L'!G10-'P&L'!G11-'P&L'!G12 -> 123,950 | H14: =-'P&L'!H10-'P&L'!H11-'P&L'!H12 -> 167,550 | I14: =-'P&L'!I10-'P&L'!I11-'P&L'!I12 -> 201,650 | J14: =-'P&L'!J10-'P&L'!J11-'P&L'!J12 -> 217,000 | K14: =-'P&L'!K10-'P&L'!K11-'P&L'!K12 -> 252,700 | L14: =-'P&L'!L10-'P&L'!L11-'P&L'!L12 -> 263,200 | M14: =-'P&L'!M10-'P&L'!M11-'P&L'!M12 -> 274,300 | N14: =-'P&L'!N10-'P&L'!N11-'P&L'!N12 -> 277,400 | O14: =-'P&L'!O10-'P&L'!O11-'P&L'!O12 -> 283,900 | P14: =-'P&L'!P10-'P&L'!P11-'P&L'!P12 -> 286,950
C15: Unpaid opening supplier invoices | E15: =0 -> 0 | F15: =0 -> 0 | G15: =0 -> 0 | H15: =0 -> 0 | I15: =0 -> 0 | J15: =0 -> 0 | K15: =0 -> 0 | L15: =0 -> 0 | M15: =SUM($I$56:$I$63)-SUMIFS($O$56:$O$63,$N$56:$N$63,"<="&46295,$N$56:$N$63,">0") -> 84,054 | N15: =SUM($I$56:$I$63)-SUMIFS($O$56:$O$63,$N$56:$N$63,"<="&46326,$N$56:$N$63,">0") -> 48,395 | O15: =SUM($I$56:$I$63)-SUMIFS($O$56:$O$63,$N$56:$N$63,"<="&46356,$N$56:$N$63,">0") -> 48,395 | P15: =SUM($I$56:$I$63)-SUMIFS($O$56:$O$63,$N$56:$N$63,"<="&46387,$N$56:$N$63,">0") -> 48,395
C16: Closing trade payables | E16: =E14*'Assumptions'!E23/31+E15 -> 75,097 | F16: =F14*'Assumptions'!F23/28+F15 -> 91,500 | G16: =G14*'Assumptions'!G23/31+G15 -> 119,952 | H16: =H14*'Assumptions'!H23/30+H15 -> 167,550 | I16: =I14*'Assumptions'!I23/31+I15 -> 195,145 | J16: =J14*'Assumptions'!J23/30+J15 -> 217,000 | K16: =K14*'Assumptions'!K23/31+K15 -> 244,548 | L16: =SUM($I$56:$I$63) -> 254,710 | M16: =M14*'Assumptions'!M23/30+M15 -> 358,354 | N16: =N14*'Assumptions'!N23/31+N15 -> 316,846 | O16: =O14*'Assumptions'!O23/30+O15 -> 332,295 | P16: =P14*'Assumptions'!P23/31+P15 -> 326,088
C17: Supplier cash payments | E17: =-(E14+'Actual inputs'!$E$59-E16) -> (67,503) | F17: =-(F14+E16-F16) -> (68,997) | G17: =-(G14+F16-G16) -> (95,498) | H17: =-(H14+G16-H16) -> (119,952) | I17: =-(I14+H16-I16) -> (174,055) | J17: =-(J14+I16-J16) -> (195,145) | K17: =-(K14+J16-K16) -> (225,152) | L17: =-(L14+K16-L16) -> (253,039) | M17: =-(M14+L16-M16) -> (170,655) | N17: =-(N14+M16-N16) -> (318,908) | O17: =-(O14+N16-O16) -> (268,452) | P17: =-(P14+O16-P16) -> (293,156)
C19: Closing contract assets / net unbilled work | E19: ='Projects'!E174 -> 16,481 | F19: ='Projects'!F174 -> 34,667 | G19: ='Projects'!G174 -> 62,278 | H19: ='Projects'!H174 -> 99,610 | I19: ='Projects'!I174 -> 144,833 | J19: ='Projects'!J174 -> 210,994 | K19: ='Projects'!K174 -> 269,447 | L19: ='Projects'!L174 -> 330,495 | M19: ='Projects'!M174 -> 358,156 | N19: ='Projects'!N174 -> 332,800 | O19: ='Projects'!O174 -> 306,797 | P19: ='Projects'!P174 -> 0
C20: Closing retention receivables | E20: ='Projects'!E178 -> 5,515 | F20: ='Projects'!F178 -> 11,600 | G20: ='Projects'!G178 -> 20,839 | H20: ='Projects'!H178 -> 33,331 | I20: ='Projects'!I178 -> 48,463 | J20: ='Projects'!J178 -> 65,022 | K20: ='Projects'!K178 -> 84,581 | L20: ='Projects'!L178 -> 105,009 | M20: ='Projects'!M178 -> 131,258 | N20: ='Projects'!N178 -> 157,881 | O20: ='Projects'!O178 -> 185,185 | P20: ='Projects'!P178 -> 226,900
C21: Closing customer advances | E21: ='Projects'!E175 -> 0 | F21: ='Projects'!F175 -> 0 | G21: ='Projects'!G175 -> 0 | H21: ='Projects'!H175 -> 0 | I21: ='Projects'!I175 -> 0 | J21: ='Projects'!J175 -> 0 | K21: ='Projects'!K175 -> 0 | L21: ='Projects'!L175 -> 0 | M21: ='Projects'!M175 -> 0 | N21: ='Projects'!N175 -> 0 | O21: ='Projects'!O175 -> 0 | P21: ='Projects'!P175 -> 0
C23: Direct and administration payroll paid | E23: ='P&L'!E9+'P&L'!E17 -> (54,900) | F23: ='P&L'!F9+'P&L'!F17 -> (57,600) | G23: ='P&L'!G9+'P&L'!G17 -> (69,550) | H23: ='P&L'!H9+'P&L'!H17 -> (81,450) | I23: ='P&L'!I9+'P&L'!I17 -> (92,850) | J23: ='P&L'!J9+'P&L'!J17 -> (98,000) | K23: ='P&L'!K9+'P&L'!K17 -> (112,800) | L23: ='P&L'!L9+'P&L'!L17 -> (117,800) | M23: ='P&L'!M9+'P&L'!M17 -> (123,200) | N23: ='P&L'!N9+'P&L'!N17 -> (125,600) | O23: ='P&L'!O9+'P&L'!O17 -> (130,100) | P23: ='P&L'!P9+'P&L'!P17 -> (132,050)
C24: Operating overhead cash paid | E24: ='P&L'!E18+'P&L'!E19 -> (16,000) | F24: ='P&L'!F18+'P&L'!F19 -> (16,000) | G24: ='P&L'!G18+'P&L'!G19 -> (16,000) | H24: ='P&L'!H18+'P&L'!H19 -> (16,000) | I24: ='P&L'!I18+'P&L'!I19 -> (16,000) | J24: ='P&L'!J18+'P&L'!J19 -> (16,000) | K24: ='P&L'!K18+'P&L'!K19 -> (16,000) | L24: ='P&L'!L18+'P&L'!L19 -> (16,000) | M24: ='P&L'!M18+'P&L'!M19 -> (17,000) | N24: ='P&L'!N18+'P&L'!N19 -> (17,000) | O24: ='P&L'!O18+'P&L'!O19 -> (17,000) | P24: ='P&L'!P18+'P&L'!P19 -> (17,000)
C25: Current tax paid | E25: =-'Assumptions'!E29 -> 0 | F25: =-'Assumptions'!F29 -> 0 | G25: =-'Assumptions'!G29 -> (9,000) | H25: =-'Assumptions'!H29 -> 0 | I25: =-'Assumptions'!I29 -> 0 | J25: =-'Assumptions'!J29 -> (12,000) | K25: =-'Assumptions'!K29 -> 0 | L25: =-'Assumptions'!L29 -> 0 | M25: =-'Assumptions'!M29 -> (18,000) | N25: =-'Assumptions'!N29 -> 0 | O25: =-'Assumptions'!O29 -> 0 | P25: =-'Assumptions'!P29 -> (16,000)
C26: Interest paid | E26: ='P&L'!E25 -> (1,238) | F26: ='P&L'!F25 -> (1,208) | G26: ='P&L'!G25 -> (1,178) | H26: ='P&L'!H25 -> (1,148) | I26: ='P&L'!I25 -> (1,118) | J26: ='P&L'!J25 -> (1,089) | K26: ='P&L'!K25 -> (1,059) | L26: ='P&L'!L25 -> (1,029) | M26: ='P&L'!M25 -> (999) | N26: ='P&L'!N25 -> (969) | O26: ='P&L'!O25 -> (940) | P26: ='P&L'!P25 -> (910)
C27: Capital expenditure paid | E27: =-'Assumptions'!E26 -> (6,000) | F27: =-'Assumptions'!F26 -> (4,000) | G27: =-'Assumptions'!G26 -> (8,000) | H27: =-'Assumptions'!H26 -> (6,000) | I27: =-'Assumptions'!I26 -> (9,000) | J27: =-'Assumptions'!J26 -> (5,000) | K27: =-'Assumptions'!K26 -> (8,000) | L27: =-'Assumptions'!L26 -> (6,000) | M27: =-'Assumptions'!M26 -> (42,000) | N27: =-'Assumptions'!N26 -> (9,000) | O27: =-'Assumptions'!O26 -> (12,000) | P27: =-'Assumptions'!P26 -> (8,000)
C28: Principal repaid | E28: =-'Assets debt'!E14 -> (6,500) | F28: =-'Assets debt'!F14 -> (6,500) | G28: =-'Assets debt'!G14 -> (6,500) | H28: =-'Assets debt'!H14 -> (6,500) | I28: =-'Assets debt'!I14 -> (6,500) | J28: =-'Assets debt'!J14 -> (6,500) | K28: =-'Assets debt'!K14 -> (6,500) | L28: =-'Assets debt'!L14 -> (6,500) | M28: =-'Assets debt'!M14 -> (6,500) | N28: =-'Assets debt'!N14 -> (6,500) | O28: =-'Assets debt'!O14 -> (6,500) | P28: =-'Assets debt'!P14 -> (6,500)
C29: Direct cash net change | E29: =SUM(E12,E17,E23:E28) -> (152,141) | F29: =SUM(F12,F17,F23:F28) -> (99,073) | G29: =SUM(G12,G17,G23:G28) -> (91,521) | H29: =SUM(H12,H17,H23:H28) -> (83,660) | I29: =SUM(I12,I17,I23:I28) -> (66,527) | J29: =SUM(J12,J17,J23:J28) -> (67,622) | K29: =SUM(K12,K17,K23:K28) -> (57,922) | L29: =SUM(L12,L17,L23:L28) -> (33,525) | M29: =SUM(M12,M17,M23:M28) -> 47,326 | N29: =SUM(N12,N17,N23:N28) -> 14,284 | O29: =SUM(O12,O17,O23:O28) -> 65,982 | P29: =SUM(P12,P17,P23:P28) -> 29,342
C39: Open trade receivables at 31 August
C41: Invoice | D41: Customer | E41: Issued | F41: Due | G41: Outstanding | H41: Planned receipt | I41: Case receipt date | J41: Days overdue | K41: Ageing | L41: Receipt amount
C42: AR-01 | D42: Fictional customer 01 | E42: 2026-05-20 | F42: 2026-06-19 | G42: 60,096 | H42: 2026-09-04 | I42: =H42+'Assumptions'!M32 -> 2026-09-04 | J42: =MAX(0,46265-F42) -> 73 | K42: =IF(J42=0,"Current",IF(J42<=30,"1–30",IF(J42<=60,"31–60",IF(J42<=90,"61–90","90+")))) -> 61–90 | L42: =G42 -> 60,096
C43: AR-02 | D43: Fictional customer 02 | E43: 2026-06-18 | F43: 2026-07-18 | G43: 70,112 | H43: 2026-09-08 | I43: =H43+'Assumptions'!M32 -> 2026-09-08 | J43: =MAX(0,46265-F43) -> 44 | K43: =IF(J43=0,"Current",IF(J43<=30,"1–30",IF(J43<=60,"31–60",IF(J43<=90,"61–90","90+")))) -> 31–60 | L43: =G43 -> 70,112
C44: AR-03 | D44: Fictional customer 03 | E44: 2026-07-06 | F44: 2026-08-05 | G44: 45,072 | H44: 2026-09-11 | I44: =H44+'Assumptions'!M32 -> 2026-09-11 | J44: =MAX(0,46265-F44) -> 26 | K44: =IF(J44=0,"Current",IF(J44<=30,"1–30",IF(J44<=60,"31–60",IF(J44<=90,"61–90","90+")))) -> 1–30 | L44: =G44 -> 45,072
C45: AR-04 | D45: Fictional customer 04 | E45: 2026-07-20 | F45: 2026-08-19 | G45: 80,128 | H45: 2026-09-15 | I45: =H45+'Assumptions'!M32 -> 2026-09-15 | J45: =MAX(0,46265-F45) -> 12 | K45: =IF(J45=0,"Current",IF(J45<=30,"1–30",IF(J45<=60,"31–60",IF(J45<=90,"61–90","90+")))) -> 1–30 | L45: =G45 -> 80,128
C46: AR-05 | D46: Fictional customer 05 | E46: 2026-08-02 | F46: 2026-09-01 | G46: 50,080 | H46: 2026-09-18 | I46: =H46+'Assumptions'!M32 -> 2026-09-18 | J46: =MAX(0,46265-F46) -> 0 | K46: =IF(J46=0,"Current",IF(J46<=30,"1–30",IF(J46<=60,"31–60",IF(J46<=90,"61–90","90+")))) -> Current | L46: =G46 -> 50,080
C47: AR-06 | D47: Fictional customer 06 | E47: 2026-08-10 | F47: 2026-09-09 | G47: 65,104 | H47: 2026-09-22 | I47: =H47+'Assumptions'!M32 -> 2026-09-22 | J47: =MAX(0,46265-F47) -> 0 | K47: =IF(J47=0,"Current",IF(J47<=30,"1–30",IF(J47<=60,"31–60",IF(J47<=90,"61–90","90+")))) -> Current | L47: =G47 -> 65,104
C48: AR-07 | D48: Fictional customer 07 | E48: 2026-08-18 | F48: 2026-09-17 | G48: 55,088 | H48: 2026-09-25 | I48: =H48+'Assumptions'!M32 -> 2026-09-25 | J48: =MAX(0,46265-F48) -> 0 | K48: =IF(J48=0,"Current",IF(J48<=30,"1–30",IF(J48<=60,"31–60",IF(J48<=90,"61–90","90+")))) -> Current | L48: =G48 -> 55,088
C49: AR-08 | D49: Fictional customer 08 | E49: 2026-08-25 | F49: 2026-09-24 | G49: 75,120 | H49: 2026-10-02 | I49: =H49+'Assumptions'!M32 -> 2026-10-02 | J49: =MAX(0,46265-F49) -> 0 | K49: =IF(J49=0,"Current",IF(J49<=30,"1–30",IF(J49<=60,"31–60",IF(J49<=90,"61–90","90+")))) -> Current | L49: =G49 -> 75,120
C53: Supplier payments and prerequisites
C55: Invoice | D55: Supplier | E55: Issued | F55: Due | G55: Original total | H55: Paid to date | I55: Outstanding | J55: Planned date | K55: Approval | L55: Review | M55: Hold | N55: Payment date | O55: Eligible amount | P55: Days overdue
C56: AP-01 | D56: Fictional supplier 01 | E56: 2026-05-20 | F56: 2026-06-19 | G56: 35,512 | H56: 2,400 | I56: =G56-H56 -> 33,112 | J56: 2026-09-04 | K56: Approved | L56: Complete | M56: No | N56: =IF(AND(K56="Approved",L56="Complete",M56="No"),J56,0) -> 2026-09-04 | O56: =IF(N56>0,I56,0) -> 33,112 | P56: =MAX(0,46265-F56) -> 73
C57: AP-02 | D57: Fictional supplier 02 | E57: 2026-06-18 | F57: 2026-07-18 | G57: 22,924 | H57: 0 | I57: =G57-H57 -> 22,924 | J57: 2026-09-08 | K57: Pending | L57: Complete | M57: Yes | N57: =IF(AND(K57="Approved",L57="Complete",M57="No"),J57,0) -> 00:00:00 | O57: =IF(N57>0,I57,0) -> 0 | P57: =MAX(0,46265-F57) -> 44
C58: AP-03 | D58: Fictional supplier 03 | E58: 2026-07-06 | F58: 2026-08-05 | G58: 39,406 | H58: 1,200 | I58: =G58-H58 -> 38,206 | J58: 2026-09-11 | K58: Approved | L58: Complete | M58: No | N58: =IF(AND(K58="Approved",L58="Complete",M58="No"),J58,0) -> 2026-09-11 | O58: =IF(N58>0,I58,0) -> 38,206 | P58: =MAX(0,46265-F58) -> 26
C59: AP-04 | D59: Fictional supplier 04 | E59: 2026-07-20 | F59: 2026-08-19 | G59: 25,471 | H59: 0 | I59: =G59-H59 -> 25,471 | J59: 2026-09-15 | K59: Approved | L59: Pending | M59: No | N59: =IF(AND(K59="Approved",L59="Complete",M59="No"),J59,0) -> 00:00:00 | O59: =IF(N59>0,I59,0) -> 0 | P59: =MAX(0,46265-F59) -> 12
C60: AP-05 | D60: Fictional supplier 05 | E60: 2026-08-02 | F60: 2026-09-01 | G60: 43,954 | H60: 3,200 | I60: =G60-H60 -> 40,754 | J60: 2026-09-18 | K60: Approved | L60: Complete | M60: No | N60: =IF(AND(K60="Approved",L60="Complete",M60="No"),J60,0) -> 2026-09-18 | O60: =IF(N60>0,I60,0) -> 40,754 | P60: =MAX(0,46265-F60) -> 0
C61: AP-06 | D61: Fictional supplier 06 | E61: 2026-08-10 | F61: 2026-09-09 | G61: 30,565 | H61: 0 | I61: =G61-H61 -> 30,565 | J61: 2026-09-22 | K61: Approved | L61: Complete | M61: No | N61: =IF(AND(K61="Approved",L61="Complete",M61="No"),J61,0) -> 2026-09-22 | O61: =IF(N61>0,I61,0) -> 30,565 | P61: =MAX(0,46265-F61) -> 0
C62: AP-07 | D62: Fictional supplier 07 | E62: 2026-08-18 | F62: 2026-09-17 | G62: 28,018 | H62: 0 | I62: =G62-H62 -> 28,018 | J62: 2026-09-25 | K62: Approved | L62: Complete | M62: No | N62: =IF(AND(K62="Approved",L62="Complete",M62="No"),J62,0) -> 2026-09-25 | O62: =IF(N62>0,I62,0) -> 28,018 | P62: =MAX(0,46265-F62) -> 0
C63: AP-08 | D63: Fictional supplier 08 | E63: 2026-08-25 | F63: 2026-09-24 | G63: 37,459 | H63: 1,800 | I63: =G63-H63 -> 35,659 | J63: 2026-10-02 | K63: Approved | L63: Complete | M63: No | N63: =IF(AND(K63="Approved",L63="Complete",M63="No"),J63,0) -> 2026-10-02 | O63: =IF(N63>0,I63,0) -> 35,659 | P63: =MAX(0,46265-F63) -> 0

Sheet Assets debt
C2: Assets debt
C4: Selected case | E4: ='Assumptions'!$G$4 -> Base | H4: EUR. Entirely fictional.
E6: Actual | F6: Actual | G6: Actual | H6: Actual | I6: Actual | J6: Actual | K6: Actual | L6: Actual | M6: Forecast | N6: Forecast | O6: Forecast | P6: Forecast
E7: 2026-01-01 | F7: 2026-02-01 | G7: 2026-03-01 | H7: 2026-04-01 | I7: 2026-05-01 | J7: 2026-06-01 | K7: 2026-07-01 | L7: 2026-08-01 | M7: 2026-09-01 | N7: 2026-10-01 | O7: 2026-11-01 | P7: 2026-12-01
C8: Fixed assets at cost | E8: ='Actual inputs'!$E$66+'Assumptions'!E26 -> 226,000 | F8: =E8+'Assumptions'!F26 -> 230,000 | G8: =F8+'Assumptions'!G26 -> 238,000 | H8: =G8+'Assumptions'!H26 -> 244,000 | I8: =H8+'Assumptions'!I26 -> 253,000 | J8: =I8+'Assumptions'!J26 -> 258,000 | K8: =J8+'Assumptions'!K26 -> 266,000 | L8: =K8+'Assumptions'!L26 -> 272,000 | M8: =L8+'Assumptions'!M26 -> 314,000 | N8: =M8+'Assumptions'!N26 -> 323,000 | O8: =N8+'Assumptions'!O26 -> 335,000 | P8: =O8+'Assumptions'!P26 -> 343,000
C9: Depreciation expense | E9: =-('Actual inputs'!$E$66-'Actual inputs'!$E$67)/'Assumptions'!$E$151-(E8-'Actual inputs'!$E$66)/'Assumptions'!$E$150 -> (3,625) | F9: =-('Actual inputs'!$E$66-'Actual inputs'!$E$67)/'Assumptions'!$E$151-(F8-'Actual inputs'!$E$66)/'Assumptions'!$E$150 -> (3,708) | G9: =-('Actual inputs'!$E$66-'Actual inputs'!$E$67)/'Assumptions'!$E$151-(G8-'Actual inputs'!$E$66)/'Assumptions'!$E$150 -> (3,875) | H9: =-('Actual inputs'!$E$66-'Actual inputs'!$E$67)/'Assumptions'!$E$151-(H8-'Actual inputs'!$E$66)/'Assumptions'!$E$150 -> (4,000) | I9: =-('Actual inputs'!$E$66-'Actual inputs'!$E$67)/'Assumptions'!$E$151-(I8-'Actual inputs'!$E$66)/'Assumptions'!$E$150 -> (4,188) | J9: =-('Actual inputs'!$E$66-'Actual inputs'!$E$67)/'Assumptions'!$E$151-(J8-'Actual inputs'!$E$66)/'Assumptions'!$E$150 -> (4,292) | K9: =-('Actual inputs'!$E$66-'Actual inputs'!$E$67)/'Assumptions'!$E$151-(K8-'Actual inputs'!$E$66)/'Assumptions'!$E$150 -> (4,458) | L9: =-('Actual inputs'!$E$66-'Actual inputs'!$E$67)/'Assumptions'!$E$151-(L8-'Actual inputs'!$E$66)/'Assumptions'!$E$150 -> (4,583) | M9: =-('Actual inputs'!$E$66-'Actual inputs'!$E$67)/'Assumptions'!$E$151-(M8-'Actual inputs'!$E$66)/'Assumptions'!$E$150 -> (5,458) | N9: =-('Actual inputs'!$E$66-'Actual inputs'!$E$67)/'Assumptions'!$E$151-(N8-'Actual inputs'!$E$66)/'Assumptions'!$E$150 -> (5,646) | O9: =-('Actual inputs'!$E$66-'Actual inputs'!$E$67)/'Assumptions'!$E$151-(O8-'Actual inputs'!$E$66)/'Assumptions'!$E$150 -> (5,896) | P9: =-('Actual inputs'!$E$66-'Actual inputs'!$E$67)/'Assumptions'!$E$151-(P8-'Actual inputs'!$E$66)/'Assumptions'!$E$150 -> (6,063)
C10: Accumulated depreciation | E10: ='Actual inputs'!$E$67-E9 -> 69,625 | F10: =E10-F9 -> 73,333 | G10: =F10-G9 -> 77,208 | H10: =G10-H9 -> 81,208 | I10: =H10-I9 -> 85,396 | J10: =I10-J9 -> 89,688 | K10: =J10-K9 -> 94,146 | L10: =K10-L9 -> 98,729 | M10: =L10-M9 -> 104,188 | N10: =M10-N9 -> 109,833 | O10: =N10-O9 -> 115,729 | P10: =O10-P9 -> 121,792
C11: Net fixed assets | E11: =E8-E10 -> 156,375 | F11: =F8-F10 -> 156,667 | G11: =G8-G10 -> 160,792 | H11: =H8-H10 -> 162,792 | I11: =I8-I10 -> 167,604 | J11: =J8-J10 -> 168,313 | K11: =K8-K10 -> 171,854 | L11: =L8-L10 -> 173,271 | M11: =M8-M10 -> 209,813 | N11: =N8-N10 -> 213,167 | O11: =O8-O10 -> 219,271 | P11: =P8-P10 -> 221,208
C13: Opening debt | E13: ='Actual inputs'!$E$68 -> 270,000 | F13: =E15 -> 263,500 | G13: =F15 -> 257,000 | H13: =G15 -> 250,500 | I13: =H15 -> 244,000 | J13: =I15 -> 237,500 | K13: =J15 -> 231,000 | L13: =K15 -> 224,500 | M13: =L15 -> 218,000 | N13: =M15 -> 211,500 | O13: =N15 -> 205,000 | P13: =O15 -> 198,500
C14: Principal repayment | E14: =MIN(E13,'Assumptions'!$E$149) -> 6,500 | F14: =MIN(F13,'Assumptions'!$E$149) -> 6,500 | G14: =MIN(G13,'Assumptions'!$E$149) -> 6,500 | H14: =MIN(H13,'Assumptions'!$E$149) -> 6,500 | I14: =MIN(I13,'Assumptions'!$E$149) -> 6,500 | J14: =MIN(J13,'Assumptions'!$E$149) -> 6,500 | K14: =MIN(K13,'Assumptions'!$E$149) -> 6,500 | L14: =MIN(L13,'Assumptions'!$E$149) -> 6,500 | M14: =MIN(M13,'Assumptions'!$E$149) -> 6,500 | N14: =MIN(N13,'Assumptions'!$E$149) -> 6,500 | O14: =MIN(O13,'Assumptions'!$E$149) -> 6,500 | P14: =MIN(P13,'Assumptions'!$E$149) -> 6,500
C15: Closing debt | E15: =E13-E14 -> 263,500 | F15: =F13-F14 -> 257,000 | G15: =G13-G14 -> 250,500 | H15: =H13-H14 -> 244,000 | I15: =I13-I14 -> 237,500 | J15: =J13-J14 -> 231,000 | K15: =K13-K14 -> 224,500 | L15: =L13-L14 -> 218,000 | M15: =M13-M14 -> 211,500 | N15: =N13-N14 -> 205,000 | O15: =O13-O14 -> 198,500 | P15: =P13-P14 -> 192,000
C16: Interest expense | E16: =-E13*'Assumptions'!$E$147/12 -> (1,238) | F16: =-F13*'Assumptions'!$E$147/12 -> (1,208) | G16: =-G13*'Assumptions'!$E$147/12 -> (1,178) | H16: =-H13*'Assumptions'!$E$147/12 -> (1,148) | I16: =-I13*'Assumptions'!$E$147/12 -> (1,118) | J16: =-J13*'Assumptions'!$E$147/12 -> (1,089) | K16: =-K13*'Assumptions'!$E$147/12 -> (1,059) | L16: =-L13*'Assumptions'!$E$147/12 -> (1,029) | M16: =-M13*'Assumptions'!$E$147/12 -> (999) | N16: =-N13*'Assumptions'!$E$147/12 -> (969) | O16: =-O13*'Assumptions'!$E$147/12 -> (940) | P16: =-P13*'Assumptions'!$E$147/12 -> (910)
C18: Current tax expense | E18: ='P&L'!E27 -> 0 | F18: ='P&L'!F27 -> 0 | G18: ='P&L'!G27 -> 0 | H18: ='P&L'!H27 -> (3,405) | I18: ='P&L'!I27 -> (6,412) | J18: ='P&L'!J27 -> (12,190) | K18: ='P&L'!K27 -> (12,525) | L18: ='P&L'!L27 -> (13,397) | M18: ='P&L'!M27 -> (26,336) | N18: ='P&L'!N27 -> (16,100) | O18: ='P&L'!O27 -> (16,446) | P18: ='P&L'!P27 -> (16,908)
C19: Current tax cash paid | E19: ='Assumptions'!E29 -> 0 | F19: ='Assumptions'!F29 -> 0 | G19: ='Assumptions'!G29 -> 9,000 | H19: ='Assumptions'!H29 -> 0 | I19: ='Assumptions'!I29 -> 0 | J19: ='Assumptions'!J29 -> 12,000 | K19: ='Assumptions'!K29 -> 0 | L19: ='Assumptions'!L29 -> 0 | M19: ='Assumptions'!M29 -> 18,000 | N19: ='Assumptions'!N29 -> 0 | O19: ='Assumptions'!O29 -> 0 | P19: ='Assumptions'!P29 -> 16,000
C20: Net tax liability / (prepayment) | E20: ='Actual inputs'!$E$64-E18-E19 -> 10,000 | F20: =E20-F18-F19 -> 10,000 | G20: =F20-G18-G19 -> 1,000 | H20: =G20-H18-H19 -> 4,405 | I20: =H20-I18-I19 -> 10,817 | J20: =I20-J18-J19 -> 11,007 | K20: =J20-K18-K19 -> 23,532 | L20: =K20-L18-L19 -> 36,929 | M20: =L20-M18-M19 -> 45,266 | N20: =M20-N18-N19 -> 61,365 | O20: =N20-O18-O19 -> 77,812 | P20: =O20-P18-P19 -> 78,719
C21: Tax payable | E21: =MAX(0,E20) -> 10,000 | F21: =MAX(0,F20) -> 10,000 | G21: =MAX(0,G20) -> 1,000 | H21: =MAX(0,H20) -> 4,405 | I21: =MAX(0,I20) -> 10,817 | J21: =MAX(0,J20) -> 11,007 | K21: =MAX(0,K20) -> 23,532 | L21: =MAX(0,L20) -> 36,929 | M21: =MAX(0,M20) -> 45,266 | N21: =MAX(0,N20) -> 61,365 | O21: =MAX(0,O20) -> 77,812 | P21: =MAX(0,P20) -> 78,719
C22: Tax prepayment | E22: =MAX(0,-E20) -> 0 | F22: =MAX(0,-F20) -> 0 | G22: =MAX(0,-G20) -> 0 | H22: =MAX(0,-H20) -> 0 | I22: =MAX(0,-I20) -> 0 | J22: =MAX(0,-J20) -> 0 | K22: =MAX(0,-K20) -> 0 | L22: =MAX(0,-L20) -> 0 | M22: =MAX(0,-M20) -> 0 | N22: =MAX(0,-N20) -> 0 | O22: =MAX(0,-O20) -> 0 | P22: =MAX(0,-P20) -> 0

Sheet Budget
C2: Budget
C4: Selected case | E4: ='Assumptions'!$G$4 -> Base | H4: EUR. Entirely fictional.
E6: Original budget | F6: Original budget | G6: Original budget | H6: Original budget | I6: Original budget | J6: Original budget | K6: Original budget | L6: Original budget | M6: Original budget | N6: Original budget | O6: Original budget | P6: Original budget
E7: 2026-01-01 | F7: 2026-02-01 | G7: 2026-03-01 | H7: 2026-04-01 | I7: 2026-05-01 | J7: 2026-06-01 | K7: 2026-07-01 | L7: 2026-08-01 | M7: 2026-09-01 | N7: 2026-10-01 | O7: 2026-11-01 | P7: 2026-12-01
C8: Revenue | E8: €126,778 | F8: €139,889 | G8: €212,393 | H8: €287,175 | I8: €347,866 | J8: €375,223 | K8: €443,271 | L8: €462,968 | M8: €482,807 | N8: €489,729 | O8: €502,312 | P8: €509,589
C9: Direct payroll | E9: (21,900) | F9: (24,100) | G9: (35,550) | H9: (46,950) | I9: (57,850) | J9: (62,500) | K9: (76,800) | L9: (81,300) | M9: (85,700) | N9: (87,600) | O9: (91,100) | P9: (93,050)
C10: Materials | E10: (44,100) | F10: (48,900) | G10: (72,000) | H10: (99,000) | I10: (117,800) | J10: (126,600) | K10: (146,200) | L10: (151,700) | M10: (157,300) | N10: (158,700) | O10: (161,900) | P10: (163,400)
C11: Subcontractors | E11: (29,000) | F11: (32,000) | G11: (47,450) | H11: (64,050) | I11: (79,350) | J11: (85,900) | K11: (102,000) | L11: (107,000) | M11: (112,000) | N11: (113,700) | O11: (117,000) | P11: (118,550)
C12: Direct systems and software | E12: (4,500) | F12: (4,500) | G12: (4,500) | H12: (4,500) | I12: (4,500) | J12: (4,500) | K12: (4,500) | L12: (4,500) | M12: (5,000) | N12: (5,000) | O12: (5,000) | P12: (5,000)
C13: Unbilled recoverability charge / (release) | E13: 0 | F13: 0 | G13: 0 | H13: 0 | I13: 0 | J13: 0 | K13: 0 | L13: 0 | M13: 0 | N13: 0 | O13: 0 | P13: 0
C14: Direct costs | E14: (€99,500) | F14: (€109,500) | G14: (€159,500) | H14: (€214,500) | I14: (€259,500) | J14: (€279,500) | K14: (€329,500) | L14: (€344,500) | M14: (€360,000) | N14: (€365,000) | O14: (€375,000) | P14: (€380,000)
C15: Gross profit | E15: €27,278 | F15: €30,389 | G15: €52,893 | H15: €72,675 | I15: €88,366 | J15: €95,723 | K15: €113,771 | L15: €118,468 | M15: €122,807 | N15: €124,729 | O15: €127,312 | P15: €129,589
C16: Gross margin | E16: 21.5% | F16: 21.7% | G16: 24.9% | H16: 25.3% | I16: 25.4% | J16: 25.5% | K16: 25.7% | L16: 25.6% | M16: 25.4% | N16: 25.5% | O16: 25.3% | P16: 25.4%
C17: Management and administration payroll | E17: (31,350) | F17: (31,825) | G17: (32,300) | H17: (32,775) | I17: (33,250) | J17: (33,725) | K17: (34,200) | L17: (34,675) | M17: (35,625) | N17: (36,100) | O17: (37,050) | P17: (37,050)
C18: Business development | E18: (6,500) | F18: (6,500) | G18: (6,500) | H18: (6,500) | I18: (6,500) | J18: (6,500) | K18: (6,500) | L18: (6,500) | M18: (7,000) | N18: (7,000) | O18: (7,000) | P18: (7,000)
C19: Office, insurance and general costs | E19: (9,500) | F19: (9,500) | G19: (9,500) | H19: (9,500) | I19: (9,500) | J19: (9,500) | K19: (9,500) | L19: (9,500) | M19: (10,000) | N19: (10,000) | O19: (10,000) | P19: (10,000)
C20: Operating expenses | E20: (€47,350) | F20: (€47,825) | G20: (€48,300) | H20: (€48,775) | I20: (€49,250) | J20: (€49,725) | K20: (€50,200) | L20: (€50,675) | M20: (€52,625) | N20: (€53,100) | O20: (€54,050) | P20: (€54,050)
C21: EBITDA | E21: (€20,072) | F21: (€17,436) | G21: €4,593 | H21: €23,900 | I21: €39,116 | J21: €45,998 | K21: €63,571 | L21: €67,793 | M21: €70,182 | N21: €71,629 | O21: €73,262 | P21: €75,539
C22: EBITDA margin | E22: (15.8%) | F22: (12.5%) | G22: 2.2% | H22: 8.3% | I22: 11.2% | J22: 12.3% | K22: 14.3% | L22: 14.6% | M22: 14.5% | N22: 14.6% | O22: 14.6% | P22: 14.8%
C23: Depreciation | E23: (3,625) | F23: (3,708) | G23: (3,875) | H23: (4,000) | I23: (4,188) | J23: (4,292) | K23: (4,458) | L23: (4,583) | M23: (5,458) | N23: (5,646) | O23: (5,896) | P23: (6,063)
C24: EBIT | E24: (€23,697) | F24: (€21,144) | G24: €718 | H24: €19,900 | I24: €34,928 | J24: €41,706 | K24: €59,113 | L24: €63,210 | M24: €64,723 | N24: €65,984 | O24: €67,367 | P24: €69,477
C25: Interest | E25: (1,238) | F25: (1,208) | G25: (1,178) | H25: (1,148) | I25: (1,118) | J25: (1,089) | K25: (1,059) | L25: (1,029) | M25: (999) | N25: (969) | O25: (940) | P25: (910)
C26: Profit before tax | E26: (€24,935) | F26: (€22,352) | G26: (€460) | H26: €18,752 | I26: €33,810 | J26: €40,618 | K26: €58,054 | L26: €62,181 | M26: €63,724 | N26: €65,014 | O26: €66,427 | P26: €68,567
C27: Illustrative current tax | E27: 0 | F27: 0 | G27: 0 | H27: (3,750) | I27: (6,762) | J27: (8,124) | K27: (11,611) | L27: (12,436) | M27: (12,745) | N27: (13,003) | O27: (13,285) | P27: (13,713)
C28: Net profit | E28: (€24,935) | F28: (€22,352) | G28: (€460) | H28: €15,001 | I28: €27,048 | J28: €32,494 | K28: €46,443 | L28: €49,745 | M28: €50,979 | N28: €52,011 | O28: €53,142 | P28: €54,854
C32: Fixed original plan. It does not change with the forecast selector.
C34: Assumptions for the original plan are stated in the accompanying guide.

Sheet Actual inputs
C2: Actual inputs
C4: Selected case | E4: ='Assumptions'!$G$4 -> Base | H4: EUR. Entirely fictional.
E6: Actual | F6: Actual | G6: Actual | H6: Actual | I6: Actual | J6: Actual | K6: Actual | L6: Actual | M6: Forecast | N6: Forecast | O6: Forecast | P6: Forecast
E7: 2026-01-01 | F7: 2026-02-01 | G7: 2026-03-01 | H7: 2026-04-01 | I7: 2026-05-01 | J7: 2026-06-01 | K7: 2026-07-01 | L7: 2026-08-01 | M7: 2026-09-01 | N7: 2026-10-01 | O7: 2026-11-01 | P7: 2026-12-01
C8: Management and administration payroll | E8: 33,000 | F8: 33,500 | G8: 34,000 | H8: 34,500 | I8: 35,000 | J8: 35,500 | K8: 36,000 | L8: 36,500
C9: Business development | E9: 6,500 | F9: 6,500 | G9: 6,500 | H9: 6,500 | I9: 6,500 | J9: 6,500 | K9: 6,500 | L9: 6,500
C10: Office, insurance and general costs | E10: 9,500 | F10: 9,500 | G10: 9,500 | H10: 9,500 | I10: 9,500 | J10: 9,500 | K10: 9,500 | L10: 9,500
C11: Direct systems and software | E11: 4,500 | F11: 4,500 | G11: 4,500 | H11: 4,500 | I11: 4,500 | J11: 4,500 | K11: 4,500 | L11: 4,500
C12: Target closing trade receivable days | E12: 40 | F12: 40 | G12: 40 | H12: 40 | I12: 40 | J12: 40 | K12: 40 | L12: 40
C13: New supplier payable days | E13: 30 | F13: 30 | G13: 30 | H13: 30 | I13: 30 | J13: 30 | K13: 30 | L13: 30
C14: Cash capital expenditure | E14: 6,000 | F14: 4,000 | G14: 8,000 | H14: 6,000 | I14: 9,000 | J14: 5,000 | K14: 8,000 | L14: 6,000
C15: Illustrative tax payment | E15: 0 | F15: 0 | G15: 9,000 | H15: 0 | I15: 0 | J15: 12,000 | K15: 0 | L15: 0
C16: Opening invoice collection delay (days) | E16: 0 | F16: 0 | G16: 0 | H16: 0 | I16: 0 | J16: 0 | K16: 0 | L16: 0
C17: CW-01 Cost incurred | E17: 25,000 | F17: 25,000 | G17: 25,000 | H17: 25,000 | I17: 25,000 | J17: 25,000 | K17: 25,000 | L17: 25,000
C18: CW-01 Estimated total cost | E18: 300,000 | F18: 300,000 | G18: 300,000 | H18: 300,000 | I18: 300,000 | J18: 300,000 | K18: 300,000 | L18: 300,000
C19: CW-01 Approved cumulative variations | E19: 0 | F19: 0 | G19: 0 | H19: 0 | I19: 0 | J19: 5,600 | K19: 5,600 | L19: 5,600
C20: CW-01 Gross progress billing | E20: 30,450 | F20: 30,450 | G20: 30,450 | H20: 30,450 | I20: 30,450 | J20: 30,856 | K20: 30,856 | L20: 30,856
C21: CW-01 Retention released into receivables | E21: 0 | F21: 0 | G21: 0 | H21: 0 | I21: 0 | J21: 0 | K21: 0 | L21: 0
C22: CW-01 Committed share of remaining cost | E22: 72.0% | F22: 72.0% | G22: 72.0% | H22: 72.0% | I22: 72.0% | J22: 72.0% | K22: 72.0% | L22: 72.0%
C23: CW-02 Cost incurred | E23: 0 | F23: 0 | G23: 45,000 | H23: 55,000 | I23: 60,000 | J23: 65,000 | K23: 70,000 | L23: 65,000
C24: CW-02 Estimated total cost | E24: 580,000 | F24: 580,000 | G24: 580,000 | H24: 580,000 | I24: 580,000 | J24: 580,000 | K24: 580,000 | L24: 580,000
C25: CW-02 Approved cumulative variations | E25: 0 | F25: 0 | G25: 0 | H25: 0 | I25: 0 | J25: 12,000 | K25: 12,000 | L25: 12,000
C26: CW-02 Gross progress billing | E26: 0 | F26: 0 | G26: 57,375 | H26: 70,125 | I26: 76,500 | J26: 84,045 | K26: 90,510 | L26: 84,045
C27: CW-02 Retention released into receivables | E27: 0 | F27: 0 | G27: 0 | H27: 0 | I27: 0 | J27: 0 | K27: 0 | L27: 0
C28: CW-02 Committed share of remaining cost | E28: 72.0% | F28: 72.0% | G28: 72.0% | H28: 72.0% | I28: 72.0% | J28: 72.0% | K28: 72.0% | L28: 72.0%
C29: CW-03 Cost incurred | E29: 70,000 | F29: 80,000 | G29: 85,000 | H29: 90,000 | I29: 90,000 | J29: 90,000 | K29: 85,000 | L29: 80,000
C30: CW-03 Estimated total cost | E30: 900,000 | F30: 900,000 | G30: 900,000 | H30: 900,000 | I30: 900,000 | J30: 900,000 | K30: 900,000 | L30: 900,000
C31: CW-03 Approved cumulative variations | E31: 0 | F31: 0 | G31: 0 | H31: 0 | I31: 0 | J31: 19,200 | K31: 19,200 | L31: 19,200
C32: CW-03 Gross progress billing | E32: 79,847 | F32: 91,253 | G32: 96,957 | H32: 102,660 | I32: 102,660 | J32: 104,330 | K32: 98,534 | L32: 92,738
C33: CW-03 Retention released into receivables | E33: 0 | F33: 0 | G33: 0 | H33: 0 | I33: 0 | J33: 0 | K33: 0 | L33: 0
C34: CW-03 Committed share of remaining cost | E34: 72.0% | F34: 72.0% | G34: 72.0% | H34: 72.0% | I34: 72.0% | J34: 72.0% | K34: 72.0% | L34: 72.0%
C35: CW-04 Cost incurred | E35: 0 | F35: 0 | G35: 0 | H35: 0 | I35: 35,000 | J35: 45,000 | K35: 50,000 | L35: 55,000
C36: CW-04 Estimated total cost | E36: 420,000 | F36: 420,000 | G36: 420,000 | H36: 420,000 | I36: 420,000 | J36: 420,000 | K36: 420,000 | L36: 420,000
C37: CW-04 Approved cumulative variations | E37: 0 | F37: 0 | G37: 0 | H37: 0 | I37: 0 | J37: 7,200 | K37: 7,200 | L37: 7,200
C38: CW-04 Gross progress billing | E38: 0 | F38: 0 | G38: 0 | H38: 0 | I38: 40,600 | J38: 52,871 | K38: 58,746 | L38: 64,620
C39: CW-04 Retention released into receivables | E39: 0 | F39: 0 | G39: 0 | H39: 0 | I39: 0 | J39: 0 | K39: 0 | L39: 0
C40: CW-04 Committed share of remaining cost | E40: 72.0% | F40: 72.0% | G40: 72.0% | H40: 72.0% | I40: 72.0% | J40: 72.0% | K40: 72.0% | L40: 72.0%
C41: CW-05 Cost incurred | E41: 0 | F41: 0 | G41: 0 | H41: 0 | I41: 0 | J41: 0 | K41: 40,000 | L41: 55,000
C42: CW-05 Estimated total cost | E42: 460,000 | F42: 460,000 | G42: 460,000 | H42: 460,000 | I42: 460,000 | J42: 460,000 | K42: 460,000 | L42: 460,000
C43: CW-05 Approved cumulative variations | E43: 0 | F43: 0 | G43: 0 | H43: 0 | I43: 0 | J43: 8,800 | K43: 8,800 | L43: 8,800
C44: CW-05 Gross progress billing | E44: 0 | F44: 0 | G44: 0 | H44: 0 | I44: 0 | J44: 0 | K44: 47,570 | L44: 65,409
C45: CW-05 Retention released into receivables | E45: 0 | F45: 0 | G45: 0 | H45: 0 | I45: 0 | J45: 0 | K45: 0 | L45: 0
C46: CW-05 Committed share of remaining cost | E46: 72.0% | F46: 72.0% | G46: 72.0% | H46: 72.0% | I46: 72.0% | J46: 72.0% | K46: 72.0% | L46: 72.0%
C47: CW-06 Cost incurred | E47: 0 | F47: 0 | G47: 0 | H47: 40,000 | I47: 45,000 | J47: 50,000 | K47: 55,000 | L47: 60,000
C48: CW-06 Estimated total cost | E48: 560,000 | F48: 560,000 | G48: 560,000 | H48: 560,000 | I48: 560,000 | J48: 560,000 | K48: 560,000 | L48: 560,000
C49: CW-06 Approved cumulative variations | E49: 0 | F49: 0 | G49: 0 | H49: 0 | I49: 0 | J49: 10,400 | K49: 10,400 | L49: 10,400
C50: CW-06 Gross progress billing | E50: 0 | F50: 0 | G50: 0 | H50: 46,607 | I50: 52,433 | J50: 59,067 | K50: 64,973 | L50: 70,880
C51: CW-06 Retention released into receivables | E51: 0 | F51: 0 | G51: 0 | H51: 0 | I51: 0 | J51: 0 | K51: 0 | L51: 0
C52: CW-06 Committed share of remaining cost | E52: 72.0% | F52: 72.0% | G52: 72.0% | H52: 72.0% | I52: 72.0% | J52: 72.0% | K52: 72.0% | L52: 72.0%
C56: Opening balances at 31 December 2025
C57: Cash | E57: 950,000
C58: Trade receivables | E58: 0
C59: Trade payables | E59: 65,000
C60: Contract assets / unbilled work | E60: 0
C61: Retention receivables | E61: 0
C62: Customer advances | E62: 0
C63: Payroll accruals | E63: 22,000
C64: Net current tax liability | E64: 10,000
C65: Prepayments | E65: 18,000
C66: Fixed assets at cost | E66: 220,000
C67: Accumulated depreciation | E67: 66,000
C68: Debt principal | E68: 270,000
C69: Share capital | E69: 50,000
C70: Retained earnings | E70: 705,000
C73: Source: independently invented demonstration assumptions and records.

Sheet Forecast review
C2: Forecast review
C4: Selected case | E4: ='Assumptions'!$G$4 -> Base | H4: EUR. Entirely fictional.
E6: Actual | F6: Actual | G6: Actual | H6: Actual | I6: Actual | J6: Actual | K6: Actual | L6: Actual | M6: Forecast | N6: Forecast | O6: Forecast | P6: Forecast
E7: 2026-01-01 | F7: 2026-02-01 | G7: 2026-03-01 | H7: 2026-04-01 | I7: 2026-05-01 | J7: 2026-06-01 | K7: 2026-07-01 | L7: 2026-08-01 | M7: 2026-09-01 | N7: 2026-10-01 | O7: 2026-11-01 | P7: 2026-12-01
C8: Assets less liabilities and equity | E8: ='Balance sheet'!E18-'Balance sheet'!E29 -> 0.00 | F8: ='Balance sheet'!F18-'Balance sheet'!F29 -> 0.00 | G8: ='Balance sheet'!G18-'Balance sheet'!G29 -> 0.00 | H8: ='Balance sheet'!H18-'Balance sheet'!H29 -> 0.00 | I8: ='Balance sheet'!I18-'Balance sheet'!I29 -> 0.00 | J8: ='Balance sheet'!J18-'Balance sheet'!J29 -> 0.00 | K8: ='Balance sheet'!K18-'Balance sheet'!K29 -> 0.00 | L8: ='Balance sheet'!L18-'Balance sheet'!L29 -> (0.00) | M8: ='Balance sheet'!M18-'Balance sheet'!M29 -> 0.00 | N8: ='Balance sheet'!N18-'Balance sheet'!N29 -> 0.00 | O8: ='Balance sheet'!O18-'Balance sheet'!O29 -> 0.00 | P8: ='Balance sheet'!P18-'Balance sheet'!P29 -> 0.00
C9: Direct cash less indirect cash flow | E9: ='Working capital'!E29-'Cash flow'!E21 -> 0.00 | F9: ='Working capital'!F29-'Cash flow'!F21 -> (0.00) | G9: ='Working capital'!G29-'Cash flow'!G21 -> 0.00 | H9: ='Working capital'!H29-'Cash flow'!H21 -> (0.00) | I9: ='Working capital'!I29-'Cash flow'!I21 -> (0.00) | J9: ='Working capital'!J29-'Cash flow'!J21 -> 0.00 | K9: ='Working capital'!K29-'Cash flow'!K21 -> 0.00 | L9: ='Working capital'!L29-'Cash flow'!L21 -> (0.00) | M9: ='Working capital'!M29-'Cash flow'!M21 -> 0.00 | N9: ='Working capital'!N29-'Cash flow'!N21 -> 0.00 | O9: ='Working capital'!O29-'Cash flow'!O21 -> (0.00) | P9: ='Working capital'!P29-'Cash flow'!P21 -> 0.00
C10: Cash flow closing less balance sheet cash | E10: ='Cash flow'!E23-'Balance sheet'!E8 -> 0.00 | F10: ='Cash flow'!F23-'Balance sheet'!F8 -> 0.00 | G10: ='Cash flow'!G23-'Balance sheet'!G8 -> 0.00 | H10: ='Cash flow'!H23-'Balance sheet'!H8 -> 0.00 | I10: ='Cash flow'!I23-'Balance sheet'!I8 -> 0.00 | J10: ='Cash flow'!J23-'Balance sheet'!J8 -> 0.00 | K10: ='Cash flow'!K23-'Balance sheet'!K8 -> 0.00 | L10: ='Cash flow'!L23-'Balance sheet'!L8 -> 0.00 | M10: ='Cash flow'!M23-'Balance sheet'!M8 -> 0.00 | N10: ='Cash flow'!N23-'Balance sheet'!N8 -> 0.00 | O10: ='Cash flow'!O23-'Balance sheet'!O8 -> 0.00 | P10: ='Cash flow'!P23-'Balance sheet'!P8 -> 0.00
C11: Retained earnings roll-forward | E11: ='Balance sheet'!E27-'Actual inputs'!$E$70-'P&L'!E28 -> (0.00) | F11: ='Balance sheet'!F27-'Balance sheet'!E27-'P&L'!F28 -> 0.00 | G11: ='Balance sheet'!G27-'Balance sheet'!F27-'P&L'!G28 -> (0.00) | H11: ='Balance sheet'!H27-'Balance sheet'!G27-'P&L'!H28 -> 0.00 | I11: ='Balance sheet'!I27-'Balance sheet'!H27-'P&L'!I28 -> (0.00) | J11: ='Balance sheet'!J27-'Balance sheet'!I27-'P&L'!J28 -> (0.00) | K11: ='Balance sheet'!K27-'Balance sheet'!J27-'P&L'!K28 -> 0.00 | L11: ='Balance sheet'!L27-'Balance sheet'!K27-'P&L'!L28 -> 0.00 | M11: ='Balance sheet'!M27-'Balance sheet'!L27-'P&L'!M28 -> 0.00 | N11: ='Balance sheet'!N27-'Balance sheet'!M27-'P&L'!N28 -> (0.00) | O11: ='Balance sheet'!O27-'Balance sheet'!N27-'P&L'!O28 -> (0.00) | P11: ='Balance sheet'!P27-'Balance sheet'!O27-'P&L'!P28 -> (0.00)
C12: Forecast dated events less monthly cash | E12: =0 -> 0.00 | F12: =0 -> 0.00 | G12: =0 -> 0.00 | H12: =0 -> 0.00 | I12: =0 -> 0.00 | J12: =0 -> 0.00 | K12: =0 -> 0.00 | L12: =0 -> 0.00 | M12: =SUMIFS('13 week cash'!$F$37:$F$92,'13 week cash'!$D$37:$D$92,">="&46266,'13 week cash'!$D$37:$D$92,"<="&46295)-'Cash flow'!M21 -> 0.00 | N12: =SUMIFS('13 week cash'!$F$37:$F$92,'13 week cash'!$D$37:$D$92,">="&46296,'13 week cash'!$D$37:$D$92,"<="&46326)-'Cash flow'!N21 -> 0.00 | O12: =SUMIFS('13 week cash'!$F$37:$F$92,'13 week cash'!$D$37:$D$92,">="&46327,'13 week cash'!$D$37:$D$92,"<="&46356)-'Cash flow'!O21 -> (0.00) | P12: =SUMIFS('13 week cash'!$F$37:$F$92,'13 week cash'!$D$37:$D$92,">="&46357,'13 week cash'!$D$37:$D$92,"<="&46387)-'Cash flow'!P21 -> 0.00
C16: August receivable detail less ledger | E16: =SUM('Working capital'!G42:G49)-'Balance sheet'!L9 -> 0.00
C17: August payable detail less ledger | E17: =SUM('Working capital'!I56:I63)-'Balance sheet'!L19 -> 0.00
C18: Daily closing less final weekly closing | E18: ='13 week cash'!H201-'13 week cash'!Q18 -> 0.00
C19: Original AP less paid and outstanding | E19: =SUM('Working capital'!G56:G63)-SUM('Working capital'!H56:I63) -> 0.00
C23: Neutral zero is a passed reconciliation at EUR 0.01 tolerance.
C25: Historical event comparisons are not applicable. Dated events start in September.

Sheet Guide
C2: Guide
C4: Selected case | E4: ='Assumptions'!$G$4 -> Base | H4: EUR. Entirely fictional.
C7: Every business, project, engagement, invoice and result is independently fictional. This model demonstrates method, not client results.
C9: January–August 2026 are invented actuals. September–December use one Base/Downside selector. Original budget is a separate fixed plan.
C11: Amounts are EUR. Expenses and cash outflows are negative. Assets and liabilities are positive; accumulated depreciation is subtracted.
C13: Project revenue uses cumulative cost-to-cost progress multiplied by base contract plus approved variations. Monthly revenue is the change in cumulative earned revenue; revised cost estimates cause catch-up adjustments. These fictional contracts are assumed to qualify for recognition over time.
C15: Unapproved variation requests are excluded from contract value and revenue. Open commitments are an explicit committed share of estimated remaining cost. They are not purchase-order-level records.
C17: Five percent of gross billing is retained. Retention is shown separately and released into ordinary receivables only through the input release schedule. No release is assumed in this horizon.
C19: Forecast receivables use target days, subject to a floor for unpaid opening invoices and a cap preventing negative new receipts. Implied days may differ from the target. AP includes new vendor expense × days plus unpaid opening invoices.
C21: Opening supplier invoices require approval, completed review and no hold before payment. Pending invoices remain liabilities but are not scheduled.
C23: Ledger and cash both exclude VAT and other indirect taxes. Tax is a fictional 20% of positive monthly profit before tax, without loss carry-forward or deferred tax. This is not jurisdiction-specific tax advice.
C25: Opening assets depreciate over a remaining 44 months. New additions depreciate over 48 months from the full purchase month. Principal is capped at debt outstanding. Annual interest is 5.5% on opening monthly debt.
C27: The 13-week period starts 1 September after the 31 August close and ends 29 November. Daily cash groups receipts and payments by date, not intraday execution order. Full monthly statements include all month-end activity.
C29: Residual new collections occur 35% on day 15 and 65% on day 28. Vendor payments split 45% on day 12 and 55% on day 26. Payroll is day 25 and overheads day 10. Dates are fictional schedule assumptions.
C31: Negative forecast cash is an unfunded requirement, not an authorised overdraft. No automatic borrowing, interest on cash, FX or dividends are modelled.
C33: Blue numbers in amber cells are editable. Missing selected forecast drivers produce unavailable results; zero remains valid. JSON is an evaluated case snapshot and needs regeneration after edits.
